{"text_format":"1","workbook":"xlsx","n_sheets":46,"sheets":["FM","Moskenes","Andøy","Sortland - Suortá","Øksnes","Bø","Hadsel","Vågan","Vestvågøy","Flakstad","Værøy","Røst","Ballangen","Evenes","Tjeldsund","Lødingen","Divtasvuodna - Tysfjord","Hamarøy - Hábmer","Steigen","Sørfold","Fauske - Fuosko","Saltdal","Beiarn","Gildeskål","Meløy","Rødøy","Træna","Lurøy","Rana","Hemnes","Nesna","Dønna","Hattfjelldal","Grane","Vefsn","Leirfjord","Alstahaug","Herøy","Vevelstad","Vega","Brønnøy","Sømna","Bindal","Narvik","Bodø","Ark1"],"not_rendered":{"charts":0,"images":0,"macros":0,"external_links":0,"defined_names":46,"comments":0,"pivot_tables":0},"unopened":[],"bounds":{"document_bytes":16777216,"sheet_cells":100000,"rows_first":2000,"rows_last":500,"rows_between":2000,"halvings":0,"cell_chars":16384,"cell_head_chars":4096},"cells_cut":0,"cells_raw":0,"read":"whole","date_system":"1900"}

{"sheet":"FM","index":0,"n_rows":93,"n_cols":4,"rows_kept":93,"cut":false,"hidden":false,"merged":[]}
["1. Måloppnåelse (antall ansatte) til Kompetansetiltak (grunn-, videre- og etterutdanning)"]
["1.1. Videregående skole, fag- og yrkesopplæring innen helse (fagbrev)"]
["Utdanningstype","Fullført utdanning ","Under utdanning, men ikke fullført","Samlet antall fullførte og under utdanning "]
["a. Helsefagarbeider",{"$f":"SUM(Moskenes:Bodø!B4)","v":0},{"$f":"SUM(Moskenes:Bodø!C4)","v":0},{"$f":"B4+C4","v":0}]
["b. Annen utdanning på videregående skolenivå ",{"$f":"SUM(Moskenes:Bodø!B5)","v":0},{"$f":"SUM(Moskenes:Bodø!C5)","v":0},{"$f":"B5+C5","v":0}]
["Sum (1.1) :",{"$f":"SUM(B4:B5)","v":0},{"$f":"SUM(C4:C5)","v":0},{"$f":"B6+C6","v":0}]
["1.2. Fagskoleutdanning"]
["a. Psykisk helsearbeid og rusarbeid",{"$f":"SUM(Moskenes:Bodø!B8)","v":0},{"$f":"SUM(Moskenes:Bodø!C8)","v":0},0]
["b. Eldreomsorg/demens",{"$f":"SUM(Moskenes:Bodø!B9)","v":0},{"$f":"SUM(Moskenes:Bodø!C9)","v":0},0]
["c. Habilitering/rehabilitering",{"$f":"SUM(Moskenes:Bodø!B10)","v":0},{"$f":"SUM(Moskenes:Bodø!C10)","v":0},0]
["d. Kreftomsorg/lindrende behandling",{"$f":"SUM(Moskenes:Bodø!B11)","v":0},{"$f":"SUM(Moskenes:Bodø!C11)","v":0},0]
["e. Veiledning",{"$f":"SUM(Moskenes:Bodø!B12)","v":0},{"$f":"SUM(Moskenes:Bodø!C12)","v":0},0]
["f. Annen fagskoleutdanning ",{"$f":"SUM(Moskenes:Bodø!B13)","v":0},{"$f":"SUM(Moskenes:Bodø!C13)","v":0},0]
["Sum (1.2) :",{"$f":"SUM(B8:B13)","v":0},{"$f":"SUM(C8:C13)","v":0},{"$f":"B14+C14","v":0}]
["1.3. Bachelorutdanning helse- og sosialfag"]
["a. Sykepleie",{"$f":"SUM(Moskenes:Bodø!B16)","v":0},{"$f":"SUM(Moskenes:Bodø!C16)","v":0},0]
["b. Vernepleie",{"$f":"SUM(Moskenes:Bodø!B17)","v":0},{"$f":"SUM(Moskenes:Bodø!C17)","v":0},0]
["c. Fysioterapi",{"$f":"SUM(Moskenes:Bodø!B18)","v":0},{"$f":"SUM(Moskenes:Bodø!C18)","v":0},0]
["d. Ergoterapi",{"$f":"SUM(Moskenes:Bodø!B19)","v":0},{"$f":"SUM(Moskenes:Bodø!C19)","v":0},0]
["e. Sosialt arbeid (sosionom)",{"$f":"SUM(Moskenes:Bodø!B20)","v":0},{"$f":"SUM(Moskenes:Bodø!C20)","v":0},0]
["f. Barnevernspedagogikk",{"$f":"SUM(Moskenes:Bodø!B21)","v":0},{"$f":"SUM(Moskenes:Bodø!C21)","v":0},0]
["g. Annen bachelorutdanning",{"$f":"SUM(Moskenes:Bodø!B22)","v":0},{"$f":"SUM(Moskenes:Bodø!C22)","v":0},0]
["Sum (1.3) :",{"$f":"SUM(B16:B22)","v":0},{"$f":"SUM(C16:C22)","v":0},{"$f":"B23+C23","v":0}]
["1.4. Videreutdanning og mastergradutdanning (påbygg bachelorutdanning)"]
["a. Psykisk helsearbeid og rusarbeid",{"$f":"SUM(Moskenes:Bodø!B25)","v":0},{"$f":"SUM(Moskenes:Bodø!C25)","v":0},0]
["b. Tverrfaglig videreutdanning i psykososialt arbeid med barn og unge",{"$f":"SUM(Moskenes:Bodø!B26)","v":0},{"$f":"SUM(Moskenes:Bodø!C26)","v":0},0]
["c. Eldreomsorg/demens",{"$f":"SUM(Moskenes:Bodø!B27)","v":0},{"$f":"SUM(Moskenes:Bodø!C27)","v":0},0]
["d. Kreftomsorg/lindrende pleie",{"$f":"SUM(Moskenes:Bodø!B28)","v":0},{"$f":"SUM(Moskenes:Bodø!C28)","v":0},0]
["e. Habilitering/rehabilitering",{"$f":"SUM(Moskenes:Bodø!B29)","v":0},{"$f":"SUM(Moskenes:Bodø!C29)","v":0},0]
["f. Veiledning",{"$f":"SUM(Moskenes:Bodø!B30)","v":0},{"$f":"SUM(Moskenes:Bodø!C30)","v":0},0]
["g. Lederutdanning",{"$f":"SUM(Moskenes:Bodø!B31)","v":0},{"$f":"SUM(Moskenes:Bodø!C31)","v":0},0]
["h. Annen videreutdanning og/eller masterutdanning ",{"$f":"SUM(Moskenes:Bodø!B32)","v":0},{"$f":"SUM(Moskenes:Bodø!C32)","v":0},0]
["Sum (1.4) :",{"$f":"SUM(B25:B32)","v":0},{"$f":"SUM(C25:C32)","v":0},{"$f":"B33+C33","v":0}]
["1.5. ABC-opplæring"]
["a. Demensomsorgens ABC",{"$f":"SUM(Moskenes:Bodø!B35)","v":0},{"$f":"SUM(Moskenes:Bodø!C35)","v":0},0]
["b. Eldreomsorgens ABC",{"$f":"SUM(Moskenes:Bodø!B36)","v":0},{"$f":"SUM(Moskenes:Bodø!C36)","v":0},0]
["c. Mitt livs ABC",{"$f":"SUM(Moskenes:Bodø!B37)","v":0},{"$f":"SUM(Moskenes:Bodø!C37)","v":0},0]
["d. Velferdsteknologien ABC",{"$f":"SUM(Moskenes:Bodø!B38)","v":0},{"$f":"SUM(Moskenes:Bodø!C38)","v":0},0]
["e. ABC musikkbasert miljøbehandling",{"$f":"SUM(Moskenes:Bodø!B39)","v":0},{"$f":"SUM(Moskenes:Bodø!C39)","v":0},0]
["Sum (1.5) :",{"$f":"SUM(B35:B39)","v":0},{"$f":"SUM(C35:C39)","v":0},{"$f":"B40+C40","v":0}]
["1.6. Annen internopplæring / korte etterutdanninger mv. "]
["a.  Innen psykisk helsearbeid og rusfeltet",{"$f":"SUM(Moskenes:Bodø!B42)","v":0},{"$f":"SUM(Moskenes:Bodø!C42)","v":0},0]
["b. Innen eldreomsorg og demens",{"$f":"SUM(Moskenes:Bodø!B43)","v":0},{"$f":"SUM(Moskenes:Bodø!C43)","v":0},0]
["c. Annet høyt prioritert internopplæring/etterutdanning",{"$f":"SUM(Moskenes:Bodø!B44)","v":0},{"$f":"SUM(Moskenes:Bodø!C44)","v":0},0]
["Sum (1.6) :",{"$f":"SUM(B42:B44)","v":0},{"$f":"SUM(C42:C44)","v":0},{"$f":"B45+C45","v":0}]
[" 1.7. Andre kompetansehevende tiltak med midler direkte fra fylkesmannen  (utdyp i skriftlig del av rapporteringsskjema)"]
["a. Fylkeskoordinator til prosjekt Menn i helse  (ikke for kommuner)",{"$f":"SUM(Moskenes:Bodø!B47)","v":0},{"$f":"SUM(Moskenes:Bodø!C47)","v":0},0]
["b. Desentralisert utdanning fra høgskoler/universiteter (ikke for kommuner)",{"$f":"SUM(Moskenes:Bodø!B48)","v":0},{"$f":"SUM(Moskenes:Bodø!C48)","v":0},{"$f":"B48+C48","v":0}]
["c. Annet  (ikke for kommuner)",{"$f":"SUM(Moskenes:Bodø!B49)","v":0},{"$f":"SUM(Moskenes:Bodø!C49)","v":0},0]
["Sum (1.7) :",{"$f":"SUM(B47:B49)","v":0},{"$f":"SUM(C47:C49)","v":0},{"$f":"B50+C50","v":0}]
["Kompetansetiltak (måloppnåelse) Totalt :",{"$f":"B6+B14+B23+B33+B40+B45+B50","v":0},{"$f":"C6+C14+C23+C33+C40+C45+C50","v":0},{"$f":"B51+C51","v":0}]
["2. Tilskudd til Kompetansetiltak"]
["2.1. Totalt søkt beløp (Kompetansetiltak totalt)",null,null,{"$f":"SUM(Moskenes:Bodø!D53)","v":0}]
["2.2. Utbetalt beløp (Kompetansetiltak totalt)",null,null,{"$f":"SUM(D55:D61)","v":0}]
["a. Videregående skole, fag- og yrkesopplæring innen helse (fagbrev)",null,null,{"$f":"SUM(Moskenes:Bodø!D55)","v":0}]
["b. Fagskoleutdanning",null,null,{"$f":"SUM(Moskenes:Bodø!D56)","v":0}]
["c. Bachelorutdanning helse- og sosialfag",null,null,{"$f":"SUM(Moskenes:Bodø!D57)","v":0}]
["d.  Videreutdanning og mastergradutdanning (påbygg bachelorutdanning)",null,null,{"$f":"SUM(Moskenes:Bodø!D58)","v":0}]
["e. ABC-opplæring",null,null,{"$f":"SUM(Moskenes:Bodø!D59)","v":0}]
["f. Annen internopplæring / korte etterutdanninger /kurs mv. ",null,null,{"$f":"SUM(Moskenes:Bodø!D60)","v":0}]
["g. Andre Kompetansehevende tiltak. Fylkesmannen rapporterer her, ikke kommuner",null,null,{"$f":"SUM(Moskenes:Bodø!D61)","v":0}]
["2.3. Ubenyttet beløp (Kompetansetiltak totalt)",null,null,{"$f":"SUM(Moskenes:Bodø!D62)","v":0}]
["3. Opplæringstilskudd BPA (brukerstyrt personlig assistanse)"]
["3.1. Opplæringstype",null,null,"Antall personer innvilget"]
["a. Arbeidsledere som har fått tilskudd til opplæring",null,null,{"$f":"SUM(Moskenes:Bodø!D65)","v":0}]
["b. Saksbehandlere som har fått tilskudd til opplæring",null,null,{"$f":"SUM(Moskenes:Bodø!D66)","v":0}]
["c. Assistenter som har fått tilskudd til opplæring",null,null,{"$f":"SUM(Moskenes:Bodø!D67)","v":0}]
["d. Uspesifisert ",null,null,{"$f":"SUM(Moskenes:Bodø!D68)","v":0}]
["SUM (3.1) :",null,null,{"$f":"SUM(D65:D68)","v":0}]
["4. Tilskudd til BPA"]
["4.1. Totalt søkt beløp ",null,null,{"$f":"SUM(Moskenes:Bodø!D71)","v":0}]
["4.2. Utbetalt beløp  ",null,null,{"$f":"SUM(Moskenes:Bodø!D72)","v":0}]
["4.3. Ubenyttet beløp ",null,null,{"$f":"SUM(Moskenes:Bodø!D73)","v":0}]
["5. Innovasjonsprosjekter"]
["5.1. Prosjekttype",null,null,"Antall prosjekter innvilget"]
["a. Forebygging,  tidlig innsats og egenmestring",null,null,{"$f":"SUM(Moskenes:Bodø!D76)","v":0}]
["b. Habilitering og rehabilitering, herunder hverdagsrehabilitering",null,null,{"$f":"SUM(Moskenes:Bodø!D77)","v":0}]
["c. Velferdsteknologiske løsninger\n(Dette punktet gjelder ikke for øremerkede midler til \"Nasjonalt velferdsteknologiprogram- innføring av velferdsteknologiskeløsninger (Omsorg 2020)\"\nRapporteringen for velferdsteknologiprogram skal gjøres under punkt 7) ",null,null,{"$f":"SUM(Moskenes:Bodø!D78)","v":0}]
["d. Samspill med pårørende og frivillige i omsorgssektoren generelt og demensomsorgen spesielt",null,null,{"$f":"SUM(Moskenes:Bodø!D79)","v":0}]
["e. Legemiddelhåndtering",null,null,{"$f":"SUM(Moskenes:Bodø!D80)","v":0}]
["f. Ernæring",null,null,{"$f":"SUM(Moskenes:Bodø!D81)","v":0}]
["g. Fritidsaktivitet med assistanse",null,null,{"$f":"SUM(Moskenes:Bodø!D82)","v":0}]
["h. Kulturopplevelser",null,null,{"$f":"SUM(Moskenes:Bodø!D83)","v":0}]
["i. Annet",null,null,{"$f":"SUM(Moskenes:Bodø!D84)","v":0}]
["SUM (5.1) :",null,null,{"$f":"SUM(D76:D84)","v":0}]
["6. Tilskudd til Innovasjonsprosjekter"]
["6.1. Totalt søkt beløp  ",null,null,{"$f":"SUM(Moskenes:Bodø!D87)","v":0}]
["6.2. Utbetalt beløp  ",null,null,{"$f":"SUM(Moskenes:Bodø!D88)","v":0}]
["6.3. Ubenyttet beløp ",null,null,{"$f":"SUM(Moskenes:Bodø!D89)","v":0}]
["7. Nasjonalt velferdsteknologiprogram - innføring av velferdsteknologiske løsninger"]
["7.1. Totalt søkt beløp",null,null,{"$f":"SUM(Moskenes:Bodø!D91)","v":0}]
["7.2. Utbetalt beløp",null,null,{"$f":"SUM(Moskenes:Bodø!D92)","v":0}]
["7.3. Ubenyttet beløp",null,null,{"$f":"SUM(Moskenes:Bodø!D93)","v":0}]

{"sheet":"Moskenes","index":1,"n_rows":93,"n_cols":4,"rows_kept":93,"cut":false,"hidden":false,"merged":[]}
["1. Måloppnåelse (antall ansatte) til Kompetansetiltak (grunn-, videre- og etterutdanning)"]
["1.1. Videregående skole, fag- og yrkesopplæring innen helse (fagbrev)"]
["Utdanningstype","Fullført utdanning ","Under utdanning, men ikke fullført","Samlet antall fullførte og under utdanning "]
["a. Helsefagarbeider",0,0,{"$f":"B4+C4","v":0}]
["b. Annen utdanning på videregående skolenivå ",0,0,{"$f":"B5+C5","v":0}]
["Sum (1.1) :",{"$f":"SUM(B4:B5)","v":0},{"$f":"SUM(C4:C5)","v":0},0]
["1.2. Fagskoleutdanning"]
["a. Psykisk helsearbeid og rusarbeid",0,0,0]
["b. Eldreomsorg/demens",0,0,0]
["c. Habilitering/rehabilitering",0,0,0]
["d. Kreftomsorg/lindrende behandling",0,0,0]
["e. Veiledning",0,0,0]
["f. Annen fagskoleutdanning ",0,0,0]
["Sum (1.2) :",{"$f":"SUM(B8:B13)","v":0},{"$f":"SUM(C8:C13)","v":0},0]
["1.3. Bachelorutdanning helse- og sosialfag"]
["a. Sykepleie",0,0,0]
["b. Vernepleie",0,0,0]
["c. Fysioterapi",0,0,0]
["d. Ergoterapi",0,0,0]
["e. Sosialt arbeid (sosionom)",0,0,0]
["f. Barnevernspedagogikk",0,0,0]
["g. Annen bachelorutdanning",0,0,0]
["Sum (1.3) :",{"$f":"SUM(B16:B22)","v":0},{"$f":"SUM(C16:C22)","v":0},0]
["1.4. Videreutdanning og mastergradutdanning (påbygg bachelorutdanning)"]
["a. Psykisk helsearbeid og rusarbeid",0,0,0]
["b. Tverrfaglig videreutdanning i psykososialt arbeid med barn og unge",0,0,0]
["c. Eldreomsorg/demens",0,0,0]
["d. Kreftomsorg/lindrende pleie",0,0,0]
["e. Habilitering/rehabilitering",0,0,0]
["f. Veiledning",0,0,0]
["g. Lederutdanning",0,0,0]
["h. Annen videreutdanning og/eller masterutdanning ",0,0,0]
["Sum (1.4) :",{"$f":"SUM(B25:B32)","v":0},{"$f":"SUM(C25:C32)","v":0},0]
["1.5. ABC-opplæring"]
["a. Demensomsorgens ABC",0,0,0]
["b. Eldreomsorgens ABC",0,0,0]
["c. Mitt livs ABC",0,0,{"$f":"B37+C37","v":0}]
["d. Velferdsteknologien ABC",0,0,0]
["e. ABC musikkbasert miljøbehandling",0,0,0]
["Sum (1.5) :",{"$f":"SUM(B35:B39)","v":0},{"$f":"SUM(C35:C39)","v":0},0]
["1.6. Annen internopplæring / korte etterutdanninger mv. "]
["a.  Innen psykisk helsearbeid og rusfeltet",0,0,0]
["b. Innen eldreomsorg og demens",null,null,0]
["c. Annet høyt prioritert internopplæring/etterutdanning",0,0,0]
["Sum (1.6) :",{"$f":"SUM(B42:B44)","v":0},{"$f":"SUM(C42:C44)","v":0},0]
[" 1.7. Andre kompetansehevende tiltak med midler direkte fra fylkesmannen  (utdyp i skriftlig del av rapporteringsskjema)"]
["a. Fylkeskoordinator til prosjekt Menn i helse  (ikke for kommuner)",0,0,0]
["b. Desentralisert utdanning fra høgskoler/universiteter (ikke for kommuner)",0,0,0]
["c. Annet  (ikke forkommuner)",0,0,0]
["Sum (1.7) :",{"$f":"SUM(B47:B49)","v":0},{"$f":"SUM(C47:C49)","v":0},{"$f":"B50+C50","v":0}]
["Kompetansetiltak (måloppnåelse) Totalt :",{"$f":"B6+B14+B23+B33+B40+B45+B50","v":0},{"$f":"C6+C14+C23+C33+C40+C45+C50","v":0},{"$f":"B51+C51","v":0}]
["2. Tilskudd til Kompetansetiltak"]
["2.1. Totalt søkt beløp (Kompetansetiltak totalt)",null,null,0]
["2.2. Utbetalt beløp (Kompetansetiltak totalt)",null,null,{"$f":"SUM(D55:D61)","v":0}]
["a. Videregående skole, fag- og yrkesopplæring innen helse (fagbrev)",null,null,0]
["b. Fagskoleutdanning",null,null,0]
["c. Bachelorutdanning helse- og sosialfag",null,null,0]
["d.  Videreutdanning og mastergradutdanning (påbygg bachelorutdanning)",null,null,0]
["e. ABC-opplæring",null,null,0]
["f. Annen internopplæring / korte etterutdanninger /kurs mv. ",null,null,0]
["g. Andre Kompetansehevende tiltak. Fylkesmannen rapporterer her, ikke kommuner",null,null,0]
["2.3. Ubenyttet beløp (Kompetansetiltak totalt)",null,null,0]
["3. Opplæringstilskudd BPA (brukerstyrt personlig assistanse)"]
["3.1. Opplæringstype",null,null,"Antall personer innvilget"]
["a. Arbeidsledere som har fått tilskudd til opplæring",null,null,0]
["b. Saksbehandlere som har fått tilskudd til opplæring",null,null,0]
["c. Assistenter som har fått tilskudd til opplæring",null,null,0]
["d. Uspesifisert ",null,null,0]
["SUM (3.1) :",null,null,{"$f":"SUM(D65:D68)","v":0}]
["4. Tilskudd til BPA"]
["4.1. Totalt søkt beløp ",null,null,0]
["4.2. Utbetalt beløp  ",null,null,0]
["4.3. Ubenyttet beløp ",null,null,0]
["5. Innovasjonsprosjekter"]
["5.1. Prosjekttype",null,null,"Antall prosjekter innvilget"]
["a. Forebygging,  tidlig innsats og egenmestring",null,null,0]
["b. Habilitering og rehabilitering, herunder hverdagsrehabilitering",null,null,0]
["c. Velferdsteknologiske løsninger\n(Dette punktet gjelder ikke for øremerkede midler til \"Nasjonalt velferdsteknologiprogram- innføring av velferdsteknologiskeløsninger (Omsorg 2020)\"\nRapporteringen for velferdsteknologiprogram skal gjøres under punkt 7) ",null,null,0]
["d. Samspill med pårørende og frivillige i omsorgssektoren generelt og demensomsorgen spesielt",null,null,0]
["e. Legemiddelhåndtering",null,null,0]
["f. Ernæring",null,null,0]
["g. Fritidsaktivitet med assistanse",null,null,0]
["h. Kulturopplevelser",null,null,0]
["i. Annet",null,null,0]
["SUM (5.1) :",null,null,{"$f":"SUM(D76:D84)","v":0}]
["6. Tilskudd til Innovasjonsprosjekter"]
["6.1. Totalt søkt beløp  ",null,null,0]
["6.2. Utbetalt beløp  ",null,null,0]
["6.3. Ubenyttet beløp ",null,null,0]
["7. Nasjonalt velferdsteknologiprogram - innføring av velferdsteknologiske løsninger"]
["7.1. Totalt søkt beløp",null,null,0]
["7.2. Utbetalt beløp",null,null,0]
["7.3. Ubenyttet beløp",null,null,0]

{"sheet":"Andøy","index":2,"n_rows":93,"n_cols":4,"rows_kept":93,"cut":false,"hidden":false,"merged":[]}
["1. Måloppnåelse (antall ansatte) til Kompetansetiltak (grunn-, videre- og etterutdanning)"]
["1.1. Videregående skole, fag- og yrkesopplæring innen helse (fagbrev)"]
["Utdanningstype","Fullført utdanning ","Under utdanning, men ikke fullført","Samlet antall fullførte og under utdanning "]
["a. Helsefagarbeider",0,0,{"$f":"B4+C4","v":0}]
["b. Annen utdanning på videregående skolenivå ",0,0,{"$f":"B5+C5","v":0}]
["Sum (1.1) :",{"$f":"SUM(B4:B5)","v":0},{"$f":"SUM(C4:C5)","v":0},0]
["1.2. Fagskoleutdanning"]
["a. Psykisk helsearbeid og rusarbeid",0,0,0]
["b. Eldreomsorg/demens",0,0,0]
["c. Habilitering/rehabilitering",0,0,0]
["d. Kreftomsorg/lindrende behandling",0,0,0]
["e. Veiledning",0,0,0]
["f. Annen fagskoleutdanning ",0,0,0]
["Sum (1.2) :",{"$f":"SUM(B8:B13)","v":0},{"$f":"SUM(C8:C13)","v":0},0]
["1.3. Bachelorutdanning helse- og sosialfag"]
["a. Sykepleie",0,0,0]
["b. Vernepleie",0,0,0]
["c. Fysioterapi",0,0,0]
["d. Ergoterapi",0,0,0]
["e. Sosialt arbeid (sosionom)",0,0,0]
["f. Barnevernspedagogikk",0,0,0]
["g. Annen bachelorutdanning",0,0,0]
["Sum (1.3) :",{"$f":"SUM(B16:B22)","v":0},{"$f":"SUM(C16:C22)","v":0},0]
["1.4. Videreutdanning og mastergradutdanning (påbygg bachelorutdanning)"]
["a. Psykisk helsearbeid og rusarbeid",0,0,0]
["b. Tverrfaglig videreutdanning i psykososialt arbeid med barn og unge",0,0,0]
["c. Eldreomsorg/demens",0,0,0]
["d. Kreftomsorg/lindrende pleie",0,0,0]
["e. Habilitering/rehabilitering",0,0,0]
["f. Veiledning",0,0,0]
["g. Lederutdanning",0,0,0]
["h. Annen videreutdanning og/eller masterutdanning ",0,0,0]
["Sum (1.4) :",{"$f":"SUM(B25:B32)","v":0},{"$f":"SUM(C25:C32)","v":0},0]
["1.5. ABC-opplæring"]
["a. Demensomsorgens ABC",0,0,0]
["b. Eldreomsorgens ABC",0,0,0]
["c. Mitt livs ABC",0,0,{"$f":"B37+C37","v":0}]
["d. Velferdsteknologien ABC",0,0,0]
["e. ABC musikkbasert miljøbehandling",0,0,0]
["Sum (1.5) :",{"$f":"SUM(B35:B39)","v":0},{"$f":"SUM(C35:C39)","v":0},0]
["1.6. Annen internopplæring / korte etterutdanninger mv. "]
["a.  Innen psykisk helsearbeid og rusfeltet",0,0,0]
["b. Innen eldreomsorg og demens",null,null,0]
["c. Annet høyt prioritert internopplæring/etterutdanning",0,0,0]
["Sum (1.6) :",{"$f":"SUM(B42:B44)","v":0},{"$f":"SUM(C42:C44)","v":0},0]
[" 1.7. Andre kompetansehevende tiltak med midler direkte fra fylkesmannen  (utdyp i skriftlig del av rapporteringsskjema)"]
["a. Fylkeskoordinator til prosjekt Menn i helse  (ikke for kommuner)",0,0,0]
["b. Desentralisert utdanning fra høgskoler/universiteter (ikke for kommuner)",0,0,0]
["c. Annet  (ikke forkommuner)",0,0,0]
["Sum (1.7) :",{"$f":"SUM(B47:B49)","v":0},{"$f":"SUM(C47:C49)","v":0},{"$f":"B50+C50","v":0}]
["Kompetansetiltak (måloppnåelse) Totalt :",{"$f":"B6+B14+B23+B33+B40+B45+B50","v":0},{"$f":"C6+C14+C23+C33+C40+C45+C50","v":0},{"$f":"B51+C51","v":0}]
["2. Tilskudd til Kompetansetiltak"]
["2.1. Totalt søkt beløp (Kompetansetiltak totalt)",null,null,0]
["2.2. Utbetalt beløp (Kompetansetiltak totalt)",null,null,{"$f":"SUM(D55:D61)","v":0}]
["a. Videregående skole, fag- og yrkesopplæring innen helse (fagbrev)",null,null,0]
["b. Fagskoleutdanning",null,null,0]
["c. Bachelorutdanning helse- og sosialfag",null,null,0]
["d.  Videreutdanning og mastergradutdanning (påbygg bachelorutdanning)",null,null,0]
["e. ABC-opplæring",null,null,0]
["f. Annen internopplæring / korte etterutdanninger /kurs mv. ",null,null,0]
["g. Andre Kompetansehevende tiltak. Fylkesmannen rapporterer her, ikke kommuner",null,null,0]
["2.3. Ubenyttet beløp (Kompetansetiltak totalt)",null,null,0]
["3. Opplæringstilskudd BPA (brukerstyrt personlig assistanse)"]
["3.1. Opplæringstype",null,null,"Antall personer innvilget"]
["a. Arbeidsledere som har fått tilskudd til opplæring",null,null,0]
["b. Saksbehandlere som har fått tilskudd til opplæring",null,null,0]
["c. Assistenter som har fått tilskudd til opplæring",null,null,0]
["d. Uspesifisert ",null,null,0]
["SUM (3.1) :",null,null,{"$f":"SUM(D65:D68)","v":0}]
["4. Tilskudd til BPA"]
["4.1. Totalt søkt beløp ",null,null,0]
["4.2. Utbetalt beløp  ",null,null,0]
["4.3. Ubenyttet beløp ",null,null,0]
["5. Innovasjonsprosjekter"]
["5.1. Prosjekttype",null,null,"Antall prosjekter innvilget"]
["a. Forebygging,  tidlig innsats og egenmestring",null,null,0]
["b. Habilitering og rehabilitering, herunder hverdagsrehabilitering",null,null,0]
["c. Velferdsteknologiske løsninger\n(Dette punktet gjelder ikke for øremerkede midler til \"Nasjonalt velferdsteknologiprogram- innføring av velferdsteknologiskeløsninger (Omsorg 2020)\"\nRapporteringen for velferdsteknologiprogram skal gjøres under punkt 7) ",null,null,0]
["d. Samspill med pårørende og frivillige i omsorgssektoren generelt og demensomsorgen spesielt",null,null,0]
["e. Legemiddelhåndtering",null,null,0]
["f. Ernæring",null,null,0]
["g. Fritidsaktivitet med assistanse",null,null,0]
["h. Kulturopplevelser",null,null,0]
["i. Annet",null,null,0]
["SUM (5.1) :",null,null,{"$f":"SUM(D76:D84)","v":0}]
["6. Tilskudd til Innovasjonsprosjekter"]
["6.1. Totalt søkt beløp  ",null,null,0]
["6.2. Utbetalt beløp  ",null,null,0]
["6.3. Ubenyttet beløp ",null,null,0]
["7. Nasjonalt velferdsteknologiprogram - innføring av velferdsteknologiske løsninger"]
["7.1. Totalt søkt beløp",null,null,0]
["7.2. Utbetalt beløp",null,null,0]
["7.3. Ubenyttet beløp",null,null,0]

{"sheet":"Sortland - Suortá","index":3,"n_rows":93,"n_cols":4,"rows_kept":93,"cut":false,"hidden":false,"merged":[]}
["1. Måloppnåelse (antall ansatte) til Kompetansetiltak (grunn-, videre- og etterutdanning)"]
["1.1. Videregående skole, fag- og yrkesopplæring innen helse (fagbrev)"]
["Utdanningstype","Fullført utdanning ","Under utdanning, men ikke fullført","Samlet antall fullførte og under utdanning "]
["a. Helsefagarbeider",0,0,{"$f":"B4+C4","v":0}]
["b. Annen utdanning på videregående skolenivå ",0,0,{"$f":"B5+C5","v":0}]
["Sum (1.1) :",{"$f":"SUM(B4:B5)","v":0},{"$f":"SUM(C4:C5)","v":0},0]
["1.2. Fagskoleutdanning"]
["a. Psykisk helsearbeid og rusarbeid",0,0,0]
["b. Eldreomsorg/demens",0,0,0]
["c. Habilitering/rehabilitering",0,0,0]
["d. Kreftomsorg/lindrende behandling",0,0,0]
["e. Veiledning",0,0,0]
["f. Annen fagskoleutdanning ",0,0,0]
["Sum (1.2) :",{"$f":"SUM(B8:B13)","v":0},{"$f":"SUM(C8:C13)","v":0},0]
["1.3. Bachelorutdanning helse- og sosialfag"]
["a. Sykepleie",0,0,0]
["b. Vernepleie",0,0,0]
["c. Fysioterapi",0,0,0]
["d. Ergoterapi",0,0,0]
["e. Sosialt arbeid (sosionom)",0,0,0]
["f. Barnevernspedagogikk",0,0,0]
["g. Annen bachelorutdanning",0,0,0]
["Sum (1.3) :",{"$f":"SUM(B16:B22)","v":0},{"$f":"SUM(C16:C22)","v":0},0]
["1.4. Videreutdanning og mastergradutdanning (påbygg bachelorutdanning)"]
["a. Psykisk helsearbeid og rusarbeid",0,0,0]
["b. Tverrfaglig videreutdanning i psykososialt arbeid med barn og unge",0,0,0]
["c. Eldreomsorg/demens",0,0,0]
["d. Kreftomsorg/lindrende pleie",0,0,0]
["e. Habilitering/rehabilitering",0,0,0]
["f. Veiledning",0,0,0]
["g. Lederutdanning",0,0,0]
["h. Annen videreutdanning og/eller masterutdanning ",0,0,0]
["Sum (1.4) :",{"$f":"SUM(B25:B32)","v":0},{"$f":"SUM(C25:C32)","v":0},0]
["1.5. ABC-opplæring"]
["a. Demensomsorgens ABC",0,0,0]
["b. Eldreomsorgens ABC",0,0,0]
["c. Mitt livs ABC",0,0,{"$f":"B37+C37","v":0}]
["d. Velferdsteknologien ABC",0,0,0]
["e. ABC musikkbasert miljøbehandling",0,0,0]
["Sum (1.5) :",{"$f":"SUM(B35:B39)","v":0},{"$f":"SUM(C35:C39)","v":0},0]
["1.6. Annen internopplæring / korte etterutdanninger mv. "]
["a.  Innen psykisk helsearbeid og rusfeltet",0,0,0]
["b. Innen eldreomsorg og demens",null,null,0]
["c. Annet høyt prioritert internopplæring/etterutdanning",0,0,0]
["Sum (1.6) :",{"$f":"SUM(B42:B44)","v":0},{"$f":"SUM(C42:C44)","v":0},0]
[" 1.7. Andre kompetansehevende tiltak med midler direkte fra fylkesmannen  (utdyp i skriftlig del av rapporteringsskjema)"]
["a. Fylkeskoordinator til prosjekt Menn i helse  (ikke for kommuner)",0,0,0]
["b. Desentralisert utdanning fra høgskoler/universiteter (ikke for kommuner)",0,0,0]
["c. Annet  (ikke forkommuner)",0,0,0]
["Sum (1.7) :",{"$f":"SUM(B47:B49)","v":0},{"$f":"SUM(C47:C49)","v":0},{"$f":"B50+C50","v":0}]
["Kompetansetiltak (måloppnåelse) Totalt :",{"$f":"B6+B14+B23+B33+B40+B45+B50","v":0},{"$f":"C6+C14+C23+C33+C40+C45+C50","v":0},{"$f":"B51+C51","v":0}]
["2. Tilskudd til Kompetansetiltak"]
["2.1. Totalt søkt beløp (Kompetansetiltak totalt)",null,null,0]
["2.2. Utbetalt beløp (Kompetansetiltak totalt)",null,null,{"$f":"SUM(D55:D61)","v":0}]
["a. Videregående skole, fag- og yrkesopplæring innen helse (fagbrev)",null,null,0]
["b. Fagskoleutdanning",null,null,0]
["c. Bachelorutdanning helse- og sosialfag",null,null,0]
["d.  Videreutdanning og mastergradutdanning (påbygg bachelorutdanning)",null,null,0]
["e. ABC-opplæring",null,null,0]
["f. Annen internopplæring / korte etterutdanninger /kurs mv. ",null,null,0]
["g. Andre Kompetansehevende tiltak. Fylkesmannen rapporterer her, ikke kommuner",null,null,0]
["2.3. Ubenyttet beløp (Kompetansetiltak totalt)",null,null,0]
["3. Opplæringstilskudd BPA (brukerstyrt personlig assistanse)"]
["3.1. Opplæringstype",null,null,"Antall personer innvilget"]
["a. Arbeidsledere som har fått tilskudd til opplæring",null,null,0]
["b. Saksbehandlere som har fått tilskudd til opplæring",null,null,0]
["c. Assistenter som har fått tilskudd til opplæring",null,null,0]
["d. Uspesifisert ",null,null,0]
["SUM (3.1) :",null,null,{"$f":"SUM(D65:D68)","v":0}]
["4. Tilskudd til BPA"]
["4.1. Totalt søkt beløp ",null,null,0]
["4.2. Utbetalt beløp  ",null,null,0]
["4.3. Ubenyttet beløp ",null,null,0]
["5. Innovasjonsprosjekter"]
["5.1. Prosjekttype",null,null,"Antall prosjekter innvilget"]
["a. Forebygging,  tidlig innsats og egenmestring",null,null,0]
["b. Habilitering og rehabilitering, herunder hverdagsrehabilitering",null,null,0]
["c. Velferdsteknologiske løsninger\n(Dette punktet gjelder ikke for øremerkede midler til \"Nasjonalt velferdsteknologiprogram- innføring av velferdsteknologiskeløsninger (Omsorg 2020)\"\nRapporteringen for velferdsteknologiprogram skal gjøres under punkt 7) ",null,null,0]
["d. Samspill med pårørende og frivillige i omsorgssektoren generelt og demensomsorgen spesielt",null,null,0]
["e. Legemiddelhåndtering",null,null,0]
["f. Ernæring",null,null,0]
["g. Fritidsaktivitet med assistanse",null,null,0]
["h. Kulturopplevelser",null,null,0]
["i. Annet",null,null,0]
["SUM (5.1) :",null,null,{"$f":"SUM(D76:D84)","v":0}]
["6. Tilskudd til Innovasjonsprosjekter"]
["6.1. Totalt søkt beløp  ",null,null,0]
["6.2. Utbetalt beløp  ",null,null,0]
["6.3. Ubenyttet beløp ",null,null,0]
["7. Nasjonalt velferdsteknologiprogram - innføring av velferdsteknologiske løsninger"]
["7.1. Totalt søkt beløp",null,null,0]
["7.2. Utbetalt beløp",null,null,0]
["7.3. Ubenyttet beløp",null,null,0]

{"sheet":"Øksnes","index":4,"n_rows":93,"n_cols":4,"rows_kept":93,"cut":false,"hidden":false,"merged":[]}
["1. Måloppnåelse (antall ansatte) til Kompetansetiltak (grunn-, videre- og etterutdanning)"]
["1.1. Videregående skole, fag- og yrkesopplæring innen helse (fagbrev)"]
["Utdanningstype","Fullført utdanning ","Under utdanning, men ikke fullført","Samlet antall fullførte og under utdanning "]
["a. Helsefagarbeider",0,0,{"$f":"B4+C4","v":0}]
["b. Annen utdanning på videregående skolenivå ",0,0,{"$f":"B5+C5","v":0}]
["Sum (1.1) :",{"$f":"SUM(B4:B5)","v":0},{"$f":"SUM(C4:C5)","v":0},0]
["1.2. Fagskoleutdanning"]
["a. Psykisk helsearbeid og rusarbeid",0,0,0]
["b. Eldreomsorg/demens",0,0,0]
["c. Habilitering/rehabilitering",0,0,0]
["d. Kreftomsorg/lindrende behandling",0,0,0]
["e. Veiledning",0,0,0]
["f. Annen fagskoleutdanning ",0,0,0]
["Sum (1.2) :",{"$f":"SUM(B8:B13)","v":0},{"$f":"SUM(C8:C13)","v":0},0]
["1.3. Bachelorutdanning helse- og sosialfag"]
["a. Sykepleie",0,0,0]
["b. Vernepleie",0,0,0]
["c. Fysioterapi",0,0,0]
["d. Ergoterapi",0,0,0]
["e. Sosialt arbeid (sosionom)",0,0,0]
["f. Barnevernspedagogikk",0,0,0]
["g. Annen bachelorutdanning",0,0,0]
["Sum (1.3) :",{"$f":"SUM(B16:B22)","v":0},{"$f":"SUM(C16:C22)","v":0},0]
["1.4. Videreutdanning og mastergradutdanning (påbygg bachelorutdanning)"]
["a. Psykisk helsearbeid og rusarbeid",0,0,0]
["b. Tverrfaglig videreutdanning i psykososialt arbeid med barn og unge",0,0,0]
["c. Eldreomsorg/demens",0,0,0]
["d. Kreftomsorg/lindrende pleie",0,0,0]
["e. Habilitering/rehabilitering",0,0,0]
["f. Veiledning",0,0,0]
["g. Lederutdanning",0,0,0]
["h. Annen videreutdanning og/eller masterutdanning ",0,0,0]
["Sum (1.4) :",{"$f":"SUM(B25:B32)","v":0},{"$f":"SUM(C25:C32)","v":0},0]
["1.5. ABC-opplæring"]
["a. Demensomsorgens ABC",0,0,0]
["b. Eldreomsorgens ABC",0,0,0]
["c. Mitt livs ABC",0,0,{"$f":"B37+C37","v":0}]
["d. Velferdsteknologien ABC",0,0,0]
["e. ABC musikkbasert miljøbehandling",0,0,0]
["Sum (1.5) :",{"$f":"SUM(B35:B39)","v":0},{"$f":"SUM(C35:C39)","v":0},0]
["1.6. Annen internopplæring / korte etterutdanninger mv. "]
["a.  Innen psykisk helsearbeid og rusfeltet",0,0,0]
["b. Innen eldreomsorg og demens",null,null,0]
["c. Annet høyt prioritert internopplæring/etterutdanning",0,0,0]
["Sum (1.6) :",{"$f":"SUM(B42:B44)","v":0},{"$f":"SUM(C42:C44)","v":0},0]
[" 1.7. Andre kompetansehevende tiltak med midler direkte fra fylkesmannen  (utdyp i skriftlig del av rapporteringsskjema)"]
["a. Fylkeskoordinator til prosjekt Menn i helse  (ikke for kommuner)",0,0,0]
["b. Desentralisert utdanning fra høgskoler/universiteter (ikke for kommuner)",0,0,0]
["c. Annet  (ikke forkommuner)",0,0,0]
["Sum (1.7) :",{"$f":"SUM(B47:B49)","v":0},{"$f":"SUM(C47:C49)","v":0},{"$f":"B50+C50","v":0}]
["Kompetansetiltak (måloppnåelse) Totalt :",{"$f":"B6+B14+B23+B33+B40+B45+B50","v":0},{"$f":"C6+C14+C23+C33+C40+C45+C50","v":0},{"$f":"B51+C51","v":0}]
["2. Tilskudd til Kompetansetiltak"]
["2.1. Totalt søkt beløp (Kompetansetiltak totalt)",null,null,0]
["2.2. Utbetalt beløp (Kompetansetiltak totalt)",null,null,{"$f":"SUM(D55:D61)","v":0}]
["a. Videregående skole, fag- og yrkesopplæring innen helse (fagbrev)",null,null,0]
["b. Fagskoleutdanning",null,null,0]
["c. Bachelorutdanning helse- og sosialfag",null,null,0]
["d.  Videreutdanning og mastergradutdanning (påbygg bachelorutdanning)",null,null,0]
["e. ABC-opplæring",null,null,0]
["f. Annen internopplæring / korte etterutdanninger /kurs mv. ",null,null,0]
["g. Andre Kompetansehevende tiltak. Fylkesmannen rapporterer her, ikke kommuner",null,null,0]
["2.3. Ubenyttet beløp (Kompetansetiltak totalt)",null,null,0]
["3. Opplæringstilskudd BPA (brukerstyrt personlig assistanse)"]
["3.1. Opplæringstype",null,null,"Antall personer innvilget"]
["a. Arbeidsledere som har fått tilskudd til opplæring",null,null,0]
["b. Saksbehandlere som har fått tilskudd til opplæring",null,null,0]
["c. Assistenter som har fått tilskudd til opplæring",null,null,0]
["d. Uspesifisert ",null,null,0]
["SUM (3.1) :",null,null,{"$f":"SUM(D65:D68)","v":0}]
["4. Tilskudd til BPA"]
["4.1. Totalt søkt beløp ",null,null,0]
["4.2. Utbetalt beløp  ",null,null,0]
["4.3. Ubenyttet beløp ",null,null,0]
["5. Innovasjonsprosjekter"]
["5.1. Prosjekttype",null,null,"Antall prosjekter innvilget"]
["a. Forebygging,  tidlig innsats og egenmestring",null,null,0]
["b. Habilitering og rehabilitering, herunder hverdagsrehabilitering",null,null,0]
["c. Velferdsteknologiske løsninger\n(Dette punktet gjelder ikke for øremerkede midler til \"Nasjonalt velferdsteknologiprogram- innføring av velferdsteknologiskeløsninger (Omsorg 2020)\"\nRapporteringen for velferdsteknologiprogram skal gjøres under punkt 7) ",null,null,0]
["d. Samspill med pårørende og frivillige i omsorgssektoren generelt og demensomsorgen spesielt",null,null,0]
["e. Legemiddelhåndtering",null,null,0]
["f. Ernæring",null,null,0]
["g. Fritidsaktivitet med assistanse",null,null,0]
["h. Kulturopplevelser",null,null,0]
["i. Annet",null,null,0]
["SUM (5.1) :",null,null,{"$f":"SUM(D76:D84)","v":0}]
["6. Tilskudd til Innovasjonsprosjekter"]
["6.1. Totalt søkt beløp  ",null,null,0]
["6.2. Utbetalt beløp  ",null,null,0]
["6.3. Ubenyttet beløp ",null,null,0]
["7. Nasjonalt velferdsteknologiprogram - innføring av velferdsteknologiske løsninger"]
["7.1. Totalt søkt beløp",null,null,0]
["7.2. Utbetalt beløp",null,null,0]
["7.3. Ubenyttet beløp",null,null,0]

{"sheet":"Bø","index":5,"n_rows":93,"n_cols":4,"rows_kept":93,"cut":false,"hidden":false,"merged":[]}
["1. Måloppnåelse (antall ansatte) til Kompetansetiltak (grunn-, videre- og etterutdanning)"]
["1.1. Videregående skole, fag- og yrkesopplæring innen helse (fagbrev)"]
["Utdanningstype","Fullført utdanning ","Under utdanning, men ikke fullført","Samlet antall fullførte og under utdanning "]
["a. Helsefagarbeider",0,0,{"$f":"B4+C4","v":0}]
["b. Annen utdanning på videregående skolenivå ",0,0,{"$f":"B5+C5","v":0}]
["Sum (1.1) :",{"$f":"SUM(B4:B5)","v":0},{"$f":"SUM(C4:C5)","v":0},0]
["1.2. Fagskoleutdanning"]
["a. Psykisk helsearbeid og rusarbeid",0,0,0]
["b. Eldreomsorg/demens",0,0,0]
["c. Habilitering/rehabilitering",0,0,0]
["d. Kreftomsorg/lindrende behandling",0,0,0]
["e. Veiledning",0,0,0]
["f. Annen fagskoleutdanning ",0,0,0]
["Sum (1.2) :",{"$f":"SUM(B8:B13)","v":0},{"$f":"SUM(C8:C13)","v":0},0]
["1.3. Bachelorutdanning helse- og sosialfag"]
["a. Sykepleie",0,0,0]
["b. Vernepleie",0,0,0]
["c. Fysioterapi",0,0,0]
["d. Ergoterapi",0,0,0]
["e. Sosialt arbeid (sosionom)",0,0,0]
["f. Barnevernspedagogikk",0,0,0]
["g. Annen bachelorutdanning",0,0,0]
["Sum (1.3) :",{"$f":"SUM(B16:B22)","v":0},{"$f":"SUM(C16:C22)","v":0},0]
["1.4. Videreutdanning og mastergradutdanning (påbygg bachelorutdanning)"]
["a. Psykisk helsearbeid og rusarbeid",0,0,0]
["b. Tverrfaglig videreutdanning i psykososialt arbeid med barn og unge",0,0,0]
["c. Eldreomsorg/demens",0,0,0]
["d. Kreftomsorg/lindrende pleie",0,0,0]
["e. Habilitering/rehabilitering",0,0,0]
["f. Veiledning",0,0,0]
["g. Lederutdanning",0,0,0]
["h. Annen videreutdanning og/eller masterutdanning ",0,0,0]
["Sum (1.4) :",{"$f":"SUM(B25:B32)","v":0},{"$f":"SUM(C25:C32)","v":0},0]
["1.5. ABC-opplæring"]
["a. Demensomsorgens ABC",0,0,0]
["b. Eldreomsorgens ABC",0,0,0]
["c. Mitt livs ABC",0,0,{"$f":"B37+C37","v":0}]
["d. Velferdsteknologien ABC",0,0,0]
["e. ABC musikkbasert miljøbehandling",0,0,0]
["Sum (1.5) :",{"$f":"SUM(B35:B39)","v":0},{"$f":"SUM(C35:C39)","v":0},0]
["1.6. Annen internopplæring / korte etterutdanninger mv. "]
["a.  Innen psykisk helsearbeid og rusfeltet",0,0,0]
["b. Innen eldreomsorg og demens",null,null,0]
["c. Annet høyt prioritert internopplæring/etterutdanning",0,0,0]
["Sum (1.6) :",{"$f":"SUM(B42:B44)","v":0},{"$f":"SUM(C42:C44)","v":0},0]
[" 1.7. Andre kompetansehevende tiltak med midler direkte fra fylkesmannen  (utdyp i skriftlig del av rapporteringsskjema)"]
["a. Fylkeskoordinator til prosjekt Menn i helse  (ikke for kommuner)",0,0,0]
["b. Desentralisert utdanning fra høgskoler/universiteter (ikke for kommuner)",0,0,0]
["c. Annet  (ikke forkommuner)",0,0,0]
["Sum (1.7) :",{"$f":"SUM(B47:B49)","v":0},{"$f":"SUM(C47:C49)","v":0},{"$f":"B50+C50","v":0}]
["Kompetansetiltak (måloppnåelse) Totalt :",{"$f":"B6+B14+B23+B33+B40+B45+B50","v":0},{"$f":"C6+C14+C23+C33+C40+C45+C50","v":0},{"$f":"B51+C51","v":0}]
["2. Tilskudd til Kompetansetiltak"]
["2.1. Totalt søkt beløp (Kompetansetiltak totalt)",null,null,0]
["2.2. Utbetalt beløp (Kompetansetiltak totalt)",null,null,{"$f":"SUM(D55:D61)","v":0}]
["a. Videregående skole, fag- og yrkesopplæring innen helse (fagbrev)",null,null,0]
["b. Fagskoleutdanning",null,null,0]
["c. Bachelorutdanning helse- og sosialfag",null,null,0]
["d.  Videreutdanning og mastergradutdanning (påbygg bachelorutdanning)",null,null,0]
["e. ABC-opplæring",null,null,0]
["f. Annen internopplæring / korte etterutdanninger /kurs mv. ",null,null,0]
["g. Andre Kompetansehevende tiltak. Fylkesmannen rapporterer her, ikke kommuner",null,null,0]
["2.3. Ubenyttet beløp (Kompetansetiltak totalt)",null,null,0]
["3. Opplæringstilskudd BPA (brukerstyrt personlig assistanse)"]
["3.1. Opplæringstype",null,null,"Antall personer innvilget"]
["a. Arbeidsledere som har fått tilskudd til opplæring",null,null,0]
["b. Saksbehandlere som har fått tilskudd til opplæring",null,null,0]
["c. Assistenter som har fått tilskudd til opplæring",null,null,0]
["d. Uspesifisert ",null,null,0]
["SUM (3.1) :",null,null,{"$f":"SUM(D65:D68)","v":0}]
["4. Tilskudd til BPA"]
["4.1. Totalt søkt beløp ",null,null,0]
["4.2. Utbetalt beløp  ",null,null,0]
["4.3. Ubenyttet beløp ",null,null,0]
["5. Innovasjonsprosjekter"]
["5.1. Prosjekttype",null,null,"Antall prosjekter innvilget"]
["a. Forebygging,  tidlig innsats og egenmestring",null,null,0]
["b. Habilitering og rehabilitering, herunder hverdagsrehabilitering",null,null,0]
["c. Velferdsteknologiske løsninger\n(Dette punktet gjelder ikke for øremerkede midler til \"Nasjonalt velferdsteknologiprogram- innføring av velferdsteknologiskeløsninger (Omsorg 2020)\"\nRapporteringen for velferdsteknologiprogram skal gjøres under punkt 7) ",null,null,0]
["d. Samspill med pårørende og frivillige i omsorgssektoren generelt og demensomsorgen spesielt",null,null,0]
["e. Legemiddelhåndtering",null,null,0]
["f. Ernæring",null,null,0]
["g. Fritidsaktivitet med assistanse",null,null,0]
["h. Kulturopplevelser",null,null,0]
["i. Annet",null,null,0]
["SUM (5.1) :",null,null,{"$f":"SUM(D76:D84)","v":0}]
["6. Tilskudd til Innovasjonsprosjekter"]
["6.1. Totalt søkt beløp  ",null,null,0]
["6.2. Utbetalt beløp  ",null,null,0]
["6.3. Ubenyttet beløp ",null,null,0]
["7. Nasjonalt velferdsteknologiprogram - innføring av velferdsteknologiske løsninger"]
["7.1. Totalt søkt beløp",null,null,0]
["7.2. Utbetalt beløp",null,null,0]
["7.3. Ubenyttet beløp",null,null,0]

{"sheet":"Hadsel","index":6,"n_rows":93,"n_cols":4,"rows_kept":93,"cut":false,"hidden":false,"merged":[]}
["1. Måloppnåelse (antall ansatte) til Kompetansetiltak (grunn-, videre- og etterutdanning)"]
["1.1. Videregående skole, fag- og yrkesopplæring innen helse (fagbrev)"]
["Utdanningstype","Fullført utdanning ","Under utdanning, men ikke fullført","Samlet antall fullførte og under utdanning "]
["a. Helsefagarbeider",0,0,{"$f":"B4+C4","v":0}]
["b. Annen utdanning på videregående skolenivå ",0,0,{"$f":"B5+C5","v":0}]
["Sum (1.1) :",{"$f":"SUM(B4:B5)","v":0},{"$f":"SUM(C4:C5)","v":0},0]
["1.2. Fagskoleutdanning"]
["a. Psykisk helsearbeid og rusarbeid",0,0,0]
["b. Eldreomsorg/demens",0,0,0]
["c. Habilitering/rehabilitering",0,0,0]
["d. Kreftomsorg/lindrende behandling",0,0,0]
["e. Veiledning",0,0,0]
["f. Annen fagskoleutdanning ",0,0,0]
["Sum (1.2) :",{"$f":"SUM(B8:B13)","v":0},{"$f":"SUM(C8:C13)","v":0},0]
["1.3. Bachelorutdanning helse- og sosialfag"]
["a. Sykepleie",0,0,0]
["b. Vernepleie",0,0,0]
["c. Fysioterapi",0,0,0]
["d. Ergoterapi",0,0,0]
["e. Sosialt arbeid (sosionom)",0,0,0]
["f. Barnevernspedagogikk",0,0,0]
["g. Annen bachelorutdanning",0,0,0]
["Sum (1.3) :",{"$f":"SUM(B16:B22)","v":0},{"$f":"SUM(C16:C22)","v":0},0]
["1.4. Videreutdanning og mastergradutdanning (påbygg bachelorutdanning)"]
["a. Psykisk helsearbeid og rusarbeid",0,0,0]
["b. Tverrfaglig videreutdanning i psykososialt arbeid med barn og unge",0,0,0]
["c. Eldreomsorg/demens",0,0,0]
["d. Kreftomsorg/lindrende pleie",0,0,0]
["e. Habilitering/rehabilitering",0,0,0]
["f. Veiledning",0,0,0]
["g. Lederutdanning",0,0,0]
["h. Annen videreutdanning og/eller masterutdanning ",0,0,0]
["Sum (1.4) :",{"$f":"SUM(B25:B32)","v":0},{"$f":"SUM(C25:C32)","v":0},0]
["1.5. ABC-opplæring"]
["a. Demensomsorgens ABC",0,0,0]
["b. Eldreomsorgens ABC",0,0,0]
["c. Mitt livs ABC",0,0,{"$f":"B37+C37","v":0}]
["d. Velferdsteknologien ABC",0,0,0]
["e. ABC musikkbasert miljøbehandling",0,0,0]
["Sum (1.5) :",{"$f":"SUM(B35:B39)","v":0},{"$f":"SUM(C35:C39)","v":0},0]
["1.6. Annen internopplæring / korte etterutdanninger mv. "]
["a.  Innen psykisk helsearbeid og rusfeltet",0,0,0]
["b. Innen eldreomsorg og demens",null,null,0]
["c. Annet høyt prioritert internopplæring/etterutdanning",0,0,0]
["Sum (1.6) :",{"$f":"SUM(B42:B44)","v":0},{"$f":"SUM(C42:C44)","v":0},0]
[" 1.7. Andre kompetansehevende tiltak med midler direkte fra fylkesmannen  (utdyp i skriftlig del av rapporteringsskjema)"]
["a. Fylkeskoordinator til prosjekt Menn i helse  (ikke for kommuner)",0,0,0]
["b. Desentralisert utdanning fra høgskoler/universiteter (ikke for kommuner)",0,0,0]
["c. Annet  (ikke forkommuner)",0,0,0]
["Sum (1.7) :",{"$f":"SUM(B47:B49)","v":0},{"$f":"SUM(C47:C49)","v":0},{"$f":"B50+C50","v":0}]
["Kompetansetiltak (måloppnåelse) Totalt :",{"$f":"B6+B14+B23+B33+B40+B45+B50","v":0},{"$f":"C6+C14+C23+C33+C40+C45+C50","v":0},{"$f":"B51+C51","v":0}]
["2. Tilskudd til Kompetansetiltak"]
["2.1. Totalt søkt beløp (Kompetansetiltak totalt)",null,null,0]
["2.2. Utbetalt beløp (Kompetansetiltak totalt)",null,null,{"$f":"SUM(D55:D61)","v":0}]
["a. Videregående skole, fag- og yrkesopplæring innen helse (fagbrev)",null,null,0]
["b. Fagskoleutdanning",null,null,0]
["c. Bachelorutdanning helse- og sosialfag",null,null,0]
["d.  Videreutdanning og mastergradutdanning (påbygg bachelorutdanning)",null,null,0]
["e. ABC-opplæring",null,null,0]
["f. Annen internopplæring / korte etterutdanninger /kurs mv. ",null,null,0]
["g. Andre Kompetansehevende tiltak. Fylkesmannen rapporterer her, ikke kommuner",null,null,0]
["2.3. Ubenyttet beløp (Kompetansetiltak totalt)",null,null,0]
["3. Opplæringstilskudd BPA (brukerstyrt personlig assistanse)"]
["3.1. Opplæringstype",null,null,"Antall personer innvilget"]
["a. Arbeidsledere som har fått tilskudd til opplæring",null,null,0]
["b. Saksbehandlere som har fått tilskudd til opplæring",null,null,0]
["c. Assistenter som har fått tilskudd til opplæring",null,null,0]
["d. Uspesifisert ",null,null,0]
["SUM (3.1) :",null,null,{"$f":"SUM(D65:D68)","v":0}]
["4. Tilskudd til BPA"]
["4.1. Totalt søkt beløp ",null,null,0]
["4.2. Utbetalt beløp  ",null,null,0]
["4.3. Ubenyttet beløp ",null,null,0]
["5. Innovasjonsprosjekter"]
["5.1. Prosjekttype",null,null,"Antall prosjekter innvilget"]
["a. Forebygging,  tidlig innsats og egenmestring",null,null,0]
["b. Habilitering og rehabilitering, herunder hverdagsrehabilitering",null,null,0]
["c. Velferdsteknologiske løsninger\n(Dette punktet gjelder ikke for øremerkede midler til \"Nasjonalt velferdsteknologiprogram- innføring av velferdsteknologiskeløsninger (Omsorg 2020)\"\nRapporteringen for velferdsteknologiprogram skal gjøres under punkt 7) ",null,null,0]
["d. Samspill med pårørende og frivillige i omsorgssektoren generelt og demensomsorgen spesielt",null,null,0]
["e. Legemiddelhåndtering",null,null,0]
["f. Ernæring",null,null,0]
["g. Fritidsaktivitet med assistanse",null,null,0]
["h. Kulturopplevelser",null,null,0]
["i. Annet",null,null,0]
["SUM (5.1) :",null,null,{"$f":"SUM(D76:D84)","v":0}]
["6. Tilskudd til Innovasjonsprosjekter"]
["6.1. Totalt søkt beløp  ",null,null,0]
["6.2. Utbetalt beløp  ",null,null,0]
["6.3. Ubenyttet beløp ",null,null,0]
["7. Nasjonalt velferdsteknologiprogram - innføring av velferdsteknologiske løsninger"]
["7.1. Totalt søkt beløp",null,null,0]
["7.2. Utbetalt beløp",null,null,0]
["7.3. Ubenyttet beløp",null,null,0]

{"sheet":"Vågan","index":7,"n_rows":93,"n_cols":4,"rows_kept":93,"cut":false,"hidden":false,"merged":[]}
["1. Måloppnåelse (antall ansatte) til Kompetansetiltak (grunn-, videre- og etterutdanning)"]
["1.1. Videregående skole, fag- og yrkesopplæring innen helse (fagbrev)"]
["Utdanningstype","Fullført utdanning ","Under utdanning, men ikke fullført","Samlet antall fullførte og under utdanning "]
["a. Helsefagarbeider",0,0,{"$f":"B4+C4","v":0}]
["b. Annen utdanning på videregående skolenivå ",0,0,{"$f":"B5+C5","v":0}]
["Sum (1.1) :",{"$f":"SUM(B4:B5)","v":0},{"$f":"SUM(C4:C5)","v":0},0]
["1.2. Fagskoleutdanning"]
["a. Psykisk helsearbeid og rusarbeid",0,0,0]
["b. Eldreomsorg/demens",0,0,0]
["c. Habilitering/rehabilitering",0,0,0]
["d. Kreftomsorg/lindrende behandling",0,0,0]
["e. Veiledning",0,0,0]
["f. Annen fagskoleutdanning ",0,0,0]
["Sum (1.2) :",{"$f":"SUM(B8:B13)","v":0},{"$f":"SUM(C8:C13)","v":0},0]
["1.3. Bachelorutdanning helse- og sosialfag"]
["a. Sykepleie",0,0,0]
["b. Vernepleie",0,0,0]
["c. Fysioterapi",0,0,0]
["d. Ergoterapi",0,0,0]
["e. Sosialt arbeid (sosionom)",0,0,0]
["f. Barnevernspedagogikk",0,0,0]
["g. Annen bachelorutdanning",0,0,0]
["Sum (1.3) :",{"$f":"SUM(B16:B22)","v":0},{"$f":"SUM(C16:C22)","v":0},0]
["1.4. Videreutdanning og mastergradutdanning (påbygg bachelorutdanning)"]
["a. Psykisk helsearbeid og rusarbeid",0,0,0]
["b. Tverrfaglig videreutdanning i psykososialt arbeid med barn og unge",0,0,0]
["c. Eldreomsorg/demens",0,0,0]
["d. Kreftomsorg/lindrende pleie",0,0,0]
["e. Habilitering/rehabilitering",0,0,0]
["f. Veiledning",0,0,0]
["g. Lederutdanning",0,0,0]
["h. Annen videreutdanning og/eller masterutdanning ",0,0,0]
["Sum (1.4) :",{"$f":"SUM(B25:B32)","v":0},{"$f":"SUM(C25:C32)","v":0},0]
["1.5. ABC-opplæring"]
["a. Demensomsorgens ABC",0,0,0]
["b. Eldreomsorgens ABC",0,0,0]
["c. Mitt livs ABC",0,0,{"$f":"B37+C37","v":0}]
["d. Velferdsteknologien ABC",0,0,0]
["e. ABC musikkbasert miljøbehandling",0,0,0]
["Sum (1.5) :",{"$f":"SUM(B35:B39)","v":0},{"$f":"SUM(C35:C39)","v":0},0]
["1.6. Annen internopplæring / korte etterutdanninger mv. "]
["a.  Innen psykisk helsearbeid og rusfeltet",0,0,0]
["b. Innen eldreomsorg og demens",null,null,0]
["c. Annet høyt prioritert internopplæring/etterutdanning",0,0,0]
["Sum (1.6) :",{"$f":"SUM(B42:B44)","v":0},{"$f":"SUM(C42:C44)","v":0},0]
[" 1.7. Andre kompetansehevende tiltak med midler direkte fra fylkesmannen  (utdyp i skriftlig del av rapporteringsskjema)"]
["a. Fylkeskoordinator til prosjekt Menn i helse  (ikke for kommuner)",0,0,0]
["b. Desentralisert utdanning fra høgskoler/universiteter (ikke for kommuner)",0,0,0]
["c. Annet  (ikke forkommuner)",0,0,0]
["Sum (1.7) :",{"$f":"SUM(B47:B49)","v":0},{"$f":"SUM(C47:C49)","v":0},{"$f":"B50+C50","v":0}]
["Kompetansetiltak (måloppnåelse) Totalt :",{"$f":"B6+B14+B23+B33+B40+B45+B50","v":0},{"$f":"C6+C14+C23+C33+C40+C45+C50","v":0},{"$f":"B51+C51","v":0}]
["2. Tilskudd til Kompetansetiltak"]
["2.1. Totalt søkt beløp (Kompetansetiltak totalt)",null,null,0]
["2.2. Utbetalt beløp (Kompetansetiltak totalt)",null,null,{"$f":"SUM(D55:D61)","v":0}]
["a. Videregående skole, fag- og yrkesopplæring innen helse (fagbrev)",null,null,0]
["b. Fagskoleutdanning",null,null,0]
["c. Bachelorutdanning helse- og sosialfag",null,null,0]
["d.  Videreutdanning og mastergradutdanning (påbygg bachelorutdanning)",null,null,0]
["e. ABC-opplæring",null,null,0]
["f. Annen internopplæring / korte etterutdanninger /kurs mv. ",null,null,0]
["g. Andre Kompetansehevende tiltak. Fylkesmannen rapporterer her, ikke kommuner",null,null,0]
["2.3. Ubenyttet beløp (Kompetansetiltak totalt)",null,null,0]
["3. Opplæringstilskudd BPA (brukerstyrt personlig assistanse)"]
["3.1. Opplæringstype",null,null,"Antall personer innvilget"]
["a. Arbeidsledere som har fått tilskudd til opplæring",null,null,0]
["b. Saksbehandlere som har fått tilskudd til opplæring",null,null,0]
["c. Assistenter som har fått tilskudd til opplæring",null,null,0]
["d. Uspesifisert ",null,null,0]
["SUM (3.1) :",null,null,{"$f":"SUM(D65:D68)","v":0}]
["4. Tilskudd til BPA"]
["4.1. Totalt søkt beløp ",null,null,0]
["4.2. Utbetalt beløp  ",null,null,0]
["4.3. Ubenyttet beløp ",null,null,0]
["5. Innovasjonsprosjekter"]
["5.1. Prosjekttype",null,null,"Antall prosjekter innvilget"]
["a. Forebygging,  tidlig innsats og egenmestring",null,null,0]
["b. Habilitering og rehabilitering, herunder hverdagsrehabilitering",null,null,0]
["c. Velferdsteknologiske løsninger\n(Dette punktet gjelder ikke for øremerkede midler til \"Nasjonalt velferdsteknologiprogram- innføring av velferdsteknologiskeløsninger (Omsorg 2020)\"\nRapporteringen for velferdsteknologiprogram skal gjøres under punkt 7) ",null,null,0]
["d. Samspill med pårørende og frivillige i omsorgssektoren generelt og demensomsorgen spesielt",null,null,0]
["e. Legemiddelhåndtering",null,null,0]
["f. Ernæring",null,null,0]
["g. Fritidsaktivitet med assistanse",null,null,0]
["h. Kulturopplevelser",null,null,0]
["i. Annet",null,null,0]
["SUM (5.1) :",null,null,{"$f":"SUM(D76:D84)","v":0}]
["6. Tilskudd til Innovasjonsprosjekter"]
["6.1. Totalt søkt beløp  ",null,null,0]
["6.2. Utbetalt beløp  ",null,null,0]
["6.3. Ubenyttet beløp ",null,null,0]
["7. Nasjonalt velferdsteknologiprogram - innføring av velferdsteknologiske løsninger"]
["7.1. Totalt søkt beløp",null,null,0]
["7.2. Utbetalt beløp",null,null,0]
["7.3. Ubenyttet beløp",null,null,0]

{"sheet":"Vestvågøy","index":8,"n_rows":93,"n_cols":4,"rows_kept":93,"cut":false,"hidden":false,"merged":[]}
["1. Måloppnåelse (antall ansatte) til Kompetansetiltak (grunn-, videre- og etterutdanning)"]
["1.1. Videregående skole, fag- og yrkesopplæring innen helse (fagbrev)"]
["Utdanningstype","Fullført utdanning ","Under utdanning, men ikke fullført","Samlet antall fullførte og under utdanning "]
["a. Helsefagarbeider",0,0,{"$f":"B4+C4","v":0}]
["b. Annen utdanning på videregående skolenivå ",0,0,{"$f":"B5+C5","v":0}]
["Sum (1.1) :",{"$f":"SUM(B4:B5)","v":0},{"$f":"SUM(C4:C5)","v":0},0]
["1.2. Fagskoleutdanning"]
["a. Psykisk helsearbeid og rusarbeid",0,0,0]
["b. Eldreomsorg/demens",0,0,0]
["c. Habilitering/rehabilitering",0,0,0]
["d. Kreftomsorg/lindrende behandling",0,0,0]
["e. Veiledning",0,0,0]
["f. Annen fagskoleutdanning ",0,0,0]
["Sum (1.2) :",{"$f":"SUM(B8:B13)","v":0},{"$f":"SUM(C8:C13)","v":0},0]
["1.3. Bachelorutdanning helse- og sosialfag"]
["a. Sykepleie",0,0,0]
["b. Vernepleie",0,0,0]
["c. Fysioterapi",0,0,0]
["d. Ergoterapi",0,0,0]
["e. Sosialt arbeid (sosionom)",0,0,0]
["f. Barnevernspedagogikk",0,0,0]
["g. Annen bachelorutdanning",0,0,0]
["Sum (1.3) :",{"$f":"SUM(B16:B22)","v":0},{"$f":"SUM(C16:C22)","v":0},0]
["1.4. Videreutdanning og mastergradutdanning (påbygg bachelorutdanning)"]
["a. Psykisk helsearbeid og rusarbeid",0,0,0]
["b. Tverrfaglig videreutdanning i psykososialt arbeid med barn og unge",0,0,0]
["c. Eldreomsorg/demens",0,0,0]
["d. Kreftomsorg/lindrende pleie",0,0,0]
["e. Habilitering/rehabilitering",0,0,0]
["f. Veiledning",0,0,0]
["g. Lederutdanning",0,0,0]
["h. Annen videreutdanning og/eller masterutdanning ",0,0,0]
["Sum (1.4) :",{"$f":"SUM(B25:B32)","v":0},{"$f":"SUM(C25:C32)","v":0},0]
["1.5. ABC-opplæring"]
["a. Demensomsorgens ABC",0,0,0]
["b. Eldreomsorgens ABC",0,0,0]
["c. Mitt livs ABC",0,0,{"$f":"B37+C37","v":0}]
["d. Velferdsteknologien ABC",0,0,0]
["e. ABC musikkbasert miljøbehandling",0,0,0]
["Sum (1.5) :",{"$f":"SUM(B35:B39)","v":0},{"$f":"SUM(C35:C39)","v":0},0]
["1.6. Annen internopplæring / korte etterutdanninger mv. "]
["a.  Innen psykisk helsearbeid og rusfeltet",0,0,0]
["b. Innen eldreomsorg og demens",null,null,0]
["c. Annet høyt prioritert internopplæring/etterutdanning",0,0,0]
["Sum (1.6) :",{"$f":"SUM(B42:B44)","v":0},{"$f":"SUM(C42:C44)","v":0},0]
[" 1.7. Andre kompetansehevende tiltak med midler direkte fra fylkesmannen  (utdyp i skriftlig del av rapporteringsskjema)"]
["a. Fylkeskoordinator til prosjekt Menn i helse  (ikke for kommuner)",0,0,0]
["b. Desentralisert utdanning fra høgskoler/universiteter (ikke for kommuner)",0,0,0]
["c. Annet  (ikke forkommuner)",0,0,0]
["Sum (1.7) :",{"$f":"SUM(B47:B49)","v":0},{"$f":"SUM(C47:C49)","v":0},{"$f":"B50+C50","v":0}]
["Kompetansetiltak (måloppnåelse) Totalt :",{"$f":"B6+B14+B23+B33+B40+B45+B50","v":0},{"$f":"C6+C14+C23+C33+C40+C45+C50","v":0},{"$f":"B51+C51","v":0}]
["2. Tilskudd til Kompetansetiltak"]
["2.1. Totalt søkt beløp (Kompetansetiltak totalt)",null,null,0]
["2.2. Utbetalt beløp (Kompetansetiltak totalt)",null,null,{"$f":"SUM(D55:D61)","v":0}]
["a. Videregående skole, fag- og yrkesopplæring innen helse (fagbrev)",null,null,0]
["b. Fagskoleutdanning",null,null,0]
["c. Bachelorutdanning helse- og sosialfag",null,null,0]
["d.  Videreutdanning og mastergradutdanning (påbygg bachelorutdanning)",null,null,0]
["e. ABC-opplæring",null,null,0]
["f. Annen internopplæring / korte etterutdanninger /kurs mv. ",null,null,0]
["g. Andre Kompetansehevende tiltak. Fylkesmannen rapporterer her, ikke kommuner",null,null,0]
["2.3. Ubenyttet beløp (Kompetansetiltak totalt)",null,null,0]
["3. Opplæringstilskudd BPA (brukerstyrt personlig assistanse)"]
["3.1. Opplæringstype",null,null,"Antall personer innvilget"]
["a. Arbeidsledere som har fått tilskudd til opplæring",null,null,0]
["b. Saksbehandlere som har fått tilskudd til opplæring",null,null,0]
["c. Assistenter som har fått tilskudd til opplæring",null,null,0]
["d. Uspesifisert ",null,null,0]
["SUM (3.1) :",null,null,{"$f":"SUM(D65:D68)","v":0}]
["4. Tilskudd til BPA"]
["4.1. Totalt søkt beløp ",null,null,0]
["4.2. Utbetalt beløp  ",null,null,0]
["4.3. Ubenyttet beløp ",null,null,0]
["5. Innovasjonsprosjekter"]
["5.1. Prosjekttype",null,null,"Antall prosjekter innvilget"]
["a. Forebygging,  tidlig innsats og egenmestring",null,null,0]
["b. Habilitering og rehabilitering, herunder hverdagsrehabilitering",null,null,0]
["c. Velferdsteknologiske løsninger\n(Dette punktet gjelder ikke for øremerkede midler til \"Nasjonalt velferdsteknologiprogram- innføring av velferdsteknologiskeløsninger (Omsorg 2020)\"\nRapporteringen for velferdsteknologiprogram skal gjøres under punkt 7) ",null,null,0]
["d. Samspill med pårørende og frivillige i omsorgssektoren generelt og demensomsorgen spesielt",null,null,0]
["e. Legemiddelhåndtering",null,null,0]
["f. Ernæring",null,null,0]
["g. Fritidsaktivitet med assistanse",null,null,0]
["h. Kulturopplevelser",null,null,0]
["i. Annet",null,null,0]
["SUM (5.1) :",null,null,{"$f":"SUM(D76:D84)","v":0}]
["6. Tilskudd til Innovasjonsprosjekter"]
["6.1. Totalt søkt beløp  ",null,null,0]
["6.2. Utbetalt beløp  ",null,null,0]
["6.3. Ubenyttet beløp ",null,null,0]
["7. Nasjonalt velferdsteknologiprogram - innføring av velferdsteknologiske løsninger"]
["7.1. Totalt søkt beløp",null,null,0]
["7.2. Utbetalt beløp",null,null,0]
["7.3. Ubenyttet beløp",null,null,0]

{"sheet":"Flakstad","index":9,"n_rows":93,"n_cols":4,"rows_kept":93,"cut":false,"hidden":false,"merged":[]}
["1. Måloppnåelse (antall ansatte) til Kompetansetiltak (grunn-, videre- og etterutdanning)"]
["1.1. Videregående skole, fag- og yrkesopplæring innen helse (fagbrev)"]
["Utdanningstype","Fullført utdanning ","Under utdanning, men ikke fullført","Samlet antall fullførte og under utdanning "]
["a. Helsefagarbeider",0,0,{"$f":"B4+C4","v":0}]
["b. Annen utdanning på videregående skolenivå ",0,0,{"$f":"B5+C5","v":0}]
["Sum (1.1) :",{"$f":"SUM(B4:B5)","v":0},{"$f":"SUM(C4:C5)","v":0},0]
["1.2. Fagskoleutdanning"]
["a. Psykisk helsearbeid og rusarbeid",0,0,0]
["b. Eldreomsorg/demens",0,0,0]
["c. Habilitering/rehabilitering",0,0,0]
["d. Kreftomsorg/lindrende behandling",0,0,0]
["e. Veiledning",0,0,0]
["f. Annen fagskoleutdanning ",0,0,0]
["Sum (1.2) :",{"$f":"SUM(B8:B13)","v":0},{"$f":"SUM(C8:C13)","v":0},0]
["1.3. Bachelorutdanning helse- og sosialfag"]
["a. Sykepleie",0,0,0]
["b. Vernepleie",0,0,0]
["c. Fysioterapi",0,0,0]
["d. Ergoterapi",0,0,0]
["e. Sosialt arbeid (sosionom)",0,0,0]
["f. Barnevernspedagogikk",0,0,0]
["g. Annen bachelorutdanning",0,0,0]
["Sum (1.3) :",{"$f":"SUM(B16:B22)","v":0},{"$f":"SUM(C16:C22)","v":0},0]
["1.4. Videreutdanning og mastergradutdanning (påbygg bachelorutdanning)"]
["a. Psykisk helsearbeid og rusarbeid",0,0,0]
["b. Tverrfaglig videreutdanning i psykososialt arbeid med barn og unge",0,0,0]
["c. Eldreomsorg/demens",0,0,0]
["d. Kreftomsorg/lindrende pleie",0,0,0]
["e. Habilitering/rehabilitering",0,0,0]
["f. Veiledning",0,0,0]
["g. Lederutdanning",0,0,0]
["h. Annen videreutdanning og/eller masterutdanning ",0,0,0]
["Sum (1.4) :",{"$f":"SUM(B25:B32)","v":0},{"$f":"SUM(C25:C32)","v":0},0]
["1.5. ABC-opplæring"]
["a. Demensomsorgens ABC",0,0,0]
["b. Eldreomsorgens ABC",0,0,0]
["c. Mitt livs ABC",0,0,{"$f":"B37+C37","v":0}]
["d. Velferdsteknologien ABC",0,0,0]
["e. ABC musikkbasert miljøbehandling",0,0,0]
["Sum (1.5) :",{"$f":"SUM(B35:B39)","v":0},{"$f":"SUM(C35:C39)","v":0},0]
["1.6. Annen internopplæring / korte etterutdanninger mv. "]
["a.  Innen psykisk helsearbeid og rusfeltet",0,0,0]
["b. Innen eldreomsorg og demens",null,null,0]
["c. Annet høyt prioritert internopplæring/etterutdanning",0,0,0]
["Sum (1.6) :",{"$f":"SUM(B42:B44)","v":0},{"$f":"SUM(C42:C44)","v":0},0]
[" 1.7. Andre kompetansehevende tiltak med midler direkte fra fylkesmannen  (utdyp i skriftlig del av rapporteringsskjema)"]
["a. Fylkeskoordinator til prosjekt Menn i helse  (ikke for kommuner)",0,0,0]
["b. Desentralisert utdanning fra høgskoler/universiteter (ikke for kommuner)",0,0,0]
["c. Annet  (ikke forkommuner)",0,0,0]
["Sum (1.7) :",{"$f":"SUM(B47:B49)","v":0},{"$f":"SUM(C47:C49)","v":0},{"$f":"B50+C50","v":0}]
["Kompetansetiltak (måloppnåelse) Totalt :",{"$f":"B6+B14+B23+B33+B40+B45+B50","v":0},{"$f":"C6+C14+C23+C33+C40+C45+C50","v":0},{"$f":"B51+C51","v":0}]
["2. Tilskudd til Kompetansetiltak"]
["2.1. Totalt søkt beløp (Kompetansetiltak totalt)",null,null,0]
["2.2. Utbetalt beløp (Kompetansetiltak totalt)",null,null,{"$f":"SUM(D55:D61)","v":0}]
["a. Videregående skole, fag- og yrkesopplæring innen helse (fagbrev)",null,null,0]
["b. Fagskoleutdanning",null,null,0]
["c. Bachelorutdanning helse- og sosialfag",null,null,0]
["d.  Videreutdanning og mastergradutdanning (påbygg bachelorutdanning)",null,null,0]
["e. ABC-opplæring",null,null,0]
["f. Annen internopplæring / korte etterutdanninger /kurs mv. ",null,null,0]
["g. Andre Kompetansehevende tiltak. Fylkesmannen rapporterer her, ikke kommuner",null,null,0]
["2.3. Ubenyttet beløp (Kompetansetiltak totalt)",null,null,0]
["3. Opplæringstilskudd BPA (brukerstyrt personlig assistanse)"]
["3.1. Opplæringstype",null,null,"Antall personer innvilget"]
["a. Arbeidsledere som har fått tilskudd til opplæring",null,null,0]
["b. Saksbehandlere som har fått tilskudd til opplæring",null,null,0]
["c. Assistenter som har fått tilskudd til opplæring",null,null,0]
["d. Uspesifisert ",null,null,0]
["SUM (3.1) :",null,null,{"$f":"SUM(D65:D68)","v":0}]
["4. Tilskudd til BPA"]
["4.1. Totalt søkt beløp ",null,null,0]
["4.2. Utbetalt beløp  ",null,null,0]
["4.3. Ubenyttet beløp ",null,null,0]
["5. Innovasjonsprosjekter"]
["5.1. Prosjekttype",null,null,"Antall prosjekter innvilget"]
["a. Forebygging,  tidlig innsats og egenmestring",null,null,0]
["b. Habilitering og rehabilitering, herunder hverdagsrehabilitering",null,null,0]
["c. Velferdsteknologiske løsninger\n(Dette punktet gjelder ikke for øremerkede midler til \"Nasjonalt velferdsteknologiprogram- innføring av velferdsteknologiskeløsninger (Omsorg 2020)\"\nRapporteringen for velferdsteknologiprogram skal gjøres under punkt 7) ",null,null,0]
["d. Samspill med pårørende og frivillige i omsorgssektoren generelt og demensomsorgen spesielt",null,null,0]
["e. Legemiddelhåndtering",null,null,0]
["f. Ernæring",null,null,0]
["g. Fritidsaktivitet med assistanse",null,null,0]
["h. Kulturopplevelser",null,null,0]
["i. Annet",null,null,0]
["SUM (5.1) :",null,null,{"$f":"SUM(D76:D84)","v":0}]
["6. Tilskudd til Innovasjonsprosjekter"]
["6.1. Totalt søkt beløp  ",null,null,0]
["6.2. Utbetalt beløp  ",null,null,0]
["6.3. Ubenyttet beløp ",null,null,0]
["7. Nasjonalt velferdsteknologiprogram - innføring av velferdsteknologiske løsninger"]
["7.1. Totalt søkt beløp",null,null,0]
["7.2. Utbetalt beløp",null,null,0]
["7.3. Ubenyttet beløp",null,null,0]

{"sheet":"Værøy","index":10,"n_rows":93,"n_cols":4,"rows_kept":93,"cut":false,"hidden":false,"merged":[]}
["1. Måloppnåelse (antall ansatte) til Kompetansetiltak (grunn-, videre- og etterutdanning)"]
["1.1. Videregående skole, fag- og yrkesopplæring innen helse (fagbrev)"]
["Utdanningstype","Fullført utdanning ","Under utdanning, men ikke fullført","Samlet antall fullførte og under utdanning "]
["a. Helsefagarbeider",0,0,{"$f":"B4+C4","v":0}]
["b. Annen utdanning på videregående skolenivå ",0,0,{"$f":"B5+C5","v":0}]
["Sum (1.1) :",{"$f":"SUM(B4:B5)","v":0},{"$f":"SUM(C4:C5)","v":0},0]
["1.2. Fagskoleutdanning"]
["a. Psykisk helsearbeid og rusarbeid",0,0,0]
["b. Eldreomsorg/demens",0,0,0]
["c. Habilitering/rehabilitering",0,0,0]
["d. Kreftomsorg/lindrende behandling",0,0,0]
["e. Veiledning",0,0,0]
["f. Annen fagskoleutdanning ",0,0,0]
["Sum (1.2) :",{"$f":"SUM(B8:B13)","v":0},{"$f":"SUM(C8:C13)","v":0},0]
["1.3. Bachelorutdanning helse- og sosialfag"]
["a. Sykepleie",0,0,0]
["b. Vernepleie",0,0,0]
["c. Fysioterapi",0,0,0]
["d. Ergoterapi",0,0,0]
["e. Sosialt arbeid (sosionom)",0,0,0]
["f. Barnevernspedagogikk",0,0,0]
["g. Annen bachelorutdanning",0,0,0]
["Sum (1.3) :",{"$f":"SUM(B16:B22)","v":0},{"$f":"SUM(C16:C22)","v":0},0]
["1.4. Videreutdanning og mastergradutdanning (påbygg bachelorutdanning)"]
["a. Psykisk helsearbeid og rusarbeid",0,0,0]
["b. Tverrfaglig videreutdanning i psykososialt arbeid med barn og unge",0,0,0]
["c. Eldreomsorg/demens",0,0,0]
["d. Kreftomsorg/lindrende pleie",0,0,0]
["e. Habilitering/rehabilitering",0,0,0]
["f. Veiledning",0,0,0]
["g. Lederutdanning",0,0,0]
["h. Annen videreutdanning og/eller masterutdanning ",0,0,0]
["Sum (1.4) :",{"$f":"SUM(B25:B32)","v":0},{"$f":"SUM(C25:C32)","v":0},0]
["1.5. ABC-opplæring"]
["a. Demensomsorgens ABC",0,0,0]
["b. Eldreomsorgens ABC",0,0,0]
["c. Mitt livs ABC",0,0,{"$f":"B37+C37","v":0}]
["d. Velferdsteknologien ABC",0,0,0]
["e. ABC musikkbasert miljøbehandling",0,0,0]
["Sum (1.5) :",{"$f":"SUM(B35:B39)","v":0},{"$f":"SUM(C35:C39)","v":0},0]
["1.6. Annen internopplæring / korte etterutdanninger mv. "]
["a.  Innen psykisk helsearbeid og rusfeltet",0,0,0]
["b. Innen eldreomsorg og demens",null,null,0]
["c. Annet høyt prioritert internopplæring/etterutdanning",0,0,0]
["Sum (1.6) :",{"$f":"SUM(B42:B44)","v":0},{"$f":"SUM(C42:C44)","v":0},0]
[" 1.7. Andre kompetansehevende tiltak med midler direkte fra fylkesmannen  (utdyp i skriftlig del av rapporteringsskjema)"]
["a. Fylkeskoordinator til prosjekt Menn i helse  (ikke for kommuner)",0,0,0]
["b. Desentralisert utdanning fra høgskoler/universiteter (ikke for kommuner)",0,0,0]
["c. Annet  (ikke forkommuner)",0,0,0]
["Sum (1.7) :",{"$f":"SUM(B47:B49)","v":0},{"$f":"SUM(C47:C49)","v":0},{"$f":"B50+C50","v":0}]
["Kompetansetiltak (måloppnåelse) Totalt :",{"$f":"B6+B14+B23+B33+B40+B45+B50","v":0},{"$f":"C6+C14+C23+C33+C40+C45+C50","v":0},{"$f":"B51+C51","v":0}]
["2. Tilskudd til Kompetansetiltak"]
["2.1. Totalt søkt beløp (Kompetansetiltak totalt)",null,null,0]
["2.2. Utbetalt beløp (Kompetansetiltak totalt)",null,null,{"$f":"SUM(D55:D61)","v":0}]
["a. Videregående skole, fag- og yrkesopplæring innen helse (fagbrev)",null,null,0]
["b. Fagskoleutdanning",null,null,0]
["c. Bachelorutdanning helse- og sosialfag",null,null,0]
["d.  Videreutdanning og mastergradutdanning (påbygg bachelorutdanning)",null,null,0]
["e. ABC-opplæring",null,null,0]
["f. Annen internopplæring / korte etterutdanninger /kurs mv. ",null,null,0]
["g. Andre Kompetansehevende tiltak. Fylkesmannen rapporterer her, ikke kommuner",null,null,0]
["2.3. Ubenyttet beløp (Kompetansetiltak totalt)",null,null,0]
["3. Opplæringstilskudd BPA (brukerstyrt personlig assistanse)"]
["3.1. Opplæringstype",null,null,"Antall personer innvilget"]
["a. Arbeidsledere som har fått tilskudd til opplæring",null,null,0]
["b. Saksbehandlere som har fått tilskudd til opplæring",null,null,0]
["c. Assistenter som har fått tilskudd til opplæring",null,null,0]
["d. Uspesifisert ",null,null,0]
["SUM (3.1) :",null,null,{"$f":"SUM(D65:D68)","v":0}]
["4. Tilskudd til BPA"]
["4.1. Totalt søkt beløp ",null,null,0]
["4.2. Utbetalt beløp  ",null,null,0]
["4.3. Ubenyttet beløp ",null,null,0]
["5. Innovasjonsprosjekter"]
["5.1. Prosjekttype",null,null,"Antall prosjekter innvilget"]
["a. Forebygging,  tidlig innsats og egenmestring",null,null,0]
["b. Habilitering og rehabilitering, herunder hverdagsrehabilitering",null,null,0]
["c. Velferdsteknologiske løsninger\n(Dette punktet gjelder ikke for øremerkede midler til \"Nasjonalt velferdsteknologiprogram- innføring av velferdsteknologiskeløsninger (Omsorg 2020)\"\nRapporteringen for velferdsteknologiprogram skal gjøres under punkt 7) ",null,null,0]
["d. Samspill med pårørende og frivillige i omsorgssektoren generelt og demensomsorgen spesielt",null,null,0]
["e. Legemiddelhåndtering",null,null,0]
["f. Ernæring",null,null,0]
["g. Fritidsaktivitet med assistanse",null,null,0]
["h. Kulturopplevelser",null,null,0]
["i. Annet",null,null,0]
["SUM (5.1) :",null,null,{"$f":"SUM(D76:D84)","v":0}]
["6. Tilskudd til Innovasjonsprosjekter"]
["6.1. Totalt søkt beløp  ",null,null,0]
["6.2. Utbetalt beløp  ",null,null,0]
["6.3. Ubenyttet beløp ",null,null,0]
["7. Nasjonalt velferdsteknologiprogram - innføring av velferdsteknologiske løsninger"]
["7.1. Totalt søkt beløp",null,null,0]
["7.2. Utbetalt beløp",null,null,0]
["7.3. Ubenyttet beløp",null,null,0]

{"sheet":"Røst","index":11,"n_rows":93,"n_cols":4,"rows_kept":93,"cut":false,"hidden":false,"merged":[]}
["1. Måloppnåelse (antall ansatte) til Kompetansetiltak (grunn-, videre- og etterutdanning)"]
["1.1. Videregående skole, fag- og yrkesopplæring innen helse (fagbrev)"]
["Utdanningstype","Fullført utdanning ","Under utdanning, men ikke fullført","Samlet antall fullførte og under utdanning "]
["a. Helsefagarbeider",0,0,{"$f":"B4+C4","v":0}]
["b. Annen utdanning på videregående skolenivå ",0,0,{"$f":"B5+C5","v":0}]
["Sum (1.1) :",{"$f":"SUM(B4:B5)","v":0},{"$f":"SUM(C4:C5)","v":0},0]
["1.2. Fagskoleutdanning"]
["a. Psykisk helsearbeid og rusarbeid",0,0,0]
["b. Eldreomsorg/demens",0,0,0]
["c. Habilitering/rehabilitering",0,0,0]
["d. Kreftomsorg/lindrende behandling",0,0,0]
["e. Veiledning",0,0,0]
["f. Annen fagskoleutdanning ",0,0,0]
["Sum (1.2) :",{"$f":"SUM(B8:B13)","v":0},{"$f":"SUM(C8:C13)","v":0},0]
["1.3. Bachelorutdanning helse- og sosialfag"]
["a. Sykepleie",0,0,0]
["b. Vernepleie",0,0,0]
["c. Fysioterapi",0,0,0]
["d. Ergoterapi",0,0,0]
["e. Sosialt arbeid (sosionom)",0,0,0]
["f. Barnevernspedagogikk",0,0,0]
["g. Annen bachelorutdanning",0,0,0]
["Sum (1.3) :",{"$f":"SUM(B16:B22)","v":0},{"$f":"SUM(C16:C22)","v":0},0]
["1.4. Videreutdanning og mastergradutdanning (påbygg bachelorutdanning)"]
["a. Psykisk helsearbeid og rusarbeid",0,0,0]
["b. Tverrfaglig videreutdanning i psykososialt arbeid med barn og unge",0,0,0]
["c. Eldreomsorg/demens",0,0,0]
["d. Kreftomsorg/lindrende pleie",0,0,0]
["e. Habilitering/rehabilitering",0,0,0]
["f. Veiledning",0,0,0]
["g. Lederutdanning",0,0,0]
["h. Annen videreutdanning og/eller masterutdanning ",0,0,0]
["Sum (1.4) :",{"$f":"SUM(B25:B32)","v":0},{"$f":"SUM(C25:C32)","v":0},0]
["1.5. ABC-opplæring"]
["a. Demensomsorgens ABC",0,0,0]
["b. Eldreomsorgens ABC",0,0,0]
["c. Mitt livs ABC",0,0,{"$f":"B37+C37","v":0}]
["d. Velferdsteknologien ABC",0,0,0]
["e. ABC musikkbasert miljøbehandling",0,0,0]
["Sum (1.5) :",{"$f":"SUM(B35:B39)","v":0},{"$f":"SUM(C35:C39)","v":0},0]
["1.6. Annen internopplæring / korte etterutdanninger mv. "]
["a.  Innen psykisk helsearbeid og rusfeltet",0,0,0]
["b. Innen eldreomsorg og demens",null,null,0]
["c. Annet høyt prioritert internopplæring/etterutdanning",0,0,0]
["Sum (1.6) :",{"$f":"SUM(B42:B44)","v":0},{"$f":"SUM(C42:C44)","v":0},0]
[" 1.7. Andre kompetansehevende tiltak med midler direkte fra fylkesmannen  (utdyp i skriftlig del av rapporteringsskjema)"]
["a. Fylkeskoordinator til prosjekt Menn i helse  (ikke for kommuner)",0,0,0]
["b. Desentralisert utdanning fra høgskoler/universiteter (ikke for kommuner)",0,0,0]
["c. Annet  (ikke forkommuner)",0,0,0]
["Sum (1.7) :",{"$f":"SUM(B47:B49)","v":0},{"$f":"SUM(C47:C49)","v":0},{"$f":"B50+C50","v":0}]
["Kompetansetiltak (måloppnåelse) Totalt :",{"$f":"B6+B14+B23+B33+B40+B45+B50","v":0},{"$f":"C6+C14+C23+C33+C40+C45+C50","v":0},{"$f":"B51+C51","v":0}]
["2. Tilskudd til Kompetansetiltak"]
["2.1. Totalt søkt beløp (Kompetansetiltak totalt)",null,null,0]
["2.2. Utbetalt beløp (Kompetansetiltak totalt)",null,null,{"$f":"SUM(D55:D61)","v":0}]
["a. Videregående skole, fag- og yrkesopplæring innen helse (fagbrev)",null,null,0]
["b. Fagskoleutdanning",null,null,0]
["c. Bachelorutdanning helse- og sosialfag",null,null,0]
["d.  Videreutdanning og mastergradutdanning (påbygg bachelorutdanning)",null,null,0]
["e. ABC-opplæring",null,null,0]
["f. Annen internopplæring / korte etterutdanninger /kurs mv. ",null,null,0]
["g. Andre Kompetansehevende tiltak. Fylkesmannen rapporterer her, ikke kommuner",null,null,0]
["2.3. Ubenyttet beløp (Kompetansetiltak totalt)",null,null,0]
["3. Opplæringstilskudd BPA (brukerstyrt personlig assistanse)"]
["3.1. Opplæringstype",null,null,"Antall personer innvilget"]
["a. Arbeidsledere som har fått tilskudd til opplæring",null,null,0]
["b. Saksbehandlere som har fått tilskudd til opplæring",null,null,0]
["c. Assistenter som har fått tilskudd til opplæring",null,null,0]
["d. Uspesifisert ",null,null,0]
["SUM (3.1) :",null,null,{"$f":"SUM(D65:D68)","v":0}]
["4. Tilskudd til BPA"]
["4.1. Totalt søkt beløp ",null,null,0]
["4.2. Utbetalt beløp  ",null,null,0]
["4.3. Ubenyttet beløp ",null,null,0]
["5. Innovasjonsprosjekter"]
["5.1. Prosjekttype",null,null,"Antall prosjekter innvilget"]
["a. Forebygging,  tidlig innsats og egenmestring",null,null,0]
["b. Habilitering og rehabilitering, herunder hverdagsrehabilitering",null,null,0]
["c. Velferdsteknologiske løsninger\n(Dette punktet gjelder ikke for øremerkede midler til \"Nasjonalt velferdsteknologiprogram- innføring av velferdsteknologiskeløsninger (Omsorg 2020)\"\nRapporteringen for velferdsteknologiprogram skal gjøres under punkt 7) ",null,null,0]
["d. Samspill med pårørende og frivillige i omsorgssektoren generelt og demensomsorgen spesielt",null,null,0]
["e. Legemiddelhåndtering",null,null,0]
["f. Ernæring",null,null,0]
["g. Fritidsaktivitet med assistanse",null,null,0]
["h. Kulturopplevelser",null,null,0]
["i. Annet",null,null,0]
["SUM (5.1) :",null,null,{"$f":"SUM(D76:D84)","v":0}]
["6. Tilskudd til Innovasjonsprosjekter"]
["6.1. Totalt søkt beløp  ",null,null,0]
["6.2. Utbetalt beløp  ",null,null,0]
["6.3. Ubenyttet beløp ",null,null,0]
["7. Nasjonalt velferdsteknologiprogram - innføring av velferdsteknologiske løsninger"]
["7.1. Totalt søkt beløp",null,null,0]
["7.2. Utbetalt beløp",null,null,0]
["7.3. Ubenyttet beløp",null,null,0]

{"sheet":"Ballangen","index":12,"n_rows":93,"n_cols":4,"rows_kept":93,"cut":false,"hidden":false,"merged":[]}
["1. Måloppnåelse (antall ansatte) til Kompetansetiltak (grunn-, videre- og etterutdanning)"]
["1.1. Videregående skole, fag- og yrkesopplæring innen helse (fagbrev)"]
["Utdanningstype","Fullført utdanning ","Under utdanning, men ikke fullført","Samlet antall fullførte og under utdanning "]
["a. Helsefagarbeider",0,0,{"$f":"B4+C4","v":0}]
["b. Annen utdanning på videregående skolenivå ",0,0,{"$f":"B5+C5","v":0}]
["Sum (1.1) :",{"$f":"SUM(B4:B5)","v":0},{"$f":"SUM(C4:C5)","v":0},0]
["1.2. Fagskoleutdanning"]
["a. Psykisk helsearbeid og rusarbeid",0,0,0]
["b. Eldreomsorg/demens",0,0,0]
["c. Habilitering/rehabilitering",0,0,0]
["d. Kreftomsorg/lindrende behandling",0,0,0]
["e. Veiledning",0,0,0]
["f. Annen fagskoleutdanning ",0,0,0]
["Sum (1.2) :",{"$f":"SUM(B8:B13)","v":0},{"$f":"SUM(C8:C13)","v":0},0]
["1.3. Bachelorutdanning helse- og sosialfag"]
["a. Sykepleie",0,0,0]
["b. Vernepleie",0,0,0]
["c. Fysioterapi",0,0,0]
["d. Ergoterapi",0,0,0]
["e. Sosialt arbeid (sosionom)",0,0,0]
["f. Barnevernspedagogikk",0,0,0]
["g. Annen bachelorutdanning",0,0,0]
["Sum (1.3) :",{"$f":"SUM(B16:B22)","v":0},{"$f":"SUM(C16:C22)","v":0},0]
["1.4. Videreutdanning og mastergradutdanning (påbygg bachelorutdanning)"]
["a. Psykisk helsearbeid og rusarbeid",0,0,0]
["b. Tverrfaglig videreutdanning i psykososialt arbeid med barn og unge",0,0,0]
["c. Eldreomsorg/demens",0,0,0]
["d. Kreftomsorg/lindrende pleie",0,0,0]
["e. Habilitering/rehabilitering",0,0,0]
["f. Veiledning",0,0,0]
["g. Lederutdanning",0,0,0]
["h. Annen videreutdanning og/eller masterutdanning ",0,0,0]
["Sum (1.4) :",{"$f":"SUM(B25:B32)","v":0},{"$f":"SUM(C25:C32)","v":0},0]
["1.5. ABC-opplæring"]
["a. Demensomsorgens ABC",0,0,0]
["b. Eldreomsorgens ABC",0,0,0]
["c. Mitt livs ABC",0,0,{"$f":"B37+C37","v":0}]
["d. Velferdsteknologien ABC",0,0,0]
["e. ABC musikkbasert miljøbehandling",0,0,0]
["Sum (1.5) :",{"$f":"SUM(B35:B39)","v":0},{"$f":"SUM(C35:C39)","v":0},0]
["1.6. Annen internopplæring / korte etterutdanninger mv. "]
["a.  Innen psykisk helsearbeid og rusfeltet",0,0,0]
["b. Innen eldreomsorg og demens",null,null,0]
["c. Annet høyt prioritert internopplæring/etterutdanning",0,0,0]
["Sum (1.6) :",{"$f":"SUM(B42:B44)","v":0},{"$f":"SUM(C42:C44)","v":0},0]
[" 1.7. Andre kompetansehevende tiltak med midler direkte fra fylkesmannen  (utdyp i skriftlig del av rapporteringsskjema)"]
["a. Fylkeskoordinator til prosjekt Menn i helse  (ikke for kommuner)",0,0,0]
["b. Desentralisert utdanning fra høgskoler/universiteter (ikke for kommuner)",0,0,0]
["c. Annet  (ikke forkommuner)",0,0,0]
["Sum (1.7) :",{"$f":"SUM(B47:B49)","v":0},{"$f":"SUM(C47:C49)","v":0},{"$f":"B50+C50","v":0}]
["Kompetansetiltak (måloppnåelse) Totalt :",{"$f":"B6+B14+B23+B33+B40+B45+B50","v":0},{"$f":"C6+C14+C23+C33+C40+C45+C50","v":0},{"$f":"B51+C51","v":0}]
["2. Tilskudd til Kompetansetiltak"]
["2.1. Totalt søkt beløp (Kompetansetiltak totalt)",null,null,0]
["2.2. Utbetalt beløp (Kompetansetiltak totalt)",null,null,{"$f":"SUM(D55:D61)","v":0}]
["a. Videregående skole, fag- og yrkesopplæring innen helse (fagbrev)",null,null,0]
["b. Fagskoleutdanning",null,null,0]
["c. Bachelorutdanning helse- og sosialfag",null,null,0]
["d.  Videreutdanning og mastergradutdanning (påbygg bachelorutdanning)",null,null,0]
["e. ABC-opplæring",null,null,0]
["f. Annen internopplæring / korte etterutdanninger /kurs mv. ",null,null,0]
["g. Andre Kompetansehevende tiltak. Fylkesmannen rapporterer her, ikke kommuner",null,null,0]
["2.3. Ubenyttet beløp (Kompetansetiltak totalt)",null,null,0]
["3. Opplæringstilskudd BPA (brukerstyrt personlig assistanse)"]
["3.1. Opplæringstype",null,null,"Antall personer innvilget"]
["a. Arbeidsledere som har fått tilskudd til opplæring",null,null,0]
["b. Saksbehandlere som har fått tilskudd til opplæring",null,null,0]
["c. Assistenter som har fått tilskudd til opplæring",null,null,0]
["d. Uspesifisert ",null,null,0]
["SUM (3.1) :",null,null,{"$f":"SUM(D65:D68)","v":0}]
["4. Tilskudd til BPA"]
["4.1. Totalt søkt beløp ",null,null,0]
["4.2. Utbetalt beløp  ",null,null,0]
["4.3. Ubenyttet beløp ",null,null,0]
["5. Innovasjonsprosjekter"]
["5.1. Prosjekttype",null,null,"Antall prosjekter innvilget"]
["a. Forebygging,  tidlig innsats og egenmestring",null,null,0]
["b. Habilitering og rehabilitering, herunder hverdagsrehabilitering",null,null,0]
["c. Velferdsteknologiske løsninger\n(Dette punktet gjelder ikke for øremerkede midler til \"Nasjonalt velferdsteknologiprogram- innføring av velferdsteknologiskeløsninger (Omsorg 2020)\"\nRapporteringen for velferdsteknologiprogram skal gjøres under punkt 7) ",null,null,0]
["d. Samspill med pårørende og frivillige i omsorgssektoren generelt og demensomsorgen spesielt",null,null,0]
["e. Legemiddelhåndtering",null,null,0]
["f. Ernæring",null,null,0]
["g. Fritidsaktivitet med assistanse",null,null,0]
["h. Kulturopplevelser",null,null,0]
["i. Annet",null,null,0]
["SUM (5.1) :",null,null,{"$f":"SUM(D76:D84)","v":0}]
["6. Tilskudd til Innovasjonsprosjekter"]
["6.1. Totalt søkt beløp  ",null,null,0]
["6.2. Utbetalt beløp  ",null,null,0]
["6.3. Ubenyttet beløp ",null,null,0]
["7. Nasjonalt velferdsteknologiprogram - innføring av velferdsteknologiske løsninger"]
["7.1. Totalt søkt beløp",null,null,0]
["7.2. Utbetalt beløp",null,null,0]
["7.3. Ubenyttet beløp",null,null,0]

{"sheet":"Evenes","index":13,"n_rows":93,"n_cols":4,"rows_kept":93,"cut":false,"hidden":false,"merged":[]}
["1. Måloppnåelse (antall ansatte) til Kompetansetiltak (grunn-, videre- og etterutdanning)"]
["1.1. Videregående skole, fag- og yrkesopplæring innen helse (fagbrev)"]
["Utdanningstype","Fullført utdanning ","Under utdanning, men ikke fullført","Samlet antall fullførte og under utdanning "]
["a. Helsefagarbeider",0,0,{"$f":"B4+C4","v":0}]
["b. Annen utdanning på videregående skolenivå ",0,0,{"$f":"B5+C5","v":0}]
["Sum (1.1) :",{"$f":"SUM(B4:B5)","v":0},{"$f":"SUM(C4:C5)","v":0},0]
["1.2. Fagskoleutdanning"]
["a. Psykisk helsearbeid og rusarbeid",0,0,0]
["b. Eldreomsorg/demens",0,0,0]
["c. Habilitering/rehabilitering",0,0,0]
["d. Kreftomsorg/lindrende behandling",0,0,0]
["e. Veiledning",0,0,0]
["f. Annen fagskoleutdanning ",0,0,0]
["Sum (1.2) :",{"$f":"SUM(B8:B13)","v":0},{"$f":"SUM(C8:C13)","v":0},0]
["1.3. Bachelorutdanning helse- og sosialfag"]
["a. Sykepleie",0,0,0]
["b. Vernepleie",0,0,0]
["c. Fysioterapi",0,0,0]
["d. Ergoterapi",0,0,0]
["e. Sosialt arbeid (sosionom)",0,0,0]
["f. Barnevernspedagogikk",0,0,0]
["g. Annen bachelorutdanning",0,0,0]
["Sum (1.3) :",{"$f":"SUM(B16:B22)","v":0},{"$f":"SUM(C16:C22)","v":0},0]
["1.4. Videreutdanning og mastergradutdanning (påbygg bachelorutdanning)"]
["a. Psykisk helsearbeid og rusarbeid",0,0,0]
["b. Tverrfaglig videreutdanning i psykososialt arbeid med barn og unge",0,0,0]
["c. Eldreomsorg/demens",0,0,0]
["d. Kreftomsorg/lindrende pleie",0,0,0]
["e. Habilitering/rehabilitering",0,0,0]
["f. Veiledning",0,0,0]
["g. Lederutdanning",0,0,0]
["h. Annen videreutdanning og/eller masterutdanning ",0,0,0]
["Sum (1.4) :",{"$f":"SUM(B25:B32)","v":0},{"$f":"SUM(C25:C32)","v":0},0]
["1.5. ABC-opplæring"]
["a. Demensomsorgens ABC",0,0,0]
["b. Eldreomsorgens ABC",0,0,0]
["c. Mitt livs ABC",0,0,{"$f":"B37+C37","v":0}]
["d. Velferdsteknologien ABC",0,0,0]
["e. ABC musikkbasert miljøbehandling",0,0,0]
["Sum (1.5) :",{"$f":"SUM(B35:B39)","v":0},{"$f":"SUM(C35:C39)","v":0},0]
["1.6. Annen internopplæring / korte etterutdanninger mv. "]
["a.  Innen psykisk helsearbeid og rusfeltet",0,0,0]
["b. Innen eldreomsorg og demens",null,null,0]
["c. Annet høyt prioritert internopplæring/etterutdanning",0,0,0]
["Sum (1.6) :",{"$f":"SUM(B42:B44)","v":0},{"$f":"SUM(C42:C44)","v":0},0]
[" 1.7. Andre kompetansehevende tiltak med midler direkte fra fylkesmannen  (utdyp i skriftlig del av rapporteringsskjema)"]
["a. Fylkeskoordinator til prosjekt Menn i helse  (ikke for kommuner)",0,0,0]
["b. Desentralisert utdanning fra høgskoler/universiteter (ikke for kommuner)",0,0,0]
["c. Annet  (ikke forkommuner)",0,0,0]
["Sum (1.7) :",{"$f":"SUM(B47:B49)","v":0},{"$f":"SUM(C47:C49)","v":0},{"$f":"B50+C50","v":0}]
["Kompetansetiltak (måloppnåelse) Totalt :",{"$f":"B6+B14+B23+B33+B40+B45+B50","v":0},{"$f":"C6+C14+C23+C33+C40+C45+C50","v":0},{"$f":"B51+C51","v":0}]
["2. Tilskudd til Kompetansetiltak"]
["2.1. Totalt søkt beløp (Kompetansetiltak totalt)",null,null,0]
["2.2. Utbetalt beløp (Kompetansetiltak totalt)",null,null,{"$f":"SUM(D55:D61)","v":0}]
["a. Videregående skole, fag- og yrkesopplæring innen helse (fagbrev)",null,null,0]
["b. Fagskoleutdanning",null,null,0]
["c. Bachelorutdanning helse- og sosialfag",null,null,0]
["d.  Videreutdanning og mastergradutdanning (påbygg bachelorutdanning)",null,null,0]
["e. ABC-opplæring",null,null,0]
["f. Annen internopplæring / korte etterutdanninger /kurs mv. ",null,null,0]
["g. Andre Kompetansehevende tiltak. Fylkesmannen rapporterer her, ikke kommuner",null,null,0]
["2.3. Ubenyttet beløp (Kompetansetiltak totalt)",null,null,0]
["3. Opplæringstilskudd BPA (brukerstyrt personlig assistanse)"]
["3.1. Opplæringstype",null,null,"Antall personer innvilget"]
["a. Arbeidsledere som har fått tilskudd til opplæring",null,null,0]
["b. Saksbehandlere som har fått tilskudd til opplæring",null,null,0]
["c. Assistenter som har fått tilskudd til opplæring",null,null,0]
["d. Uspesifisert ",null,null,0]
["SUM (3.1) :",null,null,{"$f":"SUM(D65:D68)","v":0}]
["4. Tilskudd til BPA"]
["4.1. Totalt søkt beløp ",null,null,0]
["4.2. Utbetalt beløp  ",null,null,0]
["4.3. Ubenyttet beløp ",null,null,0]
["5. Innovasjonsprosjekter"]
["5.1. Prosjekttype",null,null,"Antall prosjekter innvilget"]
["a. Forebygging,  tidlig innsats og egenmestring",null,null,0]
["b. Habilitering og rehabilitering, herunder hverdagsrehabilitering",null,null,0]
["c. Velferdsteknologiske løsninger\n(Dette punktet gjelder ikke for øremerkede midler til \"Nasjonalt velferdsteknologiprogram- innføring av velferdsteknologiskeløsninger (Omsorg 2020)\"\nRapporteringen for velferdsteknologiprogram skal gjøres under punkt 7) ",null,null,0]
["d. Samspill med pårørende og frivillige i omsorgssektoren generelt og demensomsorgen spesielt",null,null,0]
["e. Legemiddelhåndtering",null,null,0]
["f. Ernæring",null,null,0]
["g. Fritidsaktivitet med assistanse",null,null,0]
["h. Kulturopplevelser",null,null,0]
["i. Annet",null,null,0]
["SUM (5.1) :",null,null,{"$f":"SUM(D76:D84)","v":0}]
["6. Tilskudd til Innovasjonsprosjekter"]
["6.1. Totalt søkt beløp  ",null,null,0]
["6.2. Utbetalt beløp  ",null,null,0]
["6.3. Ubenyttet beløp ",null,null,0]
["7. Nasjonalt velferdsteknologiprogram - innføring av velferdsteknologiske løsninger"]
["7.1. Totalt søkt beløp",null,null,0]
["7.2. Utbetalt beløp",null,null,0]
["7.3. Ubenyttet beløp",null,null,0]

{"sheet":"Tjeldsund","index":14,"n_rows":93,"n_cols":4,"rows_kept":93,"cut":false,"hidden":false,"merged":[]}
["1. Måloppnåelse (antall ansatte) til Kompetansetiltak (grunn-, videre- og etterutdanning)"]
["1.1. Videregående skole, fag- og yrkesopplæring innen helse (fagbrev)"]
["Utdanningstype","Fullført utdanning ","Under utdanning, men ikke fullført","Samlet antall fullførte og under utdanning "]
["a. Helsefagarbeider",0,0,{"$f":"B4+C4","v":0}]
["b. Annen utdanning på videregående skolenivå ",0,0,{"$f":"B5+C5","v":0}]
["Sum (1.1) :",{"$f":"SUM(B4:B5)","v":0},{"$f":"SUM(C4:C5)","v":0},0]
["1.2. Fagskoleutdanning"]
["a. Psykisk helsearbeid og rusarbeid",0,0,0]
["b. Eldreomsorg/demens",0,0,0]
["c. Habilitering/rehabilitering",0,0,0]
["d. Kreftomsorg/lindrende behandling",0,0,0]
["e. Veiledning",0,0,0]
["f. Annen fagskoleutdanning ",0,0,0]
["Sum (1.2) :",{"$f":"SUM(B8:B13)","v":0},{"$f":"SUM(C8:C13)","v":0},0]
["1.3. Bachelorutdanning helse- og sosialfag"]
["a. Sykepleie",0,0,0]
["b. Vernepleie",0,0,0]
["c. Fysioterapi",0,0,0]
["d. Ergoterapi",0,0,0]
["e. Sosialt arbeid (sosionom)",0,0,0]
["f. Barnevernspedagogikk",0,0,0]
["g. Annen bachelorutdanning",0,0,0]
["Sum (1.3) :",{"$f":"SUM(B16:B22)","v":0},{"$f":"SUM(C16:C22)","v":0},0]
["1.4. Videreutdanning og mastergradutdanning (påbygg bachelorutdanning)"]
["a. Psykisk helsearbeid og rusarbeid",0,0,0]
["b. Tverrfaglig videreutdanning i psykososialt arbeid med barn og unge",0,0,0]
["c. Eldreomsorg/demens",0,0,0]
["d. Kreftomsorg/lindrende pleie",0,0,0]
["e. Habilitering/rehabilitering",0,0,0]
["f. Veiledning",0,0,0]
["g. Lederutdanning",0,0,0]
["h. Annen videreutdanning og/eller masterutdanning ",0,0,0]
["Sum (1.4) :",{"$f":"SUM(B25:B32)","v":0},{"$f":"SUM(C25:C32)","v":0},0]
["1.5. ABC-opplæring"]
["a. Demensomsorgens ABC",0,0,0]
["b. Eldreomsorgens ABC",0,0,0]
["c. Mitt livs ABC",0,0,{"$f":"B37+C37","v":0}]
["d. Velferdsteknologien ABC",0,0,0]
["e. ABC musikkbasert miljøbehandling",0,0,0]
["Sum (1.5) :",{"$f":"SUM(B35:B39)","v":0},{"$f":"SUM(C35:C39)","v":0},0]
["1.6. Annen internopplæring / korte etterutdanninger mv. "]
["a.  Innen psykisk helsearbeid og rusfeltet",0,0,0]
["b. Innen eldreomsorg og demens",null,null,0]
["c. Annet høyt prioritert internopplæring/etterutdanning",0,0,0]
["Sum (1.6) :",{"$f":"SUM(B42:B44)","v":0},{"$f":"SUM(C42:C44)","v":0},0]
[" 1.7. Andre kompetansehevende tiltak med midler direkte fra fylkesmannen  (utdyp i skriftlig del av rapporteringsskjema)"]
["a. Fylkeskoordinator til prosjekt Menn i helse  (ikke for kommuner)",0,0,0]
["b. Desentralisert utdanning fra høgskoler/universiteter (ikke for kommuner)",0,0,0]
["c. Annet  (ikke forkommuner)",0,0,0]
["Sum (1.7) :",{"$f":"SUM(B47:B49)","v":0},{"$f":"SUM(C47:C49)","v":0},{"$f":"B50+C50","v":0}]
["Kompetansetiltak (måloppnåelse) Totalt :",{"$f":"B6+B14+B23+B33+B40+B45+B50","v":0},{"$f":"C6+C14+C23+C33+C40+C45+C50","v":0},{"$f":"B51+C51","v":0}]
["2. Tilskudd til Kompetansetiltak"]
["2.1. Totalt søkt beløp (Kompetansetiltak totalt)",null,null,0]
["2.2. Utbetalt beløp (Kompetansetiltak totalt)",null,null,{"$f":"SUM(D55:D61)","v":0}]
["a. Videregående skole, fag- og yrkesopplæring innen helse (fagbrev)",null,null,0]
["b. Fagskoleutdanning",null,null,0]
["c. Bachelorutdanning helse- og sosialfag",null,null,0]
["d.  Videreutdanning og mastergradutdanning (påbygg bachelorutdanning)",null,null,0]
["e. ABC-opplæring",null,null,0]
["f. Annen internopplæring / korte etterutdanninger /kurs mv. ",null,null,0]
["g. Andre Kompetansehevende tiltak. Fylkesmannen rapporterer her, ikke kommuner",null,null,0]
["2.3. Ubenyttet beløp (Kompetansetiltak totalt)",null,null,0]
["3. Opplæringstilskudd BPA (brukerstyrt personlig assistanse)"]
["3.1. Opplæringstype",null,null,"Antall personer innvilget"]
["a. Arbeidsledere som har fått tilskudd til opplæring",null,null,0]
["b. Saksbehandlere som har fått tilskudd til opplæring",null,null,0]
["c. Assistenter som har fått tilskudd til opplæring",null,null,0]
["d. Uspesifisert ",null,null,0]
["SUM (3.1) :",null,null,{"$f":"SUM(D65:D68)","v":0}]
["4. Tilskudd til BPA"]
["4.1. Totalt søkt beløp ",null,null,0]
["4.2. Utbetalt beløp  ",null,null,0]
["4.3. Ubenyttet beløp ",null,null,0]
["5. Innovasjonsprosjekter"]
["5.1. Prosjekttype",null,null,"Antall prosjekter innvilget"]
["a. Forebygging,  tidlig innsats og egenmestring",null,null,0]
["b. Habilitering og rehabilitering, herunder hverdagsrehabilitering",null,null,0]
["c. Velferdsteknologiske løsninger\n(Dette punktet gjelder ikke for øremerkede midler til \"Nasjonalt velferdsteknologiprogram- innføring av velferdsteknologiskeløsninger (Omsorg 2020)\"\nRapporteringen for velferdsteknologiprogram skal gjøres under punkt 7) ",null,null,0]
["d. Samspill med pårørende og frivillige i omsorgssektoren generelt og demensomsorgen spesielt",null,null,0]
["e. Legemiddelhåndtering",null,null,0]
["f. Ernæring",null,null,0]
["g. Fritidsaktivitet med assistanse",null,null,0]
["h. Kulturopplevelser",null,null,0]
["i. Annet",null,null,0]
["SUM (5.1) :",null,null,{"$f":"SUM(D76:D84)","v":0}]
["6. Tilskudd til Innovasjonsprosjekter"]
["6.1. Totalt søkt beløp  ",null,null,0]
["6.2. Utbetalt beløp  ",null,null,0]
["6.3. Ubenyttet beløp ",null,null,0]
["7. Nasjonalt velferdsteknologiprogram - innføring av velferdsteknologiske løsninger"]
["7.1. Totalt søkt beløp",null,null,0]
["7.2. Utbetalt beløp",null,null,0]
["7.3. Ubenyttet beløp",null,null,0]

{"sheet":"Lødingen","index":15,"n_rows":93,"n_cols":4,"rows_kept":93,"cut":false,"hidden":false,"merged":[]}
["1. Måloppnåelse (antall ansatte) til Kompetansetiltak (grunn-, videre- og etterutdanning)"]
["1.1. Videregående skole, fag- og yrkesopplæring innen helse (fagbrev)"]
["Utdanningstype","Fullført utdanning ","Under utdanning, men ikke fullført","Samlet antall fullførte og under utdanning "]
["a. Helsefagarbeider",0,0,{"$f":"B4+C4","v":0}]
["b. Annen utdanning på videregående skolenivå ",0,0,{"$f":"B5+C5","v":0}]
["Sum (1.1) :",{"$f":"SUM(B4:B5)","v":0},{"$f":"SUM(C4:C5)","v":0},0]
["1.2. Fagskoleutdanning"]
["a. Psykisk helsearbeid og rusarbeid",0,0,0]
["b. Eldreomsorg/demens",0,0,0]
["c. Habilitering/rehabilitering",0,0,0]
["d. Kreftomsorg/lindrende behandling",0,0,0]
["e. Veiledning",0,0,0]
["f. Annen fagskoleutdanning ",0,0,0]
["Sum (1.2) :",{"$f":"SUM(B8:B13)","v":0},{"$f":"SUM(C8:C13)","v":0},0]
["1.3. Bachelorutdanning helse- og sosialfag"]
["a. Sykepleie",0,0,0]
["b. Vernepleie",0,0,0]
["c. Fysioterapi",0,0,0]
["d. Ergoterapi",0,0,0]
["e. Sosialt arbeid (sosionom)",0,0,0]
["f. Barnevernspedagogikk",0,0,0]
["g. Annen bachelorutdanning",0,0,0]
["Sum (1.3) :",{"$f":"SUM(B16:B22)","v":0},{"$f":"SUM(C16:C22)","v":0},0]
["1.4. Videreutdanning og mastergradutdanning (påbygg bachelorutdanning)"]
["a. Psykisk helsearbeid og rusarbeid",0,0,0]
["b. Tverrfaglig videreutdanning i psykososialt arbeid med barn og unge",0,0,0]
["c. Eldreomsorg/demens",0,0,0]
["d. Kreftomsorg/lindrende pleie",0,0,0]
["e. Habilitering/rehabilitering",0,0,0]
["f. Veiledning",0,0,0]
["g. Lederutdanning",0,0,0]
["h. Annen videreutdanning og/eller masterutdanning ",0,0,0]
["Sum (1.4) :",{"$f":"SUM(B25:B32)","v":0},{"$f":"SUM(C25:C32)","v":0},0]
["1.5. ABC-opplæring"]
["a. Demensomsorgens ABC",0,0,0]
["b. Eldreomsorgens ABC",0,0,0]
["c. Mitt livs ABC",0,0,{"$f":"B37+C37","v":0}]
["d. Velferdsteknologien ABC",0,0,0]
["e. ABC musikkbasert miljøbehandling",0,0,0]
["Sum (1.5) :",{"$f":"SUM(B35:B39)","v":0},{"$f":"SUM(C35:C39)","v":0},0]
["1.6. Annen internopplæring / korte etterutdanninger mv. "]
["a.  Innen psykisk helsearbeid og rusfeltet",0,0,0]
["b. Innen eldreomsorg og demens",null,null,0]
["c. Annet høyt prioritert internopplæring/etterutdanning",0,0,0]
["Sum (1.6) :",{"$f":"SUM(B42:B44)","v":0},{"$f":"SUM(C42:C44)","v":0},0]
[" 1.7. Andre kompetansehevende tiltak med midler direkte fra fylkesmannen  (utdyp i skriftlig del av rapporteringsskjema)"]
["a. Fylkeskoordinator til prosjekt Menn i helse  (ikke for kommuner)",0,0,0]
["b. Desentralisert utdanning fra høgskoler/universiteter (ikke for kommuner)",0,0,0]
["c. Annet  (ikke forkommuner)",0,0,0]
["Sum (1.7) :",{"$f":"SUM(B47:B49)","v":0},{"$f":"SUM(C47:C49)","v":0},{"$f":"B50+C50","v":0}]
["Kompetansetiltak (måloppnåelse) Totalt :",{"$f":"B6+B14+B23+B33+B40+B45+B50","v":0},{"$f":"C6+C14+C23+C33+C40+C45+C50","v":0},{"$f":"B51+C51","v":0}]
["2. Tilskudd til Kompetansetiltak"]
["2.1. Totalt søkt beløp (Kompetansetiltak totalt)",null,null,0]
["2.2. Utbetalt beløp (Kompetansetiltak totalt)",null,null,{"$f":"SUM(D55:D61)","v":0}]
["a. Videregående skole, fag- og yrkesopplæring innen helse (fagbrev)",null,null,0]
["b. Fagskoleutdanning",null,null,0]
["c. Bachelorutdanning helse- og sosialfag",null,null,0]
["d.  Videreutdanning og mastergradutdanning (påbygg bachelorutdanning)",null,null,0]
["e. ABC-opplæring",null,null,0]
["f. Annen internopplæring / korte etterutdanninger /kurs mv. ",null,null,0]
["g. Andre Kompetansehevende tiltak. Fylkesmannen rapporterer her, ikke kommuner",null,null,0]
["2.3. Ubenyttet beløp (Kompetansetiltak totalt)",null,null,0]
["3. Opplæringstilskudd BPA (brukerstyrt personlig assistanse)"]
["3.1. Opplæringstype",null,null,"Antall personer innvilget"]
["a. Arbeidsledere som har fått tilskudd til opplæring",null,null,0]
["b. Saksbehandlere som har fått tilskudd til opplæring",null,null,0]
["c. Assistenter som har fått tilskudd til opplæring",null,null,0]
["d. Uspesifisert ",null,null,0]
["SUM (3.1) :",null,null,{"$f":"SUM(D65:D68)","v":0}]
["4. Tilskudd til BPA"]
["4.1. Totalt søkt beløp ",null,null,0]
["4.2. Utbetalt beløp  ",null,null,0]
["4.3. Ubenyttet beløp ",null,null,0]
["5. Innovasjonsprosjekter"]
["5.1. Prosjekttype",null,null,"Antall prosjekter innvilget"]
["a. Forebygging,  tidlig innsats og egenmestring",null,null,0]
["b. Habilitering og rehabilitering, herunder hverdagsrehabilitering",null,null,0]
["c. Velferdsteknologiske løsninger\n(Dette punktet gjelder ikke for øremerkede midler til \"Nasjonalt velferdsteknologiprogram- innføring av velferdsteknologiskeløsninger (Omsorg 2020)\"\nRapporteringen for velferdsteknologiprogram skal gjøres under punkt 7) ",null,null,0]
["d. Samspill med pårørende og frivillige i omsorgssektoren generelt og demensomsorgen spesielt",null,null,0]
["e. Legemiddelhåndtering",null,null,0]
["f. Ernæring",null,null,0]
["g. Fritidsaktivitet med assistanse",null,null,0]
["h. Kulturopplevelser",null,null,0]
["i. Annet",null,null,0]
["SUM (5.1) :",null,null,{"$f":"SUM(D76:D84)","v":0}]
["6. Tilskudd til Innovasjonsprosjekter"]
["6.1. Totalt søkt beløp  ",null,null,0]
["6.2. Utbetalt beløp  ",null,null,0]
["6.3. Ubenyttet beløp ",null,null,0]
["7. Nasjonalt velferdsteknologiprogram - innføring av velferdsteknologiske løsninger"]
["7.1. Totalt søkt beløp",null,null,0]
["7.2. Utbetalt beløp",null,null,0]
["7.3. Ubenyttet beløp",null,null,0]

{"sheet":"Divtasvuodna - Tysfjord","index":16,"n_rows":93,"n_cols":4,"rows_kept":93,"cut":false,"hidden":false,"merged":[]}
["1. Måloppnåelse (antall ansatte) til Kompetansetiltak (grunn-, videre- og etterutdanning)"]
["1.1. Videregående skole, fag- og yrkesopplæring innen helse (fagbrev)"]
["Utdanningstype","Fullført utdanning ","Under utdanning, men ikke fullført","Samlet antall fullførte og under utdanning "]
["a. Helsefagarbeider",0,0,{"$f":"B4+C4","v":0}]
["b. Annen utdanning på videregående skolenivå ",0,0,{"$f":"B5+C5","v":0}]
["Sum (1.1) :",{"$f":"SUM(B4:B5)","v":0},{"$f":"SUM(C4:C5)","v":0},0]
["1.2. Fagskoleutdanning"]
["a. Psykisk helsearbeid og rusarbeid",0,0,0]
["b. Eldreomsorg/demens",0,0,0]
["c. Habilitering/rehabilitering",0,0,0]
["d. Kreftomsorg/lindrende behandling",0,0,0]
["e. Veiledning",0,0,0]
["f. Annen fagskoleutdanning ",0,0,0]
["Sum (1.2) :",{"$f":"SUM(B8:B13)","v":0},{"$f":"SUM(C8:C13)","v":0},0]
["1.3. Bachelorutdanning helse- og sosialfag"]
["a. Sykepleie",0,0,0]
["b. Vernepleie",0,0,0]
["c. Fysioterapi",0,0,0]
["d. Ergoterapi",0,0,0]
["e. Sosialt arbeid (sosionom)",0,0,0]
["f. Barnevernspedagogikk",0,0,0]
["g. Annen bachelorutdanning",0,0,0]
["Sum (1.3) :",{"$f":"SUM(B16:B22)","v":0},{"$f":"SUM(C16:C22)","v":0},0]
["1.4. Videreutdanning og mastergradutdanning (påbygg bachelorutdanning)"]
["a. Psykisk helsearbeid og rusarbeid",0,0,0]
["b. Tverrfaglig videreutdanning i psykososialt arbeid med barn og unge",0,0,0]
["c. Eldreomsorg/demens",0,0,0]
["d. Kreftomsorg/lindrende pleie",0,0,0]
["e. Habilitering/rehabilitering",0,0,0]
["f. Veiledning",0,0,0]
["g. Lederutdanning",0,0,0]
["h. Annen videreutdanning og/eller masterutdanning ",0,0,0]
["Sum (1.4) :",{"$f":"SUM(B25:B32)","v":0},{"$f":"SUM(C25:C32)","v":0},0]
["1.5. ABC-opplæring"]
["a. Demensomsorgens ABC",0,0,0]
["b. Eldreomsorgens ABC",0,0,0]
["c. Mitt livs ABC",0,0,{"$f":"B37+C37","v":0}]
["d. Velferdsteknologien ABC",0,0,0]
["e. ABC musikkbasert miljøbehandling",0,0,0]
["Sum (1.5) :",{"$f":"SUM(B35:B39)","v":0},{"$f":"SUM(C35:C39)","v":0},0]
["1.6. Annen internopplæring / korte etterutdanninger mv. "]
["a.  Innen psykisk helsearbeid og rusfeltet",0,0,0]
["b. Innen eldreomsorg og demens",null,null,0]
["c. Annet høyt prioritert internopplæring/etterutdanning",0,0,0]
["Sum (1.6) :",{"$f":"SUM(B42:B44)","v":0},{"$f":"SUM(C42:C44)","v":0},0]
[" 1.7. Andre kompetansehevende tiltak med midler direkte fra fylkesmannen  (utdyp i skriftlig del av rapporteringsskjema)"]
["a. Fylkeskoordinator til prosjekt Menn i helse  (ikke for kommuner)",0,0,0]
["b. Desentralisert utdanning fra høgskoler/universiteter (ikke for kommuner)",0,0,0]
["c. Annet  (ikke forkommuner)",0,0,0]
["Sum (1.7) :",{"$f":"SUM(B47:B49)","v":0},{"$f":"SUM(C47:C49)","v":0},{"$f":"B50+C50","v":0}]
["Kompetansetiltak (måloppnåelse) Totalt :",{"$f":"B6+B14+B23+B33+B40+B45+B50","v":0},{"$f":"C6+C14+C23+C33+C40+C45+C50","v":0},{"$f":"B51+C51","v":0}]
["2. Tilskudd til Kompetansetiltak"]
["2.1. Totalt søkt beløp (Kompetansetiltak totalt)",null,null,0]
["2.2. Utbetalt beløp (Kompetansetiltak totalt)",null,null,{"$f":"SUM(D55:D61)","v":0}]
["a. Videregående skole, fag- og yrkesopplæring innen helse (fagbrev)",null,null,0]
["b. Fagskoleutdanning",null,null,0]
["c. Bachelorutdanning helse- og sosialfag",null,null,0]
["d.  Videreutdanning og mastergradutdanning (påbygg bachelorutdanning)",null,null,0]
["e. ABC-opplæring",null,null,0]
["f. Annen internopplæring / korte etterutdanninger /kurs mv. ",null,null,0]
["g. Andre Kompetansehevende tiltak. Fylkesmannen rapporterer her, ikke kommuner",null,null,0]
["2.3. Ubenyttet beløp (Kompetansetiltak totalt)",null,null,0]
["3. Opplæringstilskudd BPA (brukerstyrt personlig assistanse)"]
["3.1. Opplæringstype",null,null,"Antall personer innvilget"]
["a. Arbeidsledere som har fått tilskudd til opplæring",null,null,0]
["b. Saksbehandlere som har fått tilskudd til opplæring",null,null,0]
["c. Assistenter som har fått tilskudd til opplæring",null,null,0]
["d. Uspesifisert ",null,null,0]
["SUM (3.1) :",null,null,{"$f":"SUM(D65:D68)","v":0}]
["4. Tilskudd til BPA"]
["4.1. Totalt søkt beløp ",null,null,0]
["4.2. Utbetalt beløp  ",null,null,0]
["4.3. Ubenyttet beløp ",null,null,0]
["5. Innovasjonsprosjekter"]
["5.1. Prosjekttype",null,null,"Antall prosjekter innvilget"]
["a. Forebygging,  tidlig innsats og egenmestring",null,null,0]
["b. Habilitering og rehabilitering, herunder hverdagsrehabilitering",null,null,0]
["c. Velferdsteknologiske løsninger\n(Dette punktet gjelder ikke for øremerkede midler til \"Nasjonalt velferdsteknologiprogram- innføring av velferdsteknologiskeløsninger (Omsorg 2020)\"\nRapporteringen for velferdsteknologiprogram skal gjøres under punkt 7) ",null,null,0]
["d. Samspill med pårørende og frivillige i omsorgssektoren generelt og demensomsorgen spesielt",null,null,0]
["e. Legemiddelhåndtering",null,null,0]
["f. Ernæring",null,null,0]
["g. Fritidsaktivitet med assistanse",null,null,0]
["h. Kulturopplevelser",null,null,0]
["i. Annet",null,null,0]
["SUM (5.1) :",null,null,{"$f":"SUM(D76:D84)","v":0}]
["6. Tilskudd til Innovasjonsprosjekter"]
["6.1. Totalt søkt beløp  ",null,null,0]
["6.2. Utbetalt beløp  ",null,null,0]
["6.3. Ubenyttet beløp ",null,null,0]
["7. Nasjonalt velferdsteknologiprogram - innføring av velferdsteknologiske løsninger"]
["7.1. Totalt søkt beløp",null,null,0]
["7.2. Utbetalt beløp",null,null,0]
["7.3. Ubenyttet beløp",null,null,0]

{"sheet":"Hamarøy - Hábmer","index":17,"n_rows":93,"n_cols":4,"rows_kept":93,"cut":false,"hidden":false,"merged":[]}
["1. Måloppnåelse (antall ansatte) til Kompetansetiltak (grunn-, videre- og etterutdanning)"]
["1.1. Videregående skole, fag- og yrkesopplæring innen helse (fagbrev)"]
["Utdanningstype","Fullført utdanning ","Under utdanning, men ikke fullført","Samlet antall fullførte og under utdanning "]
["a. Helsefagarbeider",0,0,{"$f":"B4+C4","v":0}]
["b. Annen utdanning på videregående skolenivå ",0,0,{"$f":"B5+C5","v":0}]
["Sum (1.1) :",{"$f":"SUM(B4:B5)","v":0},{"$f":"SUM(C4:C5)","v":0},0]
["1.2. Fagskoleutdanning"]
["a. Psykisk helsearbeid og rusarbeid",0,0,0]
["b. Eldreomsorg/demens",0,0,0]
["c. Habilitering/rehabilitering",0,0,0]
["d. Kreftomsorg/lindrende behandling",0,0,0]
["e. Veiledning",0,0,0]
["f. Annen fagskoleutdanning ",0,0,0]
["Sum (1.2) :",{"$f":"SUM(B8:B13)","v":0},{"$f":"SUM(C8:C13)","v":0},0]
["1.3. Bachelorutdanning helse- og sosialfag"]
["a. Sykepleie",0,0,0]
["b. Vernepleie",0,0,0]
["c. Fysioterapi",0,0,0]
["d. Ergoterapi",0,0,0]
["e. Sosialt arbeid (sosionom)",0,0,0]
["f. Barnevernspedagogikk",0,0,0]
["g. Annen bachelorutdanning",0,0,0]
["Sum (1.3) :",{"$f":"SUM(B16:B22)","v":0},{"$f":"SUM(C16:C22)","v":0},0]
["1.4. Videreutdanning og mastergradutdanning (påbygg bachelorutdanning)"]
["a. Psykisk helsearbeid og rusarbeid",0,0,0]
["b. Tverrfaglig videreutdanning i psykososialt arbeid med barn og unge",0,0,0]
["c. Eldreomsorg/demens",0,0,0]
["d. Kreftomsorg/lindrende pleie",0,0,0]
["e. Habilitering/rehabilitering",0,0,0]
["f. Veiledning",0,0,0]
["g. Lederutdanning",0,0,0]
["h. Annen videreutdanning og/eller masterutdanning ",0,0,0]
["Sum (1.4) :",{"$f":"SUM(B25:B32)","v":0},{"$f":"SUM(C25:C32)","v":0},0]
["1.5. ABC-opplæring"]
["a. Demensomsorgens ABC",0,0,0]
["b. Eldreomsorgens ABC",0,0,0]
["c. Mitt livs ABC",0,0,{"$f":"B37+C37","v":0}]
["d. Velferdsteknologien ABC",0,0,0]
["e. ABC musikkbasert miljøbehandling",0,0,0]
["Sum (1.5) :",{"$f":"SUM(B35:B39)","v":0},{"$f":"SUM(C35:C39)","v":0},0]
["1.6. Annen internopplæring / korte etterutdanninger mv. "]
["a.  Innen psykisk helsearbeid og rusfeltet",0,0,0]
["b. Innen eldreomsorg og demens",null,null,0]
["c. Annet høyt prioritert internopplæring/etterutdanning",0,0,0]
["Sum (1.6) :",{"$f":"SUM(B42:B44)","v":0},{"$f":"SUM(C42:C44)","v":0},0]
[" 1.7. Andre kompetansehevende tiltak med midler direkte fra fylkesmannen  (utdyp i skriftlig del av rapporteringsskjema)"]
["a. Fylkeskoordinator til prosjekt Menn i helse  (ikke for kommuner)",0,0,0]
["b. Desentralisert utdanning fra høgskoler/universiteter (ikke for kommuner)",0,0,0]
["c. Annet  (ikke forkommuner)",0,0,0]
["Sum (1.7) :",{"$f":"SUM(B47:B49)","v":0},{"$f":"SUM(C47:C49)","v":0},{"$f":"B50+C50","v":0}]
["Kompetansetiltak (måloppnåelse) Totalt :",{"$f":"B6+B14+B23+B33+B40+B45+B50","v":0},{"$f":"C6+C14+C23+C33+C40+C45+C50","v":0},{"$f":"B51+C51","v":0}]
["2. Tilskudd til Kompetansetiltak"]
["2.1. Totalt søkt beløp (Kompetansetiltak totalt)",null,null,0]
["2.2. Utbetalt beløp (Kompetansetiltak totalt)",null,null,{"$f":"SUM(D55:D61)","v":0}]
["a. Videregående skole, fag- og yrkesopplæring innen helse (fagbrev)",null,null,0]
["b. Fagskoleutdanning",null,null,0]
["c. Bachelorutdanning helse- og sosialfag",null,null,0]
["d.  Videreutdanning og mastergradutdanning (påbygg bachelorutdanning)",null,null,0]
["e. ABC-opplæring",null,null,0]
["f. Annen internopplæring / korte etterutdanninger /kurs mv. ",null,null,0]
["g. Andre Kompetansehevende tiltak. Fylkesmannen rapporterer her, ikke kommuner",null,null,0]
["2.3. Ubenyttet beløp (Kompetansetiltak totalt)",null,null,0]
["3. Opplæringstilskudd BPA (brukerstyrt personlig assistanse)"]
["3.1. Opplæringstype",null,null,"Antall personer innvilget"]
["a. Arbeidsledere som har fått tilskudd til opplæring",null,null,0]
["b. Saksbehandlere som har fått tilskudd til opplæring",null,null,0]
["c. Assistenter som har fått tilskudd til opplæring",null,null,0]
["d. Uspesifisert ",null,null,0]
["SUM (3.1) :",null,null,{"$f":"SUM(D65:D68)","v":0}]
["4. Tilskudd til BPA"]
["4.1. Totalt søkt beløp ",null,null,0]
["4.2. Utbetalt beløp  ",null,null,0]
["4.3. Ubenyttet beløp ",null,null,0]
["5. Innovasjonsprosjekter"]
["5.1. Prosjekttype",null,null,"Antall prosjekter innvilget"]
["a. Forebygging,  tidlig innsats og egenmestring",null,null,0]
["b. Habilitering og rehabilitering, herunder hverdagsrehabilitering",null,null,0]
["c. Velferdsteknologiske løsninger\n(Dette punktet gjelder ikke for øremerkede midler til \"Nasjonalt velferdsteknologiprogram- innføring av velferdsteknologiskeløsninger (Omsorg 2020)\"\nRapporteringen for velferdsteknologiprogram skal gjøres under punkt 7) ",null,null,0]
["d. Samspill med pårørende og frivillige i omsorgssektoren generelt og demensomsorgen spesielt",null,null,0]
["e. Legemiddelhåndtering",null,null,0]
["f. Ernæring",null,null,0]
["g. Fritidsaktivitet med assistanse",null,null,0]
["h. Kulturopplevelser",null,null,0]
["i. Annet",null,null,0]
["SUM (5.1) :",null,null,{"$f":"SUM(D76:D84)","v":0}]
["6. Tilskudd til Innovasjonsprosjekter"]
["6.1. Totalt søkt beløp  ",null,null,0]
["6.2. Utbetalt beløp  ",null,null,0]
["6.3. Ubenyttet beløp ",null,null,0]
["7. Nasjonalt velferdsteknologiprogram - innføring av velferdsteknologiske løsninger"]
["7.1. Totalt søkt beløp",null,null,0]
["7.2. Utbetalt beløp",null,null,0]
["7.3. Ubenyttet beløp",null,null,0]

{"sheet":"Steigen","index":18,"n_rows":93,"n_cols":4,"rows_kept":93,"cut":false,"hidden":false,"merged":[]}
["1. Måloppnåelse (antall ansatte) til Kompetansetiltak (grunn-, videre- og etterutdanning)"]
["1.1. Videregående skole, fag- og yrkesopplæring innen helse (fagbrev)"]
["Utdanningstype","Fullført utdanning ","Under utdanning, men ikke fullført","Samlet antall fullførte og under utdanning "]
["a. Helsefagarbeider",0,0,{"$f":"B4+C4","v":0}]
["b. Annen utdanning på videregående skolenivå ",0,0,{"$f":"B5+C5","v":0}]
["Sum (1.1) :",{"$f":"SUM(B4:B5)","v":0},{"$f":"SUM(C4:C5)","v":0},0]
["1.2. Fagskoleutdanning"]
["a. Psykisk helsearbeid og rusarbeid",0,0,0]
["b. Eldreomsorg/demens",0,0,0]
["c. Habilitering/rehabilitering",0,0,0]
["d. Kreftomsorg/lindrende behandling",0,0,0]
["e. Veiledning",0,0,0]
["f. Annen fagskoleutdanning ",0,0,0]
["Sum (1.2) :",{"$f":"SUM(B8:B13)","v":0},{"$f":"SUM(C8:C13)","v":0},0]
["1.3. Bachelorutdanning helse- og sosialfag"]
["a. Sykepleie",0,0,0]
["b. Vernepleie",0,0,0]
["c. Fysioterapi",0,0,0]
["d. Ergoterapi",0,0,0]
["e. Sosialt arbeid (sosionom)",0,0,0]
["f. Barnevernspedagogikk",0,0,0]
["g. Annen bachelorutdanning",0,0,0]
["Sum (1.3) :",{"$f":"SUM(B16:B22)","v":0},{"$f":"SUM(C16:C22)","v":0},0]
["1.4. Videreutdanning og mastergradutdanning (påbygg bachelorutdanning)"]
["a. Psykisk helsearbeid og rusarbeid",0,0,0]
["b. Tverrfaglig videreutdanning i psykososialt arbeid med barn og unge",0,0,0]
["c. Eldreomsorg/demens",0,0,0]
["d. Kreftomsorg/lindrende pleie",0,0,0]
["e. Habilitering/rehabilitering",0,0,0]
["f. Veiledning",0,0,0]
["g. Lederutdanning",0,0,0]
["h. Annen videreutdanning og/eller masterutdanning ",0,0,0]
["Sum (1.4) :",{"$f":"SUM(B25:B32)","v":0},{"$f":"SUM(C25:C32)","v":0},0]
["1.5. ABC-opplæring"]
["a. Demensomsorgens ABC",0,0,0]
["b. Eldreomsorgens ABC",0,0,0]
["c. Mitt livs ABC",0,0,{"$f":"B37+C37","v":0}]
["d. Velferdsteknologien ABC",0,0,0]
["e. ABC musikkbasert miljøbehandling",0,0,0]
["Sum (1.5) :",{"$f":"SUM(B35:B39)","v":0},{"$f":"SUM(C35:C39)","v":0},0]
["1.6. Annen internopplæring / korte etterutdanninger mv. "]
["a.  Innen psykisk helsearbeid og rusfeltet",0,0,0]
["b. Innen eldreomsorg og demens",null,null,0]
["c. Annet høyt prioritert internopplæring/etterutdanning",0,0,0]
["Sum (1.6) :",{"$f":"SUM(B42:B44)","v":0},{"$f":"SUM(C42:C44)","v":0},0]
[" 1.7. Andre kompetansehevende tiltak med midler direkte fra fylkesmannen  (utdyp i skriftlig del av rapporteringsskjema)"]
["a. Fylkeskoordinator til prosjekt Menn i helse  (ikke for kommuner)",0,0,0]
["b. Desentralisert utdanning fra høgskoler/universiteter (ikke for kommuner)",0,0,0]
["c. Annet  (ikke forkommuner)",0,0,0]
["Sum (1.7) :",{"$f":"SUM(B47:B49)","v":0},{"$f":"SUM(C47:C49)","v":0},{"$f":"B50+C50","v":0}]
["Kompetansetiltak (måloppnåelse) Totalt :",{"$f":"B6+B14+B23+B33+B40+B45+B50","v":0},{"$f":"C6+C14+C23+C33+C40+C45+C50","v":0},{"$f":"B51+C51","v":0}]
["2. Tilskudd til Kompetansetiltak"]
["2.1. Totalt søkt beløp (Kompetansetiltak totalt)",null,null,0]
["2.2. Utbetalt beløp (Kompetansetiltak totalt)",null,null,{"$f":"SUM(D55:D61)","v":0}]
["a. Videregående skole, fag- og yrkesopplæring innen helse (fagbrev)",null,null,0]
["b. Fagskoleutdanning",null,null,0]
["c. Bachelorutdanning helse- og sosialfag",null,null,0]
["d.  Videreutdanning og mastergradutdanning (påbygg bachelorutdanning)",null,null,0]
["e. ABC-opplæring",null,null,0]
["f. Annen internopplæring / korte etterutdanninger /kurs mv. ",null,null,0]
["g. Andre Kompetansehevende tiltak. Fylkesmannen rapporterer her, ikke kommuner",null,null,0]
["2.3. Ubenyttet beløp (Kompetansetiltak totalt)",null,null,0]
["3. Opplæringstilskudd BPA (brukerstyrt personlig assistanse)"]
["3.1. Opplæringstype",null,null,"Antall personer innvilget"]
["a. Arbeidsledere som har fått tilskudd til opplæring",null,null,0]
["b. Saksbehandlere som har fått tilskudd til opplæring",null,null,0]
["c. Assistenter som har fått tilskudd til opplæring",null,null,0]
["d. Uspesifisert ",null,null,0]
["SUM (3.1) :",null,null,{"$f":"SUM(D65:D68)","v":0}]
["4. Tilskudd til BPA"]
["4.1. Totalt søkt beløp ",null,null,0]
["4.2. Utbetalt beløp  ",null,null,0]
["4.3. Ubenyttet beløp ",null,null,0]
["5. Innovasjonsprosjekter"]
["5.1. Prosjekttype",null,null,"Antall prosjekter innvilget"]
["a. Forebygging,  tidlig innsats og egenmestring",null,null,0]
["b. Habilitering og rehabilitering, herunder hverdagsrehabilitering",null,null,0]
["c. Velferdsteknologiske løsninger\n(Dette punktet gjelder ikke for øremerkede midler til \"Nasjonalt velferdsteknologiprogram- innføring av velferdsteknologiskeløsninger (Omsorg 2020)\"\nRapporteringen for velferdsteknologiprogram skal gjøres under punkt 7) ",null,null,0]
["d. Samspill med pårørende og frivillige i omsorgssektoren generelt og demensomsorgen spesielt",null,null,0]
["e. Legemiddelhåndtering",null,null,0]
["f. Ernæring",null,null,0]
["g. Fritidsaktivitet med assistanse",null,null,0]
["h. Kulturopplevelser",null,null,0]
["i. Annet",null,null,0]
["SUM (5.1) :",null,null,{"$f":"SUM(D76:D84)","v":0}]
["6. Tilskudd til Innovasjonsprosjekter"]
["6.1. Totalt søkt beløp  ",null,null,0]
["6.2. Utbetalt beløp  ",null,null,0]
["6.3. Ubenyttet beløp ",null,null,0]
["7. Nasjonalt velferdsteknologiprogram - innføring av velferdsteknologiske løsninger"]
["7.1. Totalt søkt beløp",null,null,0]
["7.2. Utbetalt beløp",null,null,0]
["7.3. Ubenyttet beløp",null,null,0]

{"sheet":"Sørfold","index":19,"n_rows":93,"n_cols":4,"rows_kept":93,"cut":false,"hidden":false,"merged":[]}
["1. Måloppnåelse (antall ansatte) til Kompetansetiltak (grunn-, videre- og etterutdanning)"]
["1.1. Videregående skole, fag- og yrkesopplæring innen helse (fagbrev)"]
["Utdanningstype","Fullført utdanning ","Under utdanning, men ikke fullført","Samlet antall fullførte og under utdanning "]
["a. Helsefagarbeider",0,0,{"$f":"B4+C4","v":0}]
["b. Annen utdanning på videregående skolenivå ",0,0,{"$f":"B5+C5","v":0}]
["Sum (1.1) :",{"$f":"SUM(B4:B5)","v":0},{"$f":"SUM(C4:C5)","v":0},0]
["1.2. Fagskoleutdanning"]
["a. Psykisk helsearbeid og rusarbeid",0,0,0]
["b. Eldreomsorg/demens",0,0,0]
["c. Habilitering/rehabilitering",0,0,0]
["d. Kreftomsorg/lindrende behandling",0,0,0]
["e. Veiledning",0,0,0]
["f. Annen fagskoleutdanning ",0,0,0]
["Sum (1.2) :",{"$f":"SUM(B8:B13)","v":0},{"$f":"SUM(C8:C13)","v":0},0]
["1.3. Bachelorutdanning helse- og sosialfag"]
["a. Sykepleie",0,0,0]
["b. Vernepleie",0,0,0]
["c. Fysioterapi",0,0,0]
["d. Ergoterapi",0,0,0]
["e. Sosialt arbeid (sosionom)",0,0,0]
["f. Barnevernspedagogikk",0,0,0]
["g. Annen bachelorutdanning",0,0,0]
["Sum (1.3) :",{"$f":"SUM(B16:B22)","v":0},{"$f":"SUM(C16:C22)","v":0},0]
["1.4. Videreutdanning og mastergradutdanning (påbygg bachelorutdanning)"]
["a. Psykisk helsearbeid og rusarbeid",0,0,0]
["b. Tverrfaglig videreutdanning i psykososialt arbeid med barn og unge",0,0,0]
["c. Eldreomsorg/demens",0,0,0]
["d. Kreftomsorg/lindrende pleie",0,0,0]
["e. Habilitering/rehabilitering",0,0,0]
["f. Veiledning",0,0,0]
["g. Lederutdanning",0,0,0]
["h. Annen videreutdanning og/eller masterutdanning ",0,0,0]
["Sum (1.4) :",{"$f":"SUM(B25:B32)","v":0},{"$f":"SUM(C25:C32)","v":0},0]
["1.5. ABC-opplæring"]
["a. Demensomsorgens ABC",0,0,0]
["b. Eldreomsorgens ABC",0,0,0]
["c. Mitt livs ABC",0,0,{"$f":"B37+C37","v":0}]
["d. Velferdsteknologien ABC",0,0,0]
["e. ABC musikkbasert miljøbehandling",0,0,0]
["Sum (1.5) :",{"$f":"SUM(B35:B39)","v":0},{"$f":"SUM(C35:C39)","v":0},0]
["1.6. Annen internopplæring / korte etterutdanninger mv. "]
["a.  Innen psykisk helsearbeid og rusfeltet",0,0,0]
["b. Innen eldreomsorg og demens",null,null,0]
["c. Annet høyt prioritert internopplæring/etterutdanning",0,0,0]
["Sum (1.6) :",{"$f":"SUM(B42:B44)","v":0},{"$f":"SUM(C42:C44)","v":0},0]
[" 1.7. Andre kompetansehevende tiltak med midler direkte fra fylkesmannen  (utdyp i skriftlig del av rapporteringsskjema)"]
["a. Fylkeskoordinator til prosjekt Menn i helse  (ikke for kommuner)",0,0,0]
["b. Desentralisert utdanning fra høgskoler/universiteter (ikke for kommuner)",0,0,0]
["c. Annet  (ikke forkommuner)",0,0,0]
["Sum (1.7) :",{"$f":"SUM(B47:B49)","v":0},{"$f":"SUM(C47:C49)","v":0},{"$f":"B50+C50","v":0}]
["Kompetansetiltak (måloppnåelse) Totalt :",{"$f":"B6+B14+B23+B33+B40+B45+B50","v":0},{"$f":"C6+C14+C23+C33+C40+C45+C50","v":0},{"$f":"B51+C51","v":0}]
["2. Tilskudd til Kompetansetiltak"]
["2.1. Totalt søkt beløp (Kompetansetiltak totalt)",null,null,0]
["2.2. Utbetalt beløp (Kompetansetiltak totalt)",null,null,{"$f":"SUM(D55:D61)","v":0}]
["a. Videregående skole, fag- og yrkesopplæring innen helse (fagbrev)",null,null,0]
["b. Fagskoleutdanning",null,null,0]
["c. Bachelorutdanning helse- og sosialfag",null,null,0]
["d.  Videreutdanning og mastergradutdanning (påbygg bachelorutdanning)",null,null,0]
["e. ABC-opplæring",null,null,0]
["f. Annen internopplæring / korte etterutdanninger /kurs mv. ",null,null,0]
["g. Andre Kompetansehevende tiltak. Fylkesmannen rapporterer her, ikke kommuner",null,null,0]
["2.3. Ubenyttet beløp (Kompetansetiltak totalt)",null,null,0]
["3. Opplæringstilskudd BPA (brukerstyrt personlig assistanse)"]
["3.1. Opplæringstype",null,null,"Antall personer innvilget"]
["a. Arbeidsledere som har fått tilskudd til opplæring",null,null,0]
["b. Saksbehandlere som har fått tilskudd til opplæring",null,null,0]
["c. Assistenter som har fått tilskudd til opplæring",null,null,0]
["d. Uspesifisert ",null,null,0]
["SUM (3.1) :",null,null,{"$f":"SUM(D65:D68)","v":0}]
["4. Tilskudd til BPA"]
["4.1. Totalt søkt beløp ",null,null,0]
["4.2. Utbetalt beløp  ",null,null,0]
["4.3. Ubenyttet beløp ",null,null,0]
["5. Innovasjonsprosjekter"]
["5.1. Prosjekttype",null,null,"Antall prosjekter innvilget"]
["a. Forebygging,  tidlig innsats og egenmestring",null,null,0]
["b. Habilitering og rehabilitering, herunder hverdagsrehabilitering",null,null,0]
["c. Velferdsteknologiske løsninger\n(Dette punktet gjelder ikke for øremerkede midler til \"Nasjonalt velferdsteknologiprogram- innføring av velferdsteknologiskeløsninger (Omsorg 2020)\"\nRapporteringen for velferdsteknologiprogram skal gjøres under punkt 7) ",null,null,0]
["d. Samspill med pårørende og frivillige i omsorgssektoren generelt og demensomsorgen spesielt",null,null,0]
["e. Legemiddelhåndtering",null,null,0]
["f. Ernæring",null,null,0]
["g. Fritidsaktivitet med assistanse",null,null,0]
["h. Kulturopplevelser",null,null,0]
["i. Annet",null,null,0]
["SUM (5.1) :",null,null,{"$f":"SUM(D76:D84)","v":0}]
["6. Tilskudd til Innovasjonsprosjekter"]
["6.1. Totalt søkt beløp  ",null,null,0]
["6.2. Utbetalt beløp  ",null,null,0]
["6.3. Ubenyttet beløp ",null,null,0]
["7. Nasjonalt velferdsteknologiprogram - innføring av velferdsteknologiske løsninger"]
["7.1. Totalt søkt beløp",null,null,0]
["7.2. Utbetalt beløp",null,null,0]
["7.3. Ubenyttet beløp",null,null,0]

{"sheet":"Fauske - Fuosko","index":20,"n_rows":93,"n_cols":4,"rows_kept":93,"cut":false,"hidden":false,"merged":[]}
["1. Måloppnåelse (antall ansatte) til Kompetansetiltak (grunn-, videre- og etterutdanning)"]
["1.1. Videregående skole, fag- og yrkesopplæring innen helse (fagbrev)"]
["Utdanningstype","Fullført utdanning ","Under utdanning, men ikke fullført","Samlet antall fullførte og under utdanning "]
["a. Helsefagarbeider",0,0,{"$f":"B4+C4","v":0}]
["b. Annen utdanning på videregående skolenivå ",0,0,{"$f":"B5+C5","v":0}]
["Sum (1.1) :",{"$f":"SUM(B4:B5)","v":0},{"$f":"SUM(C4:C5)","v":0},0]
["1.2. Fagskoleutdanning"]
["a. Psykisk helsearbeid og rusarbeid",0,0,0]
["b. Eldreomsorg/demens",0,0,0]
["c. Habilitering/rehabilitering",0,0,0]
["d. Kreftomsorg/lindrende behandling",0,0,0]
["e. Veiledning",0,0,0]
["f. Annen fagskoleutdanning ",0,0,0]
["Sum (1.2) :",{"$f":"SUM(B8:B13)","v":0},{"$f":"SUM(C8:C13)","v":0},0]
["1.3. Bachelorutdanning helse- og sosialfag"]
["a. Sykepleie",0,0,0]
["b. Vernepleie",0,0,0]
["c. Fysioterapi",0,0,0]
["d. Ergoterapi",0,0,0]
["e. Sosialt arbeid (sosionom)",0,0,0]
["f. Barnevernspedagogikk",0,0,0]
["g. Annen bachelorutdanning",0,0,0]
["Sum (1.3) :",{"$f":"SUM(B16:B22)","v":0},{"$f":"SUM(C16:C22)","v":0},0]
["1.4. Videreutdanning og mastergradutdanning (påbygg bachelorutdanning)"]
["a. Psykisk helsearbeid og rusarbeid",0,0,0]
["b. Tverrfaglig videreutdanning i psykososialt arbeid med barn og unge",0,0,0]
["c. Eldreomsorg/demens",0,0,0]
["d. Kreftomsorg/lindrende pleie",0,0,0]
["e. Habilitering/rehabilitering",0,0,0]
["f. Veiledning",0,0,0]
["g. Lederutdanning",0,0,0]
["h. Annen videreutdanning og/eller masterutdanning ",0,0,0]
["Sum (1.4) :",{"$f":"SUM(B25:B32)","v":0},{"$f":"SUM(C25:C32)","v":0},0]
["1.5. ABC-opplæring"]
["a. Demensomsorgens ABC",0,0,0]
["b. Eldreomsorgens ABC",0,0,0]
["c. Mitt livs ABC",0,0,{"$f":"B37+C37","v":0}]
["d. Velferdsteknologien ABC",0,0,0]
["e. ABC musikkbasert miljøbehandling",0,0,0]
["Sum (1.5) :",{"$f":"SUM(B35:B39)","v":0},{"$f":"SUM(C35:C39)","v":0},0]
["1.6. Annen internopplæring / korte etterutdanninger mv. "]
["a.  Innen psykisk helsearbeid og rusfeltet",0,0,0]
["b. Innen eldreomsorg og demens",null,null,0]
["c. Annet høyt prioritert internopplæring/etterutdanning",0,0,0]
["Sum (1.6) :",{"$f":"SUM(B42:B44)","v":0},{"$f":"SUM(C42:C44)","v":0},0]
[" 1.7. Andre kompetansehevende tiltak med midler direkte fra fylkesmannen  (utdyp i skriftlig del av rapporteringsskjema)"]
["a. Fylkeskoordinator til prosjekt Menn i helse  (ikke for kommuner)",0,0,0]
["b. Desentralisert utdanning fra høgskoler/universiteter (ikke for kommuner)",0,0,0]
["c. Annet  (ikke forkommuner)",0,0,0]
["Sum (1.7) :",{"$f":"SUM(B47:B49)","v":0},{"$f":"SUM(C47:C49)","v":0},{"$f":"B50+C50","v":0}]
["Kompetansetiltak (måloppnåelse) Totalt :",{"$f":"B6+B14+B23+B33+B40+B45+B50","v":0},{"$f":"C6+C14+C23+C33+C40+C45+C50","v":0},{"$f":"B51+C51","v":0}]
["2. Tilskudd til Kompetansetiltak"]
["2.1. Totalt søkt beløp (Kompetansetiltak totalt)",null,null,0]
["2.2. Utbetalt beløp (Kompetansetiltak totalt)",null,null,{"$f":"SUM(D55:D61)","v":0}]
["a. Videregående skole, fag- og yrkesopplæring innen helse (fagbrev)",null,null,0]
["b. Fagskoleutdanning",null,null,0]
["c. Bachelorutdanning helse- og sosialfag",null,null,0]
["d.  Videreutdanning og mastergradutdanning (påbygg bachelorutdanning)",null,null,0]
["e. ABC-opplæring",null,null,0]
["f. Annen internopplæring / korte etterutdanninger /kurs mv. ",null,null,0]
["g. Andre Kompetansehevende tiltak. Fylkesmannen rapporterer her, ikke kommuner",null,null,0]
["2.3. Ubenyttet beløp (Kompetansetiltak totalt)",null,null,0]
["3. Opplæringstilskudd BPA (brukerstyrt personlig assistanse)"]
["3.1. Opplæringstype",null,null,"Antall personer innvilget"]
["a. Arbeidsledere som har fått tilskudd til opplæring",null,null,0]
["b. Saksbehandlere som har fått tilskudd til opplæring",null,null,0]
["c. Assistenter som har fått tilskudd til opplæring",null,null,0]
["d. Uspesifisert ",null,null,0]
["SUM (3.1) :",null,null,{"$f":"SUM(D65:D68)","v":0}]
["4. Tilskudd til BPA"]
["4.1. Totalt søkt beløp ",null,null,0]
["4.2. Utbetalt beløp  ",null,null,0]
["4.3. Ubenyttet beløp ",null,null,0]
["5. Innovasjonsprosjekter"]
["5.1. Prosjekttype",null,null,"Antall prosjekter innvilget"]
["a. Forebygging,  tidlig innsats og egenmestring",null,null,0]
["b. Habilitering og rehabilitering, herunder hverdagsrehabilitering",null,null,0]
["c. Velferdsteknologiske løsninger\n(Dette punktet gjelder ikke for øremerkede midler til \"Nasjonalt velferdsteknologiprogram- innføring av velferdsteknologiskeløsninger (Omsorg 2020)\"\nRapporteringen for velferdsteknologiprogram skal gjøres under punkt 7) ",null,null,0]
["d. Samspill med pårørende og frivillige i omsorgssektoren generelt og demensomsorgen spesielt",null,null,0]
["e. Legemiddelhåndtering",null,null,0]
["f. Ernæring",null,null,0]
["g. Fritidsaktivitet med assistanse",null,null,0]
["h. Kulturopplevelser",null,null,0]
["i. Annet",null,null,0]
["SUM (5.1) :",null,null,{"$f":"SUM(D76:D84)","v":0}]
["6. Tilskudd til Innovasjonsprosjekter"]
["6.1. Totalt søkt beløp  ",null,null,0]
["6.2. Utbetalt beløp  ",null,null,0]
["6.3. Ubenyttet beløp ",null,null,0]
["7. Nasjonalt velferdsteknologiprogram - innføring av velferdsteknologiske løsninger"]
["7.1. Totalt søkt beløp",null,null,0]
["7.2. Utbetalt beløp",null,null,0]
["7.3. Ubenyttet beløp",null,null,0]

{"sheet":"Saltdal","index":21,"n_rows":93,"n_cols":4,"rows_kept":93,"cut":false,"hidden":false,"merged":[]}
["1. Måloppnåelse (antall ansatte) til Kompetansetiltak (grunn-, videre- og etterutdanning)"]
["1.1. Videregående skole, fag- og yrkesopplæring innen helse (fagbrev)"]
["Utdanningstype","Fullført utdanning ","Under utdanning, men ikke fullført","Samlet antall fullførte og under utdanning "]
["a. Helsefagarbeider",0,0,{"$f":"B4+C4","v":0}]
["b. Annen utdanning på videregående skolenivå ",0,0,{"$f":"B5+C5","v":0}]
["Sum (1.1) :",{"$f":"SUM(B4:B5)","v":0},{"$f":"SUM(C4:C5)","v":0},0]
["1.2. Fagskoleutdanning"]
["a. Psykisk helsearbeid og rusarbeid",0,0,0]
["b. Eldreomsorg/demens",0,0,0]
["c. Habilitering/rehabilitering",0,0,0]
["d. Kreftomsorg/lindrende behandling",0,0,0]
["e. Veiledning",0,0,0]
["f. Annen fagskoleutdanning ",0,0,0]
["Sum (1.2) :",{"$f":"SUM(B8:B13)","v":0},{"$f":"SUM(C8:C13)","v":0},0]
["1.3. Bachelorutdanning helse- og sosialfag"]
["a. Sykepleie",0,0,0]
["b. Vernepleie",0,0,0]
["c. Fysioterapi",0,0,0]
["d. Ergoterapi",0,0,0]
["e. Sosialt arbeid (sosionom)",0,0,0]
["f. Barnevernspedagogikk",0,0,0]
["g. Annen bachelorutdanning",0,0,0]
["Sum (1.3) :",{"$f":"SUM(B16:B22)","v":0},{"$f":"SUM(C16:C22)","v":0},0]
["1.4. Videreutdanning og mastergradutdanning (påbygg bachelorutdanning)"]
["a. Psykisk helsearbeid og rusarbeid",0,0,0]
["b. Tverrfaglig videreutdanning i psykososialt arbeid med barn og unge",0,0,0]
["c. Eldreomsorg/demens",0,0,0]
["d. Kreftomsorg/lindrende pleie",0,0,0]
["e. Habilitering/rehabilitering",0,0,0]
["f. Veiledning",0,0,0]
["g. Lederutdanning",0,0,0]
["h. Annen videreutdanning og/eller masterutdanning ",0,0,0]
["Sum (1.4) :",{"$f":"SUM(B25:B32)","v":0},{"$f":"SUM(C25:C32)","v":0},0]
["1.5. ABC-opplæring"]
["a. Demensomsorgens ABC",0,0,0]
["b. Eldreomsorgens ABC",0,0,0]
["c. Mitt livs ABC",0,0,{"$f":"B37+C37","v":0}]
["d. Velferdsteknologien ABC",0,0,0]
["e. ABC musikkbasert miljøbehandling",0,0,0]
["Sum (1.5) :",{"$f":"SUM(B35:B39)","v":0},{"$f":"SUM(C35:C39)","v":0},0]
["1.6. Annen internopplæring / korte etterutdanninger mv. "]
["a.  Innen psykisk helsearbeid og rusfeltet",0,0,0]
["b. Innen eldreomsorg og demens",null,null,0]
["c. Annet høyt prioritert internopplæring/etterutdanning",0,0,0]
["Sum (1.6) :",{"$f":"SUM(B42:B44)","v":0},{"$f":"SUM(C42:C44)","v":0},0]
[" 1.7. Andre kompetansehevende tiltak med midler direkte fra fylkesmannen  (utdyp i skriftlig del av rapporteringsskjema)"]
["a. Fylkeskoordinator til prosjekt Menn i helse  (ikke for kommuner)",0,0,0]
["b. Desentralisert utdanning fra høgskoler/universiteter (ikke for kommuner)",0,0,0]
["c. Annet  (ikke forkommuner)",0,0,0]
["Sum (1.7) :",{"$f":"SUM(B47:B49)","v":0},{"$f":"SUM(C47:C49)","v":0},{"$f":"B50+C50","v":0}]
["Kompetansetiltak (måloppnåelse) Totalt :",{"$f":"B6+B14+B23+B33+B40+B45+B50","v":0},{"$f":"C6+C14+C23+C33+C40+C45+C50","v":0},{"$f":"B51+C51","v":0}]
["2. Tilskudd til Kompetansetiltak"]
["2.1. Totalt søkt beløp (Kompetansetiltak totalt)",null,null,0]
["2.2. Utbetalt beløp (Kompetansetiltak totalt)",null,null,{"$f":"SUM(D55:D61)","v":0}]
["a. Videregående skole, fag- og yrkesopplæring innen helse (fagbrev)",null,null,0]
["b. Fagskoleutdanning",null,null,0]
["c. Bachelorutdanning helse- og sosialfag",null,null,0]
["d.  Videreutdanning og mastergradutdanning (påbygg bachelorutdanning)",null,null,0]
["e. ABC-opplæring",null,null,0]
["f. Annen internopplæring / korte etterutdanninger /kurs mv. ",null,null,0]
["g. Andre Kompetansehevende tiltak. Fylkesmannen rapporterer her, ikke kommuner",null,null,0]
["2.3. Ubenyttet beløp (Kompetansetiltak totalt)",null,null,0]
["3. Opplæringstilskudd BPA (brukerstyrt personlig assistanse)"]
["3.1. Opplæringstype",null,null,"Antall personer innvilget"]
["a. Arbeidsledere som har fått tilskudd til opplæring",null,null,0]
["b. Saksbehandlere som har fått tilskudd til opplæring",null,null,0]
["c. Assistenter som har fått tilskudd til opplæring",null,null,0]
["d. Uspesifisert ",null,null,0]
["SUM (3.1) :",null,null,{"$f":"SUM(D65:D68)","v":0}]
["4. Tilskudd til BPA"]
["4.1. Totalt søkt beløp ",null,null,0]
["4.2. Utbetalt beløp  ",null,null,0]
["4.3. Ubenyttet beløp ",null,null,0]
["5. Innovasjonsprosjekter"]
["5.1. Prosjekttype",null,null,"Antall prosjekter innvilget"]
["a. Forebygging,  tidlig innsats og egenmestring",null,null,0]
["b. Habilitering og rehabilitering, herunder hverdagsrehabilitering",null,null,0]
["c. Velferdsteknologiske løsninger\n(Dette punktet gjelder ikke for øremerkede midler til \"Nasjonalt velferdsteknologiprogram- innføring av velferdsteknologiskeløsninger (Omsorg 2020)\"\nRapporteringen for velferdsteknologiprogram skal gjøres under punkt 7) ",null,null,0]
["d. Samspill med pårørende og frivillige i omsorgssektoren generelt og demensomsorgen spesielt",null,null,0]
["e. Legemiddelhåndtering",null,null,0]
["f. Ernæring",null,null,0]
["g. Fritidsaktivitet med assistanse",null,null,0]
["h. Kulturopplevelser",null,null,0]
["i. Annet",null,null,0]
["SUM (5.1) :",null,null,{"$f":"SUM(D76:D84)","v":0}]
["6. Tilskudd til Innovasjonsprosjekter"]
["6.1. Totalt søkt beløp  ",null,null,0]
["6.2. Utbetalt beløp  ",null,null,0]
["6.3. Ubenyttet beløp ",null,null,0]
["7. Nasjonalt velferdsteknologiprogram - innføring av velferdsteknologiske løsninger"]
["7.1. Totalt søkt beløp",null,null,0]
["7.2. Utbetalt beløp",null,null,0]
["7.3. Ubenyttet beløp",null,null,0]

{"sheet":"Beiarn","index":22,"n_rows":93,"n_cols":4,"rows_kept":93,"cut":false,"hidden":false,"merged":[]}
["1. Måloppnåelse (antall ansatte) til Kompetansetiltak (grunn-, videre- og etterutdanning)"]
["1.1. Videregående skole, fag- og yrkesopplæring innen helse (fagbrev)"]
["Utdanningstype","Fullført utdanning ","Under utdanning, men ikke fullført","Samlet antall fullførte og under utdanning "]
["a. Helsefagarbeider",0,0,{"$f":"B4+C4","v":0}]
["b. Annen utdanning på videregående skolenivå ",0,0,{"$f":"B5+C5","v":0}]
["Sum (1.1) :",{"$f":"SUM(B4:B5)","v":0},{"$f":"SUM(C4:C5)","v":0},0]
["1.2. Fagskoleutdanning"]
["a. Psykisk helsearbeid og rusarbeid",0,0,0]
["b. Eldreomsorg/demens",0,0,0]
["c. Habilitering/rehabilitering",0,0,0]
["d. Kreftomsorg/lindrende behandling",0,0,0]
["e. Veiledning",0,0,0]
["f. Annen fagskoleutdanning ",0,0,0]
["Sum (1.2) :",{"$f":"SUM(B8:B13)","v":0},{"$f":"SUM(C8:C13)","v":0},0]
["1.3. Bachelorutdanning helse- og sosialfag"]
["a. Sykepleie",0,0,0]
["b. Vernepleie",0,0,0]
["c. Fysioterapi",0,0,0]
["d. Ergoterapi",0,0,0]
["e. Sosialt arbeid (sosionom)",0,0,0]
["f. Barnevernspedagogikk",0,0,0]
["g. Annen bachelorutdanning",0,0,0]
["Sum (1.3) :",{"$f":"SUM(B16:B22)","v":0},{"$f":"SUM(C16:C22)","v":0},0]
["1.4. Videreutdanning og mastergradutdanning (påbygg bachelorutdanning)"]
["a. Psykisk helsearbeid og rusarbeid",0,0,0]
["b. Tverrfaglig videreutdanning i psykososialt arbeid med barn og unge",0,0,0]
["c. Eldreomsorg/demens",0,0,0]
["d. Kreftomsorg/lindrende pleie",0,0,0]
["e. Habilitering/rehabilitering",0,0,0]
["f. Veiledning",0,0,0]
["g. Lederutdanning",0,0,0]
["h. Annen videreutdanning og/eller masterutdanning ",0,0,0]
["Sum (1.4) :",{"$f":"SUM(B25:B32)","v":0},{"$f":"SUM(C25:C32)","v":0},0]
["1.5. ABC-opplæring"]
["a. Demensomsorgens ABC",0,0,0]
["b. Eldreomsorgens ABC",0,0,0]
["c. Mitt livs ABC",0,0,{"$f":"B37+C37","v":0}]
["d. Velferdsteknologien ABC",0,0,0]
["e. ABC musikkbasert miljøbehandling",0,0,0]
["Sum (1.5) :",{"$f":"SUM(B35:B39)","v":0},{"$f":"SUM(C35:C39)","v":0},0]
["1.6. Annen internopplæring / korte etterutdanninger mv. "]
["a.  Innen psykisk helsearbeid og rusfeltet",0,0,0]
["b. Innen eldreomsorg og demens",null,null,0]
["c. Annet høyt prioritert internopplæring/etterutdanning",0,0,0]
["Sum (1.6) :",{"$f":"SUM(B42:B44)","v":0},{"$f":"SUM(C42:C44)","v":0},0]
[" 1.7. Andre kompetansehevende tiltak med midler direkte fra fylkesmannen  (utdyp i skriftlig del av rapporteringsskjema)"]
["a. Fylkeskoordinator til prosjekt Menn i helse  (ikke for kommuner)",0,0,0]
["b. Desentralisert utdanning fra høgskoler/universiteter (ikke for kommuner)",0,0,0]
["c. Annet  (ikke forkommuner)",0,0,0]
["Sum (1.7) :",{"$f":"SUM(B47:B49)","v":0},{"$f":"SUM(C47:C49)","v":0},{"$f":"B50+C50","v":0}]
["Kompetansetiltak (måloppnåelse) Totalt :",{"$f":"B6+B14+B23+B33+B40+B45+B50","v":0},{"$f":"C6+C14+C23+C33+C40+C45+C50","v":0},{"$f":"B51+C51","v":0}]
["2. Tilskudd til Kompetansetiltak"]
["2.1. Totalt søkt beløp (Kompetansetiltak totalt)",null,null,0]
["2.2. Utbetalt beløp (Kompetansetiltak totalt)",null,null,{"$f":"SUM(D55:D61)","v":0}]
["a. Videregående skole, fag- og yrkesopplæring innen helse (fagbrev)",null,null,0]
["b. Fagskoleutdanning",null,null,0]
["c. Bachelorutdanning helse- og sosialfag",null,null,0]
["d.  Videreutdanning og mastergradutdanning (påbygg bachelorutdanning)",null,null,0]
["e. ABC-opplæring",null,null,0]
["f. Annen internopplæring / korte etterutdanninger /kurs mv. ",null,null,0]
["g. Andre Kompetansehevende tiltak. Fylkesmannen rapporterer her, ikke kommuner",null,null,0]
["2.3. Ubenyttet beløp (Kompetansetiltak totalt)",null,null,0]
["3. Opplæringstilskudd BPA (brukerstyrt personlig assistanse)"]
["3.1. Opplæringstype",null,null,"Antall personer innvilget"]
["a. Arbeidsledere som har fått tilskudd til opplæring",null,null,0]
["b. Saksbehandlere som har fått tilskudd til opplæring",null,null,0]
["c. Assistenter som har fått tilskudd til opplæring",null,null,0]
["d. Uspesifisert ",null,null,0]
["SUM (3.1) :",null,null,{"$f":"SUM(D65:D68)","v":0}]
["4. Tilskudd til BPA"]
["4.1. Totalt søkt beløp ",null,null,0]
["4.2. Utbetalt beløp  ",null,null,0]
["4.3. Ubenyttet beløp ",null,null,0]
["5. Innovasjonsprosjekter"]
["5.1. Prosjekttype",null,null,"Antall prosjekter innvilget"]
["a. Forebygging,  tidlig innsats og egenmestring",null,null,0]
["b. Habilitering og rehabilitering, herunder hverdagsrehabilitering",null,null,0]
["c. Velferdsteknologiske løsninger\n(Dette punktet gjelder ikke for øremerkede midler til \"Nasjonalt velferdsteknologiprogram- innføring av velferdsteknologiskeløsninger (Omsorg 2020)\"\nRapporteringen for velferdsteknologiprogram skal gjøres under punkt 7) ",null,null,0]
["d. Samspill med pårørende og frivillige i omsorgssektoren generelt og demensomsorgen spesielt",null,null,0]
["e. Legemiddelhåndtering",null,null,0]
["f. Ernæring",null,null,0]
["g. Fritidsaktivitet med assistanse",null,null,0]
["h. Kulturopplevelser",null,null,0]
["i. Annet",null,null,0]
["SUM (5.1) :",null,null,{"$f":"SUM(D76:D84)","v":0}]
["6. Tilskudd til Innovasjonsprosjekter"]
["6.1. Totalt søkt beløp  ",null,null,0]
["6.2. Utbetalt beløp  ",null,null,0]
["6.3. Ubenyttet beløp ",null,null,0]
["7. Nasjonalt velferdsteknologiprogram - innføring av velferdsteknologiske løsninger"]
["7.1. Totalt søkt beløp",null,null,0]
["7.2. Utbetalt beløp",null,null,0]
["7.3. Ubenyttet beløp",null,null,0]

{"sheet":"Gildeskål","index":23,"n_rows":93,"n_cols":4,"rows_kept":93,"cut":false,"hidden":false,"merged":[]}
["1. Måloppnåelse (antall ansatte) til Kompetansetiltak (grunn-, videre- og etterutdanning)"]
["1.1. Videregående skole, fag- og yrkesopplæring innen helse (fagbrev)"]
["Utdanningstype","Fullført utdanning ","Under utdanning, men ikke fullført","Samlet antall fullførte og under utdanning "]
["a. Helsefagarbeider",0,0,{"$f":"B4+C4","v":0}]
["b. Annen utdanning på videregående skolenivå ",0,0,{"$f":"B5+C5","v":0}]
["Sum (1.1) :",{"$f":"SUM(B4:B5)","v":0},{"$f":"SUM(C4:C5)","v":0},0]
["1.2. Fagskoleutdanning"]
["a. Psykisk helsearbeid og rusarbeid",0,0,0]
["b. Eldreomsorg/demens",0,0,0]
["c. Habilitering/rehabilitering",0,0,0]
["d. Kreftomsorg/lindrende behandling",0,0,0]
["e. Veiledning",0,0,0]
["f. Annen fagskoleutdanning ",0,0,0]
["Sum (1.2) :",{"$f":"SUM(B8:B13)","v":0},{"$f":"SUM(C8:C13)","v":0},0]
["1.3. Bachelorutdanning helse- og sosialfag"]
["a. Sykepleie",0,0,0]
["b. Vernepleie",0,0,0]
["c. Fysioterapi",0,0,0]
["d. Ergoterapi",0,0,0]
["e. Sosialt arbeid (sosionom)",0,0,0]
["f. Barnevernspedagogikk",0,0,0]
["g. Annen bachelorutdanning",0,0,0]
["Sum (1.3) :",{"$f":"SUM(B16:B22)","v":0},{"$f":"SUM(C16:C22)","v":0},0]
["1.4. Videreutdanning og mastergradutdanning (påbygg bachelorutdanning)"]
["a. Psykisk helsearbeid og rusarbeid",0,0,0]
["b. Tverrfaglig videreutdanning i psykososialt arbeid med barn og unge",0,0,0]
["c. Eldreomsorg/demens",0,0,0]
["d. Kreftomsorg/lindrende pleie",0,0,0]
["e. Habilitering/rehabilitering",0,0,0]
["f. Veiledning",0,0,0]
["g. Lederutdanning",0,0,0]
["h. Annen videreutdanning og/eller masterutdanning ",0,0,0]
["Sum (1.4) :",{"$f":"SUM(B25:B32)","v":0},{"$f":"SUM(C25:C32)","v":0},0]
["1.5. ABC-opplæring"]
["a. Demensomsorgens ABC",0,0,0]
["b. Eldreomsorgens ABC",0,0,0]
["c. Mitt livs ABC",0,0,{"$f":"B37+C37","v":0}]
["d. Velferdsteknologien ABC",0,0,0]
["e. ABC musikkbasert miljøbehandling",0,0,0]
["Sum (1.5) :",{"$f":"SUM(B35:B39)","v":0},{"$f":"SUM(C35:C39)","v":0},0]
["1.6. Annen internopplæring / korte etterutdanninger mv. "]
["a.  Innen psykisk helsearbeid og rusfeltet",0,0,0]
["b. Innen eldreomsorg og demens",null,null,0]
["c. Annet høyt prioritert internopplæring/etterutdanning",0,0,0]
["Sum (1.6) :",{"$f":"SUM(B42:B44)","v":0},{"$f":"SUM(C42:C44)","v":0},0]
[" 1.7. Andre kompetansehevende tiltak med midler direkte fra fylkesmannen  (utdyp i skriftlig del av rapporteringsskjema)"]
["a. Fylkeskoordinator til prosjekt Menn i helse  (ikke for kommuner)",0,0,0]
["b. Desentralisert utdanning fra høgskoler/universiteter (ikke for kommuner)",0,0,0]
["c. Annet  (ikke forkommuner)",0,0,0]
["Sum (1.7) :",{"$f":"SUM(B47:B49)","v":0},{"$f":"SUM(C47:C49)","v":0},{"$f":"B50+C50","v":0}]
["Kompetansetiltak (måloppnåelse) Totalt :",{"$f":"B6+B14+B23+B33+B40+B45+B50","v":0},{"$f":"C6+C14+C23+C33+C40+C45+C50","v":0},{"$f":"B51+C51","v":0}]
["2. Tilskudd til Kompetansetiltak"]
["2.1. Totalt søkt beløp (Kompetansetiltak totalt)",null,null,0]
["2.2. Utbetalt beløp (Kompetansetiltak totalt)",null,null,{"$f":"SUM(D55:D61)","v":0}]
["a. Videregående skole, fag- og yrkesopplæring innen helse (fagbrev)",null,null,0]
["b. Fagskoleutdanning",null,null,0]
["c. Bachelorutdanning helse- og sosialfag",null,null,0]
["d.  Videreutdanning og mastergradutdanning (påbygg bachelorutdanning)",null,null,0]
["e. ABC-opplæring",null,null,0]
["f. Annen internopplæring / korte etterutdanninger /kurs mv. ",null,null,0]
["g. Andre Kompetansehevende tiltak. Fylkesmannen rapporterer her, ikke kommuner",null,null,0]
["2.3. Ubenyttet beløp (Kompetansetiltak totalt)",null,null,0]
["3. Opplæringstilskudd BPA (brukerstyrt personlig assistanse)"]
["3.1. Opplæringstype",null,null,"Antall personer innvilget"]
["a. Arbeidsledere som har fått tilskudd til opplæring",null,null,0]
["b. Saksbehandlere som har fått tilskudd til opplæring",null,null,0]
["c. Assistenter som har fått tilskudd til opplæring",null,null,0]
["d. Uspesifisert ",null,null,0]
["SUM (3.1) :",null,null,{"$f":"SUM(D65:D68)","v":0}]
["4. Tilskudd til BPA"]
["4.1. Totalt søkt beløp ",null,null,0]
["4.2. Utbetalt beløp  ",null,null,0]
["4.3. Ubenyttet beløp ",null,null,0]
["5. Innovasjonsprosjekter"]
["5.1. Prosjekttype",null,null,"Antall prosjekter innvilget"]
["a. Forebygging,  tidlig innsats og egenmestring",null,null,0]
["b. Habilitering og rehabilitering, herunder hverdagsrehabilitering",null,null,0]
["c. Velferdsteknologiske løsninger\n(Dette punktet gjelder ikke for øremerkede midler til \"Nasjonalt velferdsteknologiprogram- innføring av velferdsteknologiskeløsninger (Omsorg 2020)\"\nRapporteringen for velferdsteknologiprogram skal gjøres under punkt 7) ",null,null,0]
["d. Samspill med pårørende og frivillige i omsorgssektoren generelt og demensomsorgen spesielt",null,null,0]
["e. Legemiddelhåndtering",null,null,0]
["f. Ernæring",null,null,0]
["g. Fritidsaktivitet med assistanse",null,null,0]
["h. Kulturopplevelser",null,null,0]
["i. Annet",null,null,0]
["SUM (5.1) :",null,null,{"$f":"SUM(D76:D84)","v":0}]
["6. Tilskudd til Innovasjonsprosjekter"]
["6.1. Totalt søkt beløp  ",null,null,0]
["6.2. Utbetalt beløp  ",null,null,0]
["6.3. Ubenyttet beløp ",null,null,0]
["7. Nasjonalt velferdsteknologiprogram - innføring av velferdsteknologiske løsninger"]
["7.1. Totalt søkt beløp",null,null,0]
["7.2. Utbetalt beløp",null,null,0]
["7.3. Ubenyttet beløp",null,null,0]

{"sheet":"Meløy","index":24,"n_rows":93,"n_cols":4,"rows_kept":93,"cut":false,"hidden":false,"merged":[]}
["1. Måloppnåelse (antall ansatte) til Kompetansetiltak (grunn-, videre- og etterutdanning)"]
["1.1. Videregående skole, fag- og yrkesopplæring innen helse (fagbrev)"]
["Utdanningstype","Fullført utdanning ","Under utdanning, men ikke fullført","Samlet antall fullførte og under utdanning "]
["a. Helsefagarbeider",0,0,{"$f":"B4+C4","v":0}]
["b. Annen utdanning på videregående skolenivå ",0,0,{"$f":"B5+C5","v":0}]
["Sum (1.1) :",{"$f":"SUM(B4:B5)","v":0},{"$f":"SUM(C4:C5)","v":0},0]
["1.2. Fagskoleutdanning"]
["a. Psykisk helsearbeid og rusarbeid",0,0,0]
["b. Eldreomsorg/demens",0,0,0]
["c. Habilitering/rehabilitering",0,0,0]
["d. Kreftomsorg/lindrende behandling",0,0,0]
["e. Veiledning",0,0,0]
["f. Annen fagskoleutdanning ",0,0,0]
["Sum (1.2) :",{"$f":"SUM(B8:B13)","v":0},{"$f":"SUM(C8:C13)","v":0},0]
["1.3. Bachelorutdanning helse- og sosialfag"]
["a. Sykepleie",0,0,0]
["b. Vernepleie",0,0,0]
["c. Fysioterapi",0,0,0]
["d. Ergoterapi",0,0,0]
["e. Sosialt arbeid (sosionom)",0,0,0]
["f. Barnevernspedagogikk",0,0,0]
["g. Annen bachelorutdanning",0,0,0]
["Sum (1.3) :",{"$f":"SUM(B16:B22)","v":0},{"$f":"SUM(C16:C22)","v":0},0]
["1.4. Videreutdanning og mastergradutdanning (påbygg bachelorutdanning)"]
["a. Psykisk helsearbeid og rusarbeid",0,0,0]
["b. Tverrfaglig videreutdanning i psykososialt arbeid med barn og unge",0,0,0]
["c. Eldreomsorg/demens",0,0,0]
["d. Kreftomsorg/lindrende pleie",0,0,0]
["e. Habilitering/rehabilitering",0,0,0]
["f. Veiledning",0,0,0]
["g. Lederutdanning",0,0,0]
["h. Annen videreutdanning og/eller masterutdanning ",0,0,0]
["Sum (1.4) :",{"$f":"SUM(B25:B32)","v":0},{"$f":"SUM(C25:C32)","v":0},0]
["1.5. ABC-opplæring"]
["a. Demensomsorgens ABC",0,0,0]
["b. Eldreomsorgens ABC",0,0,0]
["c. Mitt livs ABC",0,0,{"$f":"B37+C37","v":0}]
["d. Velferdsteknologien ABC",0,0,0]
["e. ABC musikkbasert miljøbehandling",0,0,0]
["Sum (1.5) :",{"$f":"SUM(B35:B39)","v":0},{"$f":"SUM(C35:C39)","v":0},0]
["1.6. Annen internopplæring / korte etterutdanninger mv. "]
["a.  Innen psykisk helsearbeid og rusfeltet",0,0,0]
["b. Innen eldreomsorg og demens",null,null,0]
["c. Annet høyt prioritert internopplæring/etterutdanning",0,0,0]
["Sum (1.6) :",{"$f":"SUM(B42:B44)","v":0},{"$f":"SUM(C42:C44)","v":0},0]
[" 1.7. Andre kompetansehevende tiltak med midler direkte fra fylkesmannen  (utdyp i skriftlig del av rapporteringsskjema)"]
["a. Fylkeskoordinator til prosjekt Menn i helse  (ikke for kommuner)",0,0,0]
["b. Desentralisert utdanning fra høgskoler/universiteter (ikke for kommuner)",0,0,0]
["c. Annet  (ikke forkommuner)",0,0,0]
["Sum (1.7) :",{"$f":"SUM(B47:B49)","v":0},{"$f":"SUM(C47:C49)","v":0},{"$f":"B50+C50","v":0}]
["Kompetansetiltak (måloppnåelse) Totalt :",{"$f":"B6+B14+B23+B33+B40+B45+B50","v":0},{"$f":"C6+C14+C23+C33+C40+C45+C50","v":0},{"$f":"B51+C51","v":0}]
["2. Tilskudd til Kompetansetiltak"]
["2.1. Totalt søkt beløp (Kompetansetiltak totalt)",null,null,0]
["2.2. Utbetalt beløp (Kompetansetiltak totalt)",null,null,{"$f":"SUM(D55:D61)","v":0}]
["a. Videregående skole, fag- og yrkesopplæring innen helse (fagbrev)",null,null,0]
["b. Fagskoleutdanning",null,null,0]
["c. Bachelorutdanning helse- og sosialfag",null,null,0]
["d.  Videreutdanning og mastergradutdanning (påbygg bachelorutdanning)",null,null,0]
["e. ABC-opplæring",null,null,0]
["f. Annen internopplæring / korte etterutdanninger /kurs mv. ",null,null,0]
["g. Andre Kompetansehevende tiltak. Fylkesmannen rapporterer her, ikke kommuner",null,null,0]
["2.3. Ubenyttet beløp (Kompetansetiltak totalt)",null,null,0]
["3. Opplæringstilskudd BPA (brukerstyrt personlig assistanse)"]
["3.1. Opplæringstype",null,null,"Antall personer innvilget"]
["a. Arbeidsledere som har fått tilskudd til opplæring",null,null,0]
["b. Saksbehandlere som har fått tilskudd til opplæring",null,null,0]
["c. Assistenter som har fått tilskudd til opplæring",null,null,0]
["d. Uspesifisert ",null,null,0]
["SUM (3.1) :",null,null,{"$f":"SUM(D65:D68)","v":0}]
["4. Tilskudd til BPA"]
["4.1. Totalt søkt beløp ",null,null,0]
["4.2. Utbetalt beløp  ",null,null,0]
["4.3. Ubenyttet beløp ",null,null,0]
["5. Innovasjonsprosjekter"]
["5.1. Prosjekttype",null,null,"Antall prosjekter innvilget"]
["a. Forebygging,  tidlig innsats og egenmestring",null,null,0]
["b. Habilitering og rehabilitering, herunder hverdagsrehabilitering",null,null,0]
["c. Velferdsteknologiske løsninger\n(Dette punktet gjelder ikke for øremerkede midler til \"Nasjonalt velferdsteknologiprogram- innføring av velferdsteknologiskeløsninger (Omsorg 2020)\"\nRapporteringen for velferdsteknologiprogram skal gjøres under punkt 7) ",null,null,0]
["d. Samspill med pårørende og frivillige i omsorgssektoren generelt og demensomsorgen spesielt",null,null,0]
["e. Legemiddelhåndtering",null,null,0]
["f. Ernæring",null,null,0]
["g. Fritidsaktivitet med assistanse",null,null,0]
["h. Kulturopplevelser",null,null,0]
["i. Annet",null,null,0]
["SUM (5.1) :",null,null,{"$f":"SUM(D76:D84)","v":0}]
["6. Tilskudd til Innovasjonsprosjekter"]
["6.1. Totalt søkt beløp  ",null,null,0]
["6.2. Utbetalt beløp  ",null,null,0]
["6.3. Ubenyttet beløp ",null,null,0]
["7. Nasjonalt velferdsteknologiprogram - innføring av velferdsteknologiske løsninger"]
["7.1. Totalt søkt beløp",null,null,0]
["7.2. Utbetalt beløp",null,null,0]
["7.3. Ubenyttet beløp",null,null,0]

{"sheet":"Rødøy","index":25,"n_rows":93,"n_cols":4,"rows_kept":93,"cut":false,"hidden":false,"merged":[]}
["1. Måloppnåelse (antall ansatte) til Kompetansetiltak (grunn-, videre- og etterutdanning)"]
["1.1. Videregående skole, fag- og yrkesopplæring innen helse (fagbrev)"]
["Utdanningstype","Fullført utdanning ","Under utdanning, men ikke fullført","Samlet antall fullførte og under utdanning "]
["a. Helsefagarbeider",0,0,{"$f":"B4+C4","v":0}]
["b. Annen utdanning på videregående skolenivå ",0,0,{"$f":"B5+C5","v":0}]
["Sum (1.1) :",{"$f":"SUM(B4:B5)","v":0},{"$f":"SUM(C4:C5)","v":0},0]
["1.2. Fagskoleutdanning"]
["a. Psykisk helsearbeid og rusarbeid",0,0,0]
["b. Eldreomsorg/demens",0,0,0]
["c. Habilitering/rehabilitering",0,0,0]
["d. Kreftomsorg/lindrende behandling",0,0,0]
["e. Veiledning",0,0,0]
["f. Annen fagskoleutdanning ",0,0,0]
["Sum (1.2) :",{"$f":"SUM(B8:B13)","v":0},{"$f":"SUM(C8:C13)","v":0},0]
["1.3. Bachelorutdanning helse- og sosialfag"]
["a. Sykepleie",0,0,0]
["b. Vernepleie",0,0,0]
["c. Fysioterapi",0,0,0]
["d. Ergoterapi",0,0,0]
["e. Sosialt arbeid (sosionom)",0,0,0]
["f. Barnevernspedagogikk",0,0,0]
["g. Annen bachelorutdanning",0,0,0]
["Sum (1.3) :",{"$f":"SUM(B16:B22)","v":0},{"$f":"SUM(C16:C22)","v":0},0]
["1.4. Videreutdanning og mastergradutdanning (påbygg bachelorutdanning)"]
["a. Psykisk helsearbeid og rusarbeid",0,0,0]
["b. Tverrfaglig videreutdanning i psykososialt arbeid med barn og unge",0,0,0]
["c. Eldreomsorg/demens",0,0,0]
["d. Kreftomsorg/lindrende pleie",0,0,0]
["e. Habilitering/rehabilitering",0,0,0]
["f. Veiledning",0,0,0]
["g. Lederutdanning",0,0,0]
["h. Annen videreutdanning og/eller masterutdanning ",0,0,0]
["Sum (1.4) :",{"$f":"SUM(B25:B32)","v":0},{"$f":"SUM(C25:C32)","v":0},0]
["1.5. ABC-opplæring"]
["a. Demensomsorgens ABC",0,0,0]
["b. Eldreomsorgens ABC",0,0,0]
["c. Mitt livs ABC",0,0,{"$f":"B37+C37","v":0}]
["d. Velferdsteknologien ABC",0,0,0]
["e. ABC musikkbasert miljøbehandling",0,0,0]
["Sum (1.5) :",{"$f":"SUM(B35:B39)","v":0},{"$f":"SUM(C35:C39)","v":0},0]
["1.6. Annen internopplæring / korte etterutdanninger mv. "]
["a.  Innen psykisk helsearbeid og rusfeltet",0,0,0]
["b. Innen eldreomsorg og demens",null,null,0]
["c. Annet høyt prioritert internopplæring/etterutdanning",0,0,0]
["Sum (1.6) :",{"$f":"SUM(B42:B44)","v":0},{"$f":"SUM(C42:C44)","v":0},0]
[" 1.7. Andre kompetansehevende tiltak med midler direkte fra fylkesmannen  (utdyp i skriftlig del av rapporteringsskjema)"]
["a. Fylkeskoordinator til prosjekt Menn i helse  (ikke for kommuner)",0,0,0]
["b. Desentralisert utdanning fra høgskoler/universiteter (ikke for kommuner)",0,0,0]
["c. Annet  (ikke forkommuner)",0,0,0]
["Sum (1.7) :",{"$f":"SUM(B47:B49)","v":0},{"$f":"SUM(C47:C49)","v":0},{"$f":"B50+C50","v":0}]
["Kompetansetiltak (måloppnåelse) Totalt :",{"$f":"B6+B14+B23+B33+B40+B45+B50","v":0},{"$f":"C6+C14+C23+C33+C40+C45+C50","v":0},{"$f":"B51+C51","v":0}]
["2. Tilskudd til Kompetansetiltak"]
["2.1. Totalt søkt beløp (Kompetansetiltak totalt)",null,null,0]
["2.2. Utbetalt beløp (Kompetansetiltak totalt)",null,null,{"$f":"SUM(D55:D61)","v":0}]
["a. Videregående skole, fag- og yrkesopplæring innen helse (fagbrev)",null,null,0]
["b. Fagskoleutdanning",null,null,0]
["c. Bachelorutdanning helse- og sosialfag",null,null,0]
["d.  Videreutdanning og mastergradutdanning (påbygg bachelorutdanning)",null,null,0]
["e. ABC-opplæring",null,null,0]
["f. Annen internopplæring / korte etterutdanninger /kurs mv. ",null,null,0]
["g. Andre Kompetansehevende tiltak. Fylkesmannen rapporterer her, ikke kommuner",null,null,0]
["2.3. Ubenyttet beløp (Kompetansetiltak totalt)",null,null,0]
["3. Opplæringstilskudd BPA (brukerstyrt personlig assistanse)"]
["3.1. Opplæringstype",null,null,"Antall personer innvilget"]
["a. Arbeidsledere som har fått tilskudd til opplæring",null,null,0]
["b. Saksbehandlere som har fått tilskudd til opplæring",null,null,0]
["c. Assistenter som har fått tilskudd til opplæring",null,null,0]
["d. Uspesifisert ",null,null,0]
["SUM (3.1) :",null,null,{"$f":"SUM(D65:D68)","v":0}]
["4. Tilskudd til BPA"]
["4.1. Totalt søkt beløp ",null,null,0]
["4.2. Utbetalt beløp  ",null,null,0]
["4.3. Ubenyttet beløp ",null,null,0]
["5. Innovasjonsprosjekter"]
["5.1. Prosjekttype",null,null,"Antall prosjekter innvilget"]
["a. Forebygging,  tidlig innsats og egenmestring",null,null,0]
["b. Habilitering og rehabilitering, herunder hverdagsrehabilitering",null,null,0]
["c. Velferdsteknologiske løsninger\n(Dette punktet gjelder ikke for øremerkede midler til \"Nasjonalt velferdsteknologiprogram- innføring av velferdsteknologiskeløsninger (Omsorg 2020)\"\nRapporteringen for velferdsteknologiprogram skal gjøres under punkt 7) ",null,null,0]
["d. Samspill med pårørende og frivillige i omsorgssektoren generelt og demensomsorgen spesielt",null,null,0]
["e. Legemiddelhåndtering",null,null,0]
["f. Ernæring",null,null,0]
["g. Fritidsaktivitet med assistanse",null,null,0]
["h. Kulturopplevelser",null,null,0]
["i. Annet",null,null,0]
["SUM (5.1) :",null,null,{"$f":"SUM(D76:D84)","v":0}]
["6. Tilskudd til Innovasjonsprosjekter"]
["6.1. Totalt søkt beløp  ",null,null,0]
["6.2. Utbetalt beløp  ",null,null,0]
["6.3. Ubenyttet beløp ",null,null,0]
["7. Nasjonalt velferdsteknologiprogram - innføring av velferdsteknologiske løsninger"]
["7.1. Totalt søkt beløp",null,null,0]
["7.2. Utbetalt beløp",null,null,0]
["7.3. Ubenyttet beløp",null,null,0]

{"sheet":"Træna","index":26,"n_rows":93,"n_cols":4,"rows_kept":93,"cut":false,"hidden":false,"merged":[]}
["1. Måloppnåelse (antall ansatte) til Kompetansetiltak (grunn-, videre- og etterutdanning)"]
["1.1. Videregående skole, fag- og yrkesopplæring innen helse (fagbrev)"]
["Utdanningstype","Fullført utdanning ","Under utdanning, men ikke fullført","Samlet antall fullførte og under utdanning "]
["a. Helsefagarbeider",0,0,{"$f":"B4+C4","v":0}]
["b. Annen utdanning på videregående skolenivå ",0,0,{"$f":"B5+C5","v":0}]
["Sum (1.1) :",{"$f":"SUM(B4:B5)","v":0},{"$f":"SUM(C4:C5)","v":0},0]
["1.2. Fagskoleutdanning"]
["a. Psykisk helsearbeid og rusarbeid",0,0,0]
["b. Eldreomsorg/demens",0,0,0]
["c. Habilitering/rehabilitering",0,0,0]
["d. Kreftomsorg/lindrende behandling",0,0,0]
["e. Veiledning",0,0,0]
["f. Annen fagskoleutdanning ",0,0,0]
["Sum (1.2) :",{"$f":"SUM(B8:B13)","v":0},{"$f":"SUM(C8:C13)","v":0},0]
["1.3. Bachelorutdanning helse- og sosialfag"]
["a. Sykepleie",0,0,0]
["b. Vernepleie",0,0,0]
["c. Fysioterapi",0,0,0]
["d. Ergoterapi",0,0,0]
["e. Sosialt arbeid (sosionom)",0,0,0]
["f. Barnevernspedagogikk",0,0,0]
["g. Annen bachelorutdanning",0,0,0]
["Sum (1.3) :",{"$f":"SUM(B16:B22)","v":0},{"$f":"SUM(C16:C22)","v":0},0]
["1.4. Videreutdanning og mastergradutdanning (påbygg bachelorutdanning)"]
["a. Psykisk helsearbeid og rusarbeid",0,0,0]
["b. Tverrfaglig videreutdanning i psykososialt arbeid med barn og unge",0,0,0]
["c. Eldreomsorg/demens",0,0,0]
["d. Kreftomsorg/lindrende pleie",0,0,0]
["e. Habilitering/rehabilitering",0,0,0]
["f. Veiledning",0,0,0]
["g. Lederutdanning",0,0,0]
["h. Annen videreutdanning og/eller masterutdanning ",0,0,0]
["Sum (1.4) :",{"$f":"SUM(B25:B32)","v":0},{"$f":"SUM(C25:C32)","v":0},0]
["1.5. ABC-opplæring"]
["a. Demensomsorgens ABC",0,0,0]
["b. Eldreomsorgens ABC",0,0,0]
["c. Mitt livs ABC",0,0,{"$f":"B37+C37","v":0}]
["d. Velferdsteknologien ABC",0,0,0]
["e. ABC musikkbasert miljøbehandling",0,0,0]
["Sum (1.5) :",{"$f":"SUM(B35:B39)","v":0},{"$f":"SUM(C35:C39)","v":0},0]
["1.6. Annen internopplæring / korte etterutdanninger mv. "]
["a.  Innen psykisk helsearbeid og rusfeltet",0,0,0]
["b. Innen eldreomsorg og demens",null,null,0]
["c. Annet høyt prioritert internopplæring/etterutdanning",0,0,0]
["Sum (1.6) :",{"$f":"SUM(B42:B44)","v":0},{"$f":"SUM(C42:C44)","v":0},0]
[" 1.7. Andre kompetansehevende tiltak med midler direkte fra fylkesmannen  (utdyp i skriftlig del av rapporteringsskjema)"]
["a. Fylkeskoordinator til prosjekt Menn i helse  (ikke for kommuner)",0,0,0]
["b. Desentralisert utdanning fra høgskoler/universiteter (ikke for kommuner)",0,0,0]
["c. Annet  (ikke forkommuner)",0,0,0]
["Sum (1.7) :",{"$f":"SUM(B47:B49)","v":0},{"$f":"SUM(C47:C49)","v":0},{"$f":"B50+C50","v":0}]
["Kompetansetiltak (måloppnåelse) Totalt :",{"$f":"B6+B14+B23+B33+B40+B45+B50","v":0},{"$f":"C6+C14+C23+C33+C40+C45+C50","v":0},{"$f":"B51+C51","v":0}]
["2. Tilskudd til Kompetansetiltak"]
["2.1. Totalt søkt beløp (Kompetansetiltak totalt)",null,null,0]
["2.2. Utbetalt beløp (Kompetansetiltak totalt)",null,null,{"$f":"SUM(D55:D61)","v":0}]
["a. Videregående skole, fag- og yrkesopplæring innen helse (fagbrev)",null,null,0]
["b. Fagskoleutdanning",null,null,0]
["c. Bachelorutdanning helse- og sosialfag",null,null,0]
["d.  Videreutdanning og mastergradutdanning (påbygg bachelorutdanning)",null,null,0]
["e. ABC-opplæring",null,null,0]
["f. Annen internopplæring / korte etterutdanninger /kurs mv. ",null,null,0]
["g. Andre Kompetansehevende tiltak. Fylkesmannen rapporterer her, ikke kommuner",null,null,0]
["2.3. Ubenyttet beløp (Kompetansetiltak totalt)",null,null,0]
["3. Opplæringstilskudd BPA (brukerstyrt personlig assistanse)"]
["3.1. Opplæringstype",null,null,"Antall personer innvilget"]
["a. Arbeidsledere som har fått tilskudd til opplæring",null,null,0]
["b. Saksbehandlere som har fått tilskudd til opplæring",null,null,0]
["c. Assistenter som har fått tilskudd til opplæring",null,null,0]
["d. Uspesifisert ",null,null,0]
["SUM (3.1) :",null,null,{"$f":"SUM(D65:D68)","v":0}]
["4. Tilskudd til BPA"]
["4.1. Totalt søkt beløp ",null,null,0]
["4.2. Utbetalt beløp  ",null,null,0]
["4.3. Ubenyttet beløp ",null,null,0]
["5. Innovasjonsprosjekter"]
["5.1. Prosjekttype",null,null,"Antall prosjekter innvilget"]
["a. Forebygging,  tidlig innsats og egenmestring",null,null,0]
["b. Habilitering og rehabilitering, herunder hverdagsrehabilitering",null,null,0]
["c. Velferdsteknologiske løsninger\n(Dette punktet gjelder ikke for øremerkede midler til \"Nasjonalt velferdsteknologiprogram- innføring av velferdsteknologiskeløsninger (Omsorg 2020)\"\nRapporteringen for velferdsteknologiprogram skal gjøres under punkt 7) ",null,null,0]
["d. Samspill med pårørende og frivillige i omsorgssektoren generelt og demensomsorgen spesielt",null,null,0]
["e. Legemiddelhåndtering",null,null,0]
["f. Ernæring",null,null,0]
["g. Fritidsaktivitet med assistanse",null,null,0]
["h. Kulturopplevelser",null,null,0]
["i. Annet",null,null,0]
["SUM (5.1) :",null,null,{"$f":"SUM(D76:D84)","v":0}]
["6. Tilskudd til Innovasjonsprosjekter"]
["6.1. Totalt søkt beløp  ",null,null,0]
["6.2. Utbetalt beløp  ",null,null,0]
["6.3. Ubenyttet beløp ",null,null,0]
["7. Nasjonalt velferdsteknologiprogram - innføring av velferdsteknologiske løsninger"]
["7.1. Totalt søkt beløp",null,null,0]
["7.2. Utbetalt beløp",null,null,0]
["7.3. Ubenyttet beløp",null,null,0]

{"sheet":"Lurøy","index":27,"n_rows":93,"n_cols":4,"rows_kept":93,"cut":false,"hidden":false,"merged":[]}
["1. Måloppnåelse (antall ansatte) til Kompetansetiltak (grunn-, videre- og etterutdanning)"]
["1.1. Videregående skole, fag- og yrkesopplæring innen helse (fagbrev)"]
["Utdanningstype","Fullført utdanning ","Under utdanning, men ikke fullført","Samlet antall fullførte og under utdanning "]
["a. Helsefagarbeider",0,0,{"$f":"B4+C4","v":0}]
["b. Annen utdanning på videregående skolenivå ",0,0,{"$f":"B5+C5","v":0}]
["Sum (1.1) :",{"$f":"SUM(B4:B5)","v":0},{"$f":"SUM(C4:C5)","v":0},0]
["1.2. Fagskoleutdanning"]
["a. Psykisk helsearbeid og rusarbeid",0,0,0]
["b. Eldreomsorg/demens",0,0,0]
["c. Habilitering/rehabilitering",0,0,0]
["d. Kreftomsorg/lindrende behandling",0,0,0]
["e. Veiledning",0,0,0]
["f. Annen fagskoleutdanning ",0,0,0]
["Sum (1.2) :",{"$f":"SUM(B8:B13)","v":0},{"$f":"SUM(C8:C13)","v":0},0]
["1.3. Bachelorutdanning helse- og sosialfag"]
["a. Sykepleie",0,0,0]
["b. Vernepleie",0,0,0]
["c. Fysioterapi",0,0,0]
["d. Ergoterapi",0,0,0]
["e. Sosialt arbeid (sosionom)",0,0,0]
["f. Barnevernspedagogikk",0,0,0]
["g. Annen bachelorutdanning",0,0,0]
["Sum (1.3) :",{"$f":"SUM(B16:B22)","v":0},{"$f":"SUM(C16:C22)","v":0},0]
["1.4. Videreutdanning og mastergradutdanning (påbygg bachelorutdanning)"]
["a. Psykisk helsearbeid og rusarbeid",0,0,0]
["b. Tverrfaglig videreutdanning i psykososialt arbeid med barn og unge",0,0,0]
["c. Eldreomsorg/demens",0,0,0]
["d. Kreftomsorg/lindrende pleie",0,0,0]
["e. Habilitering/rehabilitering",0,0,0]
["f. Veiledning",0,0,0]
["g. Lederutdanning",0,0,0]
["h. Annen videreutdanning og/eller masterutdanning ",0,0,0]
["Sum (1.4) :",{"$f":"SUM(B25:B32)","v":0},{"$f":"SUM(C25:C32)","v":0},0]
["1.5. ABC-opplæring"]
["a. Demensomsorgens ABC",0,0,0]
["b. Eldreomsorgens ABC",0,0,0]
["c. Mitt livs ABC",0,0,{"$f":"B37+C37","v":0}]
["d. Velferdsteknologien ABC",0,0,0]
["e. ABC musikkbasert miljøbehandling",0,0,0]
["Sum (1.5) :",{"$f":"SUM(B35:B39)","v":0},{"$f":"SUM(C35:C39)","v":0},0]
["1.6. Annen internopplæring / korte etterutdanninger mv. "]
["a.  Innen psykisk helsearbeid og rusfeltet",0,0,0]
["b. Innen eldreomsorg og demens",null,null,0]
["c. Annet høyt prioritert internopplæring/etterutdanning",0,0,0]
["Sum (1.6) :",{"$f":"SUM(B42:B44)","v":0},{"$f":"SUM(C42:C44)","v":0},0]
[" 1.7. Andre kompetansehevende tiltak med midler direkte fra fylkesmannen  (utdyp i skriftlig del av rapporteringsskjema)"]
["a. Fylkeskoordinator til prosjekt Menn i helse  (ikke for kommuner)",0,0,0]
["b. Desentralisert utdanning fra høgskoler/universiteter (ikke for kommuner)",0,0,0]
["c. Annet  (ikke forkommuner)",0,0,0]
["Sum (1.7) :",{"$f":"SUM(B47:B49)","v":0},{"$f":"SUM(C47:C49)","v":0},{"$f":"B50+C50","v":0}]
["Kompetansetiltak (måloppnåelse) Totalt :",{"$f":"B6+B14+B23+B33+B40+B45+B50","v":0},{"$f":"C6+C14+C23+C33+C40+C45+C50","v":0},{"$f":"B51+C51","v":0}]
["2. Tilskudd til Kompetansetiltak"]
["2.1. Totalt søkt beløp (Kompetansetiltak totalt)",null,null,0]
["2.2. Utbetalt beløp (Kompetansetiltak totalt)",null,null,{"$f":"SUM(D55:D61)","v":0}]
["a. Videregående skole, fag- og yrkesopplæring innen helse (fagbrev)",null,null,0]
["b. Fagskoleutdanning",null,null,0]
["c. Bachelorutdanning helse- og sosialfag",null,null,0]
["d.  Videreutdanning og mastergradutdanning (påbygg bachelorutdanning)",null,null,0]
["e. ABC-opplæring",null,null,0]
["f. Annen internopplæring / korte etterutdanninger /kurs mv. ",null,null,0]
["g. Andre Kompetansehevende tiltak. Fylkesmannen rapporterer her, ikke kommuner",null,null,0]
["2.3. Ubenyttet beløp (Kompetansetiltak totalt)",null,null,0]
["3. Opplæringstilskudd BPA (brukerstyrt personlig assistanse)"]
["3.1. Opplæringstype",null,null,"Antall personer innvilget"]
["a. Arbeidsledere som har fått tilskudd til opplæring",null,null,0]
["b. Saksbehandlere som har fått tilskudd til opplæring",null,null,0]
["c. Assistenter som har fått tilskudd til opplæring",null,null,0]
["d. Uspesifisert ",null,null,0]
["SUM (3.1) :",null,null,{"$f":"SUM(D65:D68)","v":0}]
["4. Tilskudd til BPA"]
["4.1. Totalt søkt beløp ",null,null,0]
["4.2. Utbetalt beløp  ",null,null,0]
["4.3. Ubenyttet beløp ",null,null,0]
["5. Innovasjonsprosjekter"]
["5.1. Prosjekttype",null,null,"Antall prosjekter innvilget"]
["a. Forebygging,  tidlig innsats og egenmestring",null,null,0]
["b. Habilitering og rehabilitering, herunder hverdagsrehabilitering",null,null,0]
["c. Velferdsteknologiske løsninger\n(Dette punktet gjelder ikke for øremerkede midler til \"Nasjonalt velferdsteknologiprogram- innføring av velferdsteknologiskeløsninger (Omsorg 2020)\"\nRapporteringen for velferdsteknologiprogram skal gjøres under punkt 7) ",null,null,0]
["d. Samspill med pårørende og frivillige i omsorgssektoren generelt og demensomsorgen spesielt",null,null,0]
["e. Legemiddelhåndtering",null,null,0]
["f. Ernæring",null,null,0]
["g. Fritidsaktivitet med assistanse",null,null,0]
["h. Kulturopplevelser",null,null,0]
["i. Annet",null,null,0]
["SUM (5.1) :",null,null,{"$f":"SUM(D76:D84)","v":0}]
["6. Tilskudd til Innovasjonsprosjekter"]
["6.1. Totalt søkt beløp  ",null,null,0]
["6.2. Utbetalt beløp  ",null,null,0]
["6.3. Ubenyttet beløp ",null,null,0]
["7. Nasjonalt velferdsteknologiprogram - innføring av velferdsteknologiske løsninger"]
["7.1. Totalt søkt beløp",null,null,0]
["7.2. Utbetalt beløp",null,null,0]
["7.3. Ubenyttet beløp",null,null,0]

{"sheet":"Rana","index":28,"n_rows":93,"n_cols":4,"rows_kept":93,"cut":false,"hidden":false,"merged":[]}
["1. Måloppnåelse (antall ansatte) til Kompetansetiltak (grunn-, videre- og etterutdanning)"]
["1.1. Videregående skole, fag- og yrkesopplæring innen helse (fagbrev)"]
["Utdanningstype","Fullført utdanning ","Under utdanning, men ikke fullført","Samlet antall fullførte og under utdanning "]
["a. Helsefagarbeider",0,0,{"$f":"B4+C4","v":0}]
["b. Annen utdanning på videregående skolenivå ",0,0,{"$f":"B5+C5","v":0}]
["Sum (1.1) :",{"$f":"SUM(B4:B5)","v":0},{"$f":"SUM(C4:C5)","v":0},0]
["1.2. Fagskoleutdanning"]
["a. Psykisk helsearbeid og rusarbeid",0,0,0]
["b. Eldreomsorg/demens",0,0,0]
["c. Habilitering/rehabilitering",0,0,0]
["d. Kreftomsorg/lindrende behandling",0,0,0]
["e. Veiledning",0,0,0]
["f. Annen fagskoleutdanning ",0,0,0]
["Sum (1.2) :",{"$f":"SUM(B8:B13)","v":0},{"$f":"SUM(C8:C13)","v":0},0]
["1.3. Bachelorutdanning helse- og sosialfag"]
["a. Sykepleie",0,0,0]
["b. Vernepleie",0,0,0]
["c. Fysioterapi",0,0,0]
["d. Ergoterapi",0,0,0]
["e. Sosialt arbeid (sosionom)",0,0,0]
["f. Barnevernspedagogikk",0,0,0]
["g. Annen bachelorutdanning",0,0,0]
["Sum (1.3) :",{"$f":"SUM(B16:B22)","v":0},{"$f":"SUM(C16:C22)","v":0},0]
["1.4. Videreutdanning og mastergradutdanning (påbygg bachelorutdanning)"]
["a. Psykisk helsearbeid og rusarbeid",0,0,0]
["b. Tverrfaglig videreutdanning i psykososialt arbeid med barn og unge",0,0,0]
["c. Eldreomsorg/demens",0,0,0]
["d. Kreftomsorg/lindrende pleie",0,0,0]
["e. Habilitering/rehabilitering",0,0,0]
["f. Veiledning",0,0,0]
["g. Lederutdanning",0,0,0]
["h. Annen videreutdanning og/eller masterutdanning ",0,0,0]
["Sum (1.4) :",{"$f":"SUM(B25:B32)","v":0},{"$f":"SUM(C25:C32)","v":0},0]
["1.5. ABC-opplæring"]
["a. Demensomsorgens ABC",0,0,0]
["b. Eldreomsorgens ABC",0,0,0]
["c. Mitt livs ABC",0,0,{"$f":"B37+C37","v":0}]
["d. Velferdsteknologien ABC",0,0,0]
["e. ABC musikkbasert miljøbehandling",0,0,0]
["Sum (1.5) :",{"$f":"SUM(B35:B39)","v":0},{"$f":"SUM(C35:C39)","v":0},0]
["1.6. Annen internopplæring / korte etterutdanninger mv. "]
["a.  Innen psykisk helsearbeid og rusfeltet",0,0,0]
["b. Innen eldreomsorg og demens",null,null,0]
["c. Annet høyt prioritert internopplæring/etterutdanning",0,0,0]
["Sum (1.6) :",{"$f":"SUM(B42:B44)","v":0},{"$f":"SUM(C42:C44)","v":0},0]
[" 1.7. Andre kompetansehevende tiltak med midler direkte fra fylkesmannen  (utdyp i skriftlig del av rapporteringsskjema)"]
["a. Fylkeskoordinator til prosjekt Menn i helse  (ikke for kommuner)",0,0,0]
["b. Desentralisert utdanning fra høgskoler/universiteter (ikke for kommuner)",0,0,0]
["c. Annet  (ikke forkommuner)",0,0,0]
["Sum (1.7) :",{"$f":"SUM(B47:B49)","v":0},{"$f":"SUM(C47:C49)","v":0},{"$f":"B50+C50","v":0}]
["Kompetansetiltak (måloppnåelse) Totalt :",{"$f":"B6+B14+B23+B33+B40+B45+B50","v":0},{"$f":"C6+C14+C23+C33+C40+C45+C50","v":0},{"$f":"B51+C51","v":0}]
["2. Tilskudd til Kompetansetiltak"]
["2.1. Totalt søkt beløp (Kompetansetiltak totalt)",null,null,0]
["2.2. Utbetalt beløp (Kompetansetiltak totalt)",null,null,{"$f":"SUM(D55:D61)","v":0}]
["a. Videregående skole, fag- og yrkesopplæring innen helse (fagbrev)",null,null,0]
["b. Fagskoleutdanning",null,null,0]
["c. Bachelorutdanning helse- og sosialfag",null,null,0]
["d.  Videreutdanning og mastergradutdanning (påbygg bachelorutdanning)",null,null,0]
["e. ABC-opplæring",null,null,0]
["f. Annen internopplæring / korte etterutdanninger /kurs mv. ",null,null,0]
["g. Andre Kompetansehevende tiltak. Fylkesmannen rapporterer her, ikke kommuner",null,null,0]
["2.3. Ubenyttet beløp (Kompetansetiltak totalt)",null,null,0]
["3. Opplæringstilskudd BPA (brukerstyrt personlig assistanse)"]
["3.1. Opplæringstype",null,null,"Antall personer innvilget"]
["a. Arbeidsledere som har fått tilskudd til opplæring",null,null,0]
["b. Saksbehandlere som har fått tilskudd til opplæring",null,null,0]
["c. Assistenter som har fått tilskudd til opplæring",null,null,0]
["d. Uspesifisert ",null,null,0]
["SUM (3.1) :",null,null,{"$f":"SUM(D65:D68)","v":0}]
["4. Tilskudd til BPA"]
["4.1. Totalt søkt beløp ",null,null,0]
["4.2. Utbetalt beløp  ",null,null,0]
["4.3. Ubenyttet beløp ",null,null,0]
["5. Innovasjonsprosjekter"]
["5.1. Prosjekttype",null,null,"Antall prosjekter innvilget"]
["a. Forebygging,  tidlig innsats og egenmestring",null,null,0]
["b. Habilitering og rehabilitering, herunder hverdagsrehabilitering",null,null,0]
["c. Velferdsteknologiske løsninger\n(Dette punktet gjelder ikke for øremerkede midler til \"Nasjonalt velferdsteknologiprogram- innføring av velferdsteknologiskeløsninger (Omsorg 2020)\"\nRapporteringen for velferdsteknologiprogram skal gjøres under punkt 7) ",null,null,0]
["d. Samspill med pårørende og frivillige i omsorgssektoren generelt og demensomsorgen spesielt",null,null,0]
["e. Legemiddelhåndtering",null,null,0]
["f. Ernæring",null,null,0]
["g. Fritidsaktivitet med assistanse",null,null,0]
["h. Kulturopplevelser",null,null,0]
["i. Annet",null,null,0]
["SUM (5.1) :",null,null,{"$f":"SUM(D76:D84)","v":0}]
["6. Tilskudd til Innovasjonsprosjekter"]
["6.1. Totalt søkt beløp  ",null,null,0]
["6.2. Utbetalt beløp  ",null,null,0]
["6.3. Ubenyttet beløp ",null,null,0]
["7. Nasjonalt velferdsteknologiprogram - innføring av velferdsteknologiske løsninger"]
["7.1. Totalt søkt beløp",null,null,0]
["7.2. Utbetalt beløp",null,null,0]
["7.3. Ubenyttet beløp",null,null,0]

{"sheet":"Hemnes","index":29,"n_rows":93,"n_cols":4,"rows_kept":93,"cut":false,"hidden":false,"merged":[]}
["1. Måloppnåelse (antall ansatte) til Kompetansetiltak (grunn-, videre- og etterutdanning)"]
["1.1. Videregående skole, fag- og yrkesopplæring innen helse (fagbrev)"]
["Utdanningstype","Fullført utdanning ","Under utdanning, men ikke fullført","Samlet antall fullførte og under utdanning "]
["a. Helsefagarbeider",0,0,{"$f":"B4+C4","v":0}]
["b. Annen utdanning på videregående skolenivå ",0,0,{"$f":"B5+C5","v":0}]
["Sum (1.1) :",{"$f":"SUM(B4:B5)","v":0},{"$f":"SUM(C4:C5)","v":0},0]
["1.2. Fagskoleutdanning"]
["a. Psykisk helsearbeid og rusarbeid",0,0,0]
["b. Eldreomsorg/demens",0,0,0]
["c. Habilitering/rehabilitering",0,0,0]
["d. Kreftomsorg/lindrende behandling",0,0,0]
["e. Veiledning",0,0,0]
["f. Annen fagskoleutdanning ",0,0,0]
["Sum (1.2) :",{"$f":"SUM(B8:B13)","v":0},{"$f":"SUM(C8:C13)","v":0},0]
["1.3. Bachelorutdanning helse- og sosialfag"]
["a. Sykepleie",0,0,0]
["b. Vernepleie",0,0,0]
["c. Fysioterapi",0,0,0]
["d. Ergoterapi",0,0,0]
["e. Sosialt arbeid (sosionom)",0,0,0]
["f. Barnevernspedagogikk",0,0,0]
["g. Annen bachelorutdanning",0,0,0]
["Sum (1.3) :",{"$f":"SUM(B16:B22)","v":0},{"$f":"SUM(C16:C22)","v":0},0]
["1.4. Videreutdanning og mastergradutdanning (påbygg bachelorutdanning)"]
["a. Psykisk helsearbeid og rusarbeid",0,0,0]
["b. Tverrfaglig videreutdanning i psykososialt arbeid med barn og unge",0,0,0]
["c. Eldreomsorg/demens",0,0,0]
["d. Kreftomsorg/lindrende pleie",0,0,0]
["e. Habilitering/rehabilitering",0,0,0]
["f. Veiledning",0,0,0]
["g. Lederutdanning",0,0,0]
["h. Annen videreutdanning og/eller masterutdanning ",0,0,0]
["Sum (1.4) :",{"$f":"SUM(B25:B32)","v":0},{"$f":"SUM(C25:C32)","v":0},0]
["1.5. ABC-opplæring"]
["a. Demensomsorgens ABC",0,0,0]
["b. Eldreomsorgens ABC",0,0,0]
["c. Mitt livs ABC",0,0,{"$f":"B37+C37","v":0}]
["d. Velferdsteknologien ABC",0,0,0]
["e. ABC musikkbasert miljøbehandling",0,0,0]
["Sum (1.5) :",{"$f":"SUM(B35:B39)","v":0},{"$f":"SUM(C35:C39)","v":0},0]
["1.6. Annen internopplæring / korte etterutdanninger mv. "]
["a.  Innen psykisk helsearbeid og rusfeltet",0,0,0]
["b. Innen eldreomsorg og demens",null,null,0]
["c. Annet høyt prioritert internopplæring/etterutdanning",0,0,0]
["Sum (1.6) :",{"$f":"SUM(B42:B44)","v":0},{"$f":"SUM(C42:C44)","v":0},0]
[" 1.7. Andre kompetansehevende tiltak med midler direkte fra fylkesmannen  (utdyp i skriftlig del av rapporteringsskjema)"]
["a. Fylkeskoordinator til prosjekt Menn i helse  (ikke for kommuner)",0,0,0]
["b. Desentralisert utdanning fra høgskoler/universiteter (ikke for kommuner)",0,0,0]
["c. Annet  (ikke forkommuner)",0,0,0]
["Sum (1.7) :",{"$f":"SUM(B47:B49)","v":0},{"$f":"SUM(C47:C49)","v":0},{"$f":"B50+C50","v":0}]
["Kompetansetiltak (måloppnåelse) Totalt :",{"$f":"B6+B14+B23+B33+B40+B45+B50","v":0},{"$f":"C6+C14+C23+C33+C40+C45+C50","v":0},{"$f":"B51+C51","v":0}]
["2. Tilskudd til Kompetansetiltak"]
["2.1. Totalt søkt beløp (Kompetansetiltak totalt)",null,null,0]
["2.2. Utbetalt beløp (Kompetansetiltak totalt)",null,null,{"$f":"SUM(D55:D61)","v":0}]
["a. Videregående skole, fag- og yrkesopplæring innen helse (fagbrev)",null,null,0]
["b. Fagskoleutdanning",null,null,0]
["c. Bachelorutdanning helse- og sosialfag",null,null,0]
["d.  Videreutdanning og mastergradutdanning (påbygg bachelorutdanning)",null,null,0]
["e. ABC-opplæring",null,null,0]
["f. Annen internopplæring / korte etterutdanninger /kurs mv. ",null,null,0]
["g. Andre Kompetansehevende tiltak. Fylkesmannen rapporterer her, ikke kommuner",null,null,0]
["2.3. Ubenyttet beløp (Kompetansetiltak totalt)",null,null,0]
["3. Opplæringstilskudd BPA (brukerstyrt personlig assistanse)"]
["3.1. Opplæringstype",null,null,"Antall personer innvilget"]
["a. Arbeidsledere som har fått tilskudd til opplæring",null,null,0]
["b. Saksbehandlere som har fått tilskudd til opplæring",null,null,0]
["c. Assistenter som har fått tilskudd til opplæring",null,null,0]
["d. Uspesifisert ",null,null,0]
["SUM (3.1) :",null,null,{"$f":"SUM(D65:D68)","v":0}]
["4. Tilskudd til BPA"]
["4.1. Totalt søkt beløp ",null,null,0]
["4.2. Utbetalt beløp  ",null,null,0]
["4.3. Ubenyttet beløp ",null,null,0]
["5. Innovasjonsprosjekter"]
["5.1. Prosjekttype",null,null,"Antall prosjekter innvilget"]
["a. Forebygging,  tidlig innsats og egenmestring",null,null,0]
["b. Habilitering og rehabilitering, herunder hverdagsrehabilitering",null,null,0]
["c. Velferdsteknologiske løsninger\n(Dette punktet gjelder ikke for øremerkede midler til \"Nasjonalt velferdsteknologiprogram- innføring av velferdsteknologiskeløsninger (Omsorg 2020)\"\nRapporteringen for velferdsteknologiprogram skal gjøres under punkt 7) ",null,null,0]
["d. Samspill med pårørende og frivillige i omsorgssektoren generelt og demensomsorgen spesielt",null,null,0]
["e. Legemiddelhåndtering",null,null,0]
["f. Ernæring",null,null,0]
["g. Fritidsaktivitet med assistanse",null,null,0]
["h. Kulturopplevelser",null,null,0]
["i. Annet",null,null,0]
["SUM (5.1) :",null,null,{"$f":"SUM(D76:D84)","v":0}]
["6. Tilskudd til Innovasjonsprosjekter"]
["6.1. Totalt søkt beløp  ",null,null,0]
["6.2. Utbetalt beløp  ",null,null,0]
["6.3. Ubenyttet beløp ",null,null,0]
["7. Nasjonalt velferdsteknologiprogram - innføring av velferdsteknologiske løsninger"]
["7.1. Totalt søkt beløp",null,null,0]
["7.2. Utbetalt beløp",null,null,0]
["7.3. Ubenyttet beløp",null,null,0]

{"sheet":"Nesna","index":30,"n_rows":93,"n_cols":4,"rows_kept":93,"cut":false,"hidden":false,"merged":[]}
["1. Måloppnåelse (antall ansatte) til Kompetansetiltak (grunn-, videre- og etterutdanning)"]
["1.1. Videregående skole, fag- og yrkesopplæring innen helse (fagbrev)"]
["Utdanningstype","Fullført utdanning ","Under utdanning, men ikke fullført","Samlet antall fullførte og under utdanning "]
["a. Helsefagarbeider",0,0,{"$f":"B4+C4","v":0}]
["b. Annen utdanning på videregående skolenivå ",0,0,{"$f":"B5+C5","v":0}]
["Sum (1.1) :",{"$f":"SUM(B4:B5)","v":0},{"$f":"SUM(C4:C5)","v":0},0]
["1.2. Fagskoleutdanning"]
["a. Psykisk helsearbeid og rusarbeid",0,0,0]
["b. Eldreomsorg/demens",0,0,0]
["c. Habilitering/rehabilitering",0,0,0]
["d. Kreftomsorg/lindrende behandling",0,0,0]
["e. Veiledning",0,0,0]
["f. Annen fagskoleutdanning ",0,0,0]
["Sum (1.2) :",{"$f":"SUM(B8:B13)","v":0},{"$f":"SUM(C8:C13)","v":0},0]
["1.3. Bachelorutdanning helse- og sosialfag"]
["a. Sykepleie",0,0,0]
["b. Vernepleie",0,0,0]
["c. Fysioterapi",0,0,0]
["d. Ergoterapi",0,0,0]
["e. Sosialt arbeid (sosionom)",0,0,0]
["f. Barnevernspedagogikk",0,0,0]
["g. Annen bachelorutdanning",0,0,0]
["Sum (1.3) :",{"$f":"SUM(B16:B22)","v":0},{"$f":"SUM(C16:C22)","v":0},0]
["1.4. Videreutdanning og mastergradutdanning (påbygg bachelorutdanning)"]
["a. Psykisk helsearbeid og rusarbeid",0,0,0]
["b. Tverrfaglig videreutdanning i psykososialt arbeid med barn og unge",0,0,0]
["c. Eldreomsorg/demens",0,0,0]
["d. Kreftomsorg/lindrende pleie",0,0,0]
["e. Habilitering/rehabilitering",0,0,0]
["f. Veiledning",0,0,0]
["g. Lederutdanning",0,0,0]
["h. Annen videreutdanning og/eller masterutdanning ",0,0,0]
["Sum (1.4) :",{"$f":"SUM(B25:B32)","v":0},{"$f":"SUM(C25:C32)","v":0},0]
["1.5. ABC-opplæring"]
["a. Demensomsorgens ABC",0,0,0]
["b. Eldreomsorgens ABC",0,0,0]
["c. Mitt livs ABC",0,0,{"$f":"B37+C37","v":0}]
["d. Velferdsteknologien ABC",0,0,0]
["e. ABC musikkbasert miljøbehandling",0,0,0]
["Sum (1.5) :",{"$f":"SUM(B35:B39)","v":0},{"$f":"SUM(C35:C39)","v":0},0]
["1.6. Annen internopplæring / korte etterutdanninger mv. "]
["a.  Innen psykisk helsearbeid og rusfeltet",0,0,0]
["b. Innen eldreomsorg og demens",null,null,0]
["c. Annet høyt prioritert internopplæring/etterutdanning",0,0,0]
["Sum (1.6) :",{"$f":"SUM(B42:B44)","v":0},{"$f":"SUM(C42:C44)","v":0},0]
[" 1.7. Andre kompetansehevende tiltak med midler direkte fra fylkesmannen  (utdyp i skriftlig del av rapporteringsskjema)"]
["a. Fylkeskoordinator til prosjekt Menn i helse  (ikke for kommuner)",0,0,0]
["b. Desentralisert utdanning fra høgskoler/universiteter (ikke for kommuner)",0,0,0]
["c. Annet  (ikke forkommuner)",0,0,0]
["Sum (1.7) :",{"$f":"SUM(B47:B49)","v":0},{"$f":"SUM(C47:C49)","v":0},{"$f":"B50+C50","v":0}]
["Kompetansetiltak (måloppnåelse) Totalt :",{"$f":"B6+B14+B23+B33+B40+B45+B50","v":0},{"$f":"C6+C14+C23+C33+C40+C45+C50","v":0},{"$f":"B51+C51","v":0}]
["2. Tilskudd til Kompetansetiltak"]
["2.1. Totalt søkt beløp (Kompetansetiltak totalt)",null,null,0]
["2.2. Utbetalt beløp (Kompetansetiltak totalt)",null,null,{"$f":"SUM(D55:D61)","v":0}]
["a. Videregående skole, fag- og yrkesopplæring innen helse (fagbrev)",null,null,0]
["b. Fagskoleutdanning",null,null,0]
["c. Bachelorutdanning helse- og sosialfag",null,null,0]
["d.  Videreutdanning og mastergradutdanning (påbygg bachelorutdanning)",null,null,0]
["e. ABC-opplæring",null,null,0]
["f. Annen internopplæring / korte etterutdanninger /kurs mv. ",null,null,0]
["g. Andre Kompetansehevende tiltak. Fylkesmannen rapporterer her, ikke kommuner",null,null,0]
["2.3. Ubenyttet beløp (Kompetansetiltak totalt)",null,null,0]
["3. Opplæringstilskudd BPA (brukerstyrt personlig assistanse)"]
["3.1. Opplæringstype",null,null,"Antall personer innvilget"]
["a. Arbeidsledere som har fått tilskudd til opplæring",null,null,0]
["b. Saksbehandlere som har fått tilskudd til opplæring",null,null,0]
["c. Assistenter som har fått tilskudd til opplæring",null,null,0]
["d. Uspesifisert ",null,null,0]
["SUM (3.1) :",null,null,{"$f":"SUM(D65:D68)","v":0}]
["4. Tilskudd til BPA"]
["4.1. Totalt søkt beløp ",null,null,0]
["4.2. Utbetalt beløp  ",null,null,0]
["4.3. Ubenyttet beløp ",null,null,0]
["5. Innovasjonsprosjekter"]
["5.1. Prosjekttype",null,null,"Antall prosjekter innvilget"]
["a. Forebygging,  tidlig innsats og egenmestring",null,null,0]
["b. Habilitering og rehabilitering, herunder hverdagsrehabilitering",null,null,0]
["c. Velferdsteknologiske løsninger\n(Dette punktet gjelder ikke for øremerkede midler til \"Nasjonalt velferdsteknologiprogram- innføring av velferdsteknologiskeløsninger (Omsorg 2020)\"\nRapporteringen for velferdsteknologiprogram skal gjøres under punkt 7) ",null,null,0]
["d. Samspill med pårørende og frivillige i omsorgssektoren generelt og demensomsorgen spesielt",null,null,0]
["e. Legemiddelhåndtering",null,null,0]
["f. Ernæring",null,null,0]
["g. Fritidsaktivitet med assistanse",null,null,0]
["h. Kulturopplevelser",null,null,0]
["i. Annet",null,null,0]
["SUM (5.1) :",null,null,{"$f":"SUM(D76:D84)","v":0}]
["6. Tilskudd til Innovasjonsprosjekter"]
["6.1. Totalt søkt beløp  ",null,null,0]
["6.2. Utbetalt beløp  ",null,null,0]
["6.3. Ubenyttet beløp ",null,null,0]
["7. Nasjonalt velferdsteknologiprogram - innføring av velferdsteknologiske løsninger"]
["7.1. Totalt søkt beløp",null,null,0]
["7.2. Utbetalt beløp",null,null,0]
["7.3. Ubenyttet beløp",null,null,0]

{"sheet":"Dønna","index":31,"n_rows":93,"n_cols":4,"rows_kept":93,"cut":false,"hidden":false,"merged":[]}
["1. Måloppnåelse (antall ansatte) til Kompetansetiltak (grunn-, videre- og etterutdanning)"]
["1.1. Videregående skole, fag- og yrkesopplæring innen helse (fagbrev)"]
["Utdanningstype","Fullført utdanning ","Under utdanning, men ikke fullført","Samlet antall fullførte og under utdanning "]
["a. Helsefagarbeider",0,0,{"$f":"B4+C4","v":0}]
["b. Annen utdanning på videregående skolenivå ",0,0,{"$f":"B5+C5","v":0}]
["Sum (1.1) :",{"$f":"SUM(B4:B5)","v":0},{"$f":"SUM(C4:C5)","v":0},0]
["1.2. Fagskoleutdanning"]
["a. Psykisk helsearbeid og rusarbeid",0,0,0]
["b. Eldreomsorg/demens",0,0,0]
["c. Habilitering/rehabilitering",0,0,0]
["d. Kreftomsorg/lindrende behandling",0,0,0]
["e. Veiledning",0,0,0]
["f. Annen fagskoleutdanning ",0,0,0]
["Sum (1.2) :",{"$f":"SUM(B8:B13)","v":0},{"$f":"SUM(C8:C13)","v":0},0]
["1.3. Bachelorutdanning helse- og sosialfag"]
["a. Sykepleie",0,0,0]
["b. Vernepleie",0,0,0]
["c. Fysioterapi",0,0,0]
["d. Ergoterapi",0,0,0]
["e. Sosialt arbeid (sosionom)",0,0,0]
["f. Barnevernspedagogikk",0,0,0]
["g. Annen bachelorutdanning",0,0,0]
["Sum (1.3) :",{"$f":"SUM(B16:B22)","v":0},{"$f":"SUM(C16:C22)","v":0},0]
["1.4. Videreutdanning og mastergradutdanning (påbygg bachelorutdanning)"]
["a. Psykisk helsearbeid og rusarbeid",0,0,0]
["b. Tverrfaglig videreutdanning i psykososialt arbeid med barn og unge",0,0,0]
["c. Eldreomsorg/demens",0,0,0]
["d. Kreftomsorg/lindrende pleie",0,0,0]
["e. Habilitering/rehabilitering",0,0,0]
["f. Veiledning",0,0,0]
["g. Lederutdanning",0,0,0]
["h. Annen videreutdanning og/eller masterutdanning ",0,0,0]
["Sum (1.4) :",{"$f":"SUM(B25:B32)","v":0},{"$f":"SUM(C25:C32)","v":0},0]
["1.5. ABC-opplæring"]
["a. Demensomsorgens ABC",0,0,0]
["b. Eldreomsorgens ABC",0,0,0]
["c. Mitt livs ABC",0,0,{"$f":"B37+C37","v":0}]
["d. Velferdsteknologien ABC",0,0,0]
["e. ABC musikkbasert miljøbehandling",0,0,0]
["Sum (1.5) :",{"$f":"SUM(B35:B39)","v":0},{"$f":"SUM(C35:C39)","v":0},0]
["1.6. Annen internopplæring / korte etterutdanninger mv. "]
["a.  Innen psykisk helsearbeid og rusfeltet",0,0,0]
["b. Innen eldreomsorg og demens",null,null,0]
["c. Annet høyt prioritert internopplæring/etterutdanning",0,0,0]
["Sum (1.6) :",{"$f":"SUM(B42:B44)","v":0},{"$f":"SUM(C42:C44)","v":0},0]
[" 1.7. Andre kompetansehevende tiltak med midler direkte fra fylkesmannen  (utdyp i skriftlig del av rapporteringsskjema)"]
["a. Fylkeskoordinator til prosjekt Menn i helse  (ikke for kommuner)",0,0,0]
["b. Desentralisert utdanning fra høgskoler/universiteter (ikke for kommuner)",0,0,0]
["c. Annet  (ikke forkommuner)",0,0,0]
["Sum (1.7) :",{"$f":"SUM(B47:B49)","v":0},{"$f":"SUM(C47:C49)","v":0},{"$f":"B50+C50","v":0}]
["Kompetansetiltak (måloppnåelse) Totalt :",{"$f":"B6+B14+B23+B33+B40+B45+B50","v":0},{"$f":"C6+C14+C23+C33+C40+C45+C50","v":0},{"$f":"B51+C51","v":0}]
["2. Tilskudd til Kompetansetiltak"]
["2.1. Totalt søkt beløp (Kompetansetiltak totalt)",null,null,0]
["2.2. Utbetalt beløp (Kompetansetiltak totalt)",null,null,{"$f":"SUM(D55:D61)","v":0}]
["a. Videregående skole, fag- og yrkesopplæring innen helse (fagbrev)",null,null,0]
["b. Fagskoleutdanning",null,null,0]
["c. Bachelorutdanning helse- og sosialfag",null,null,0]
["d.  Videreutdanning og mastergradutdanning (påbygg bachelorutdanning)",null,null,0]
["e. ABC-opplæring",null,null,0]
["f. Annen internopplæring / korte etterutdanninger /kurs mv. ",null,null,0]
["g. Andre Kompetansehevende tiltak. Fylkesmannen rapporterer her, ikke kommuner",null,null,0]
["2.3. Ubenyttet beløp (Kompetansetiltak totalt)",null,null,0]
["3. Opplæringstilskudd BPA (brukerstyrt personlig assistanse)"]
["3.1. Opplæringstype",null,null,"Antall personer innvilget"]
["a. Arbeidsledere som har fått tilskudd til opplæring",null,null,0]
["b. Saksbehandlere som har fått tilskudd til opplæring",null,null,0]
["c. Assistenter som har fått tilskudd til opplæring",null,null,0]
["d. Uspesifisert ",null,null,0]
["SUM (3.1) :",null,null,{"$f":"SUM(D65:D68)","v":0}]
["4. Tilskudd til BPA"]
["4.1. Totalt søkt beløp ",null,null,0]
["4.2. Utbetalt beløp  ",null,null,0]
["4.3. Ubenyttet beløp ",null,null,0]
["5. Innovasjonsprosjekter"]
["5.1. Prosjekttype",null,null,"Antall prosjekter innvilget"]
["a. Forebygging,  tidlig innsats og egenmestring",null,null,0]
["b. Habilitering og rehabilitering, herunder hverdagsrehabilitering",null,null,0]
["c. Velferdsteknologiske løsninger\n(Dette punktet gjelder ikke for øremerkede midler til \"Nasjonalt velferdsteknologiprogram- innføring av velferdsteknologiskeløsninger (Omsorg 2020)\"\nRapporteringen for velferdsteknologiprogram skal gjøres under punkt 7) ",null,null,0]
["d. Samspill med pårørende og frivillige i omsorgssektoren generelt og demensomsorgen spesielt",null,null,0]
["e. Legemiddelhåndtering",null,null,0]
["f. Ernæring",null,null,0]
["g. Fritidsaktivitet med assistanse",null,null,0]
["h. Kulturopplevelser",null,null,0]
["i. Annet",null,null,0]
["SUM (5.1) :",null,null,{"$f":"SUM(D76:D84)","v":0}]
["6. Tilskudd til Innovasjonsprosjekter"]
["6.1. Totalt søkt beløp  ",null,null,0]
["6.2. Utbetalt beløp  ",null,null,0]
["6.3. Ubenyttet beløp ",null,null,0]
["7. Nasjonalt velferdsteknologiprogram - innføring av velferdsteknologiske løsninger"]
["7.1. Totalt søkt beløp",null,null,0]
["7.2. Utbetalt beløp",null,null,0]
["7.3. Ubenyttet beløp",null,null,0]

{"sheet":"Hattfjelldal","index":32,"n_rows":93,"n_cols":4,"rows_kept":93,"cut":false,"hidden":false,"merged":[]}
["1. Måloppnåelse (antall ansatte) til Kompetansetiltak (grunn-, videre- og etterutdanning)"]
["1.1. Videregående skole, fag- og yrkesopplæring innen helse (fagbrev)"]
["Utdanningstype","Fullført utdanning ","Under utdanning, men ikke fullført","Samlet antall fullførte og under utdanning "]
["a. Helsefagarbeider",0,0,{"$f":"B4+C4","v":0}]
["b. Annen utdanning på videregående skolenivå ",0,0,{"$f":"B5+C5","v":0}]
["Sum (1.1) :",{"$f":"SUM(B4:B5)","v":0},{"$f":"SUM(C4:C5)","v":0},0]
["1.2. Fagskoleutdanning"]
["a. Psykisk helsearbeid og rusarbeid",0,0,0]
["b. Eldreomsorg/demens",0,0,0]
["c. Habilitering/rehabilitering",0,0,0]
["d. Kreftomsorg/lindrende behandling",0,0,0]
["e. Veiledning",0,0,0]
["f. Annen fagskoleutdanning ",0,0,0]
["Sum (1.2) :",{"$f":"SUM(B8:B13)","v":0},{"$f":"SUM(C8:C13)","v":0},0]
["1.3. Bachelorutdanning helse- og sosialfag"]
["a. Sykepleie",0,0,0]
["b. Vernepleie",0,0,0]
["c. Fysioterapi",0,0,0]
["d. Ergoterapi",0,0,0]
["e. Sosialt arbeid (sosionom)",0,0,0]
["f. Barnevernspedagogikk",0,0,0]
["g. Annen bachelorutdanning",0,0,0]
["Sum (1.3) :",{"$f":"SUM(B16:B22)","v":0},{"$f":"SUM(C16:C22)","v":0},0]
["1.4. Videreutdanning og mastergradutdanning (påbygg bachelorutdanning)"]
["a. Psykisk helsearbeid og rusarbeid",0,0,0]
["b. Tverrfaglig videreutdanning i psykososialt arbeid med barn og unge",0,0,0]
["c. Eldreomsorg/demens",0,0,0]
["d. Kreftomsorg/lindrende pleie",0,0,0]
["e. Habilitering/rehabilitering",0,0,0]
["f. Veiledning",0,0,0]
["g. Lederutdanning",0,0,0]
["h. Annen videreutdanning og/eller masterutdanning ",0,0,0]
["Sum (1.4) :",{"$f":"SUM(B25:B32)","v":0},{"$f":"SUM(C25:C32)","v":0},0]
["1.5. ABC-opplæring"]
["a. Demensomsorgens ABC",0,0,0]
["b. Eldreomsorgens ABC",0,0,0]
["c. Mitt livs ABC",0,0,{"$f":"B37+C37","v":0}]
["d. Velferdsteknologien ABC",0,0,0]
["e. ABC musikkbasert miljøbehandling",0,0,0]
["Sum (1.5) :",{"$f":"SUM(B35:B39)","v":0},{"$f":"SUM(C35:C39)","v":0},0]
["1.6. Annen internopplæring / korte etterutdanninger mv. "]
["a.  Innen psykisk helsearbeid og rusfeltet",0,0,0]
["b. Innen eldreomsorg og demens",null,null,0]
["c. Annet høyt prioritert internopplæring/etterutdanning",0,0,0]
["Sum (1.6) :",{"$f":"SUM(B42:B44)","v":0},{"$f":"SUM(C42:C44)","v":0},0]
[" 1.7. Andre kompetansehevende tiltak med midler direkte fra fylkesmannen  (utdyp i skriftlig del av rapporteringsskjema)"]
["a. Fylkeskoordinator til prosjekt Menn i helse  (ikke for kommuner)",0,0,0]
["b. Desentralisert utdanning fra høgskoler/universiteter (ikke for kommuner)",0,0,0]
["c. Annet  (ikke forkommuner)",0,0,0]
["Sum (1.7) :",{"$f":"SUM(B47:B49)","v":0},{"$f":"SUM(C47:C49)","v":0},{"$f":"B50+C50","v":0}]
["Kompetansetiltak (måloppnåelse) Totalt :",{"$f":"B6+B14+B23+B33+B40+B45+B50","v":0},{"$f":"C6+C14+C23+C33+C40+C45+C50","v":0},{"$f":"B51+C51","v":0}]
["2. Tilskudd til Kompetansetiltak"]
["2.1. Totalt søkt beløp (Kompetansetiltak totalt)",null,null,0]
["2.2. Utbetalt beløp (Kompetansetiltak totalt)",null,null,{"$f":"SUM(D55:D61)","v":0}]
["a. Videregående skole, fag- og yrkesopplæring innen helse (fagbrev)",null,null,0]
["b. Fagskoleutdanning",null,null,0]
["c. Bachelorutdanning helse- og sosialfag",null,null,0]
["d.  Videreutdanning og mastergradutdanning (påbygg bachelorutdanning)",null,null,0]
["e. ABC-opplæring",null,null,0]
["f. Annen internopplæring / korte etterutdanninger /kurs mv. ",null,null,0]
["g. Andre Kompetansehevende tiltak. Fylkesmannen rapporterer her, ikke kommuner",null,null,0]
["2.3. Ubenyttet beløp (Kompetansetiltak totalt)",null,null,0]
["3. Opplæringstilskudd BPA (brukerstyrt personlig assistanse)"]
["3.1. Opplæringstype",null,null,"Antall personer innvilget"]
["a. Arbeidsledere som har fått tilskudd til opplæring",null,null,0]
["b. Saksbehandlere som har fått tilskudd til opplæring",null,null,0]
["c. Assistenter som har fått tilskudd til opplæring",null,null,0]
["d. Uspesifisert ",null,null,0]
["SUM (3.1) :",null,null,{"$f":"SUM(D65:D68)","v":0}]
["4. Tilskudd til BPA"]
["4.1. Totalt søkt beløp ",null,null,0]
["4.2. Utbetalt beløp  ",null,null,0]
["4.3. Ubenyttet beløp ",null,null,0]
["5. Innovasjonsprosjekter"]
["5.1. Prosjekttype",null,null,"Antall prosjekter innvilget"]
["a. Forebygging,  tidlig innsats og egenmestring",null,null,0]
["b. Habilitering og rehabilitering, herunder hverdagsrehabilitering",null,null,0]
["c. Velferdsteknologiske løsninger\n(Dette punktet gjelder ikke for øremerkede midler til \"Nasjonalt velferdsteknologiprogram- innføring av velferdsteknologiskeløsninger (Omsorg 2020)\"\nRapporteringen for velferdsteknologiprogram skal gjøres under punkt 7) ",null,null,0]
["d. Samspill med pårørende og frivillige i omsorgssektoren generelt og demensomsorgen spesielt",null,null,0]
["e. Legemiddelhåndtering",null,null,0]
["f. Ernæring",null,null,0]
["g. Fritidsaktivitet med assistanse",null,null,0]
["h. Kulturopplevelser",null,null,0]
["i. Annet",null,null,0]
["SUM (5.1) :",null,null,{"$f":"SUM(D76:D84)","v":0}]
["6. Tilskudd til Innovasjonsprosjekter"]
["6.1. Totalt søkt beløp  ",null,null,0]
["6.2. Utbetalt beløp  ",null,null,0]
["6.3. Ubenyttet beløp ",null,null,0]
["7. Nasjonalt velferdsteknologiprogram - innføring av velferdsteknologiske løsninger"]
["7.1. Totalt søkt beløp",null,null,0]
["7.2. Utbetalt beløp",null,null,0]
["7.3. Ubenyttet beløp",null,null,0]

{"sheet":"Grane","index":33,"n_rows":93,"n_cols":4,"rows_kept":93,"cut":false,"hidden":false,"merged":[]}
["1. Måloppnåelse (antall ansatte) til Kompetansetiltak (grunn-, videre- og etterutdanning)"]
["1.1. Videregående skole, fag- og yrkesopplæring innen helse (fagbrev)"]
["Utdanningstype","Fullført utdanning ","Under utdanning, men ikke fullført","Samlet antall fullførte og under utdanning "]
["a. Helsefagarbeider",0,0,{"$f":"B4+C4","v":0}]
["b. Annen utdanning på videregående skolenivå ",0,0,{"$f":"B5+C5","v":0}]
["Sum (1.1) :",{"$f":"SUM(B4:B5)","v":0},{"$f":"SUM(C4:C5)","v":0},0]
["1.2. Fagskoleutdanning"]
["a. Psykisk helsearbeid og rusarbeid",0,0,0]
["b. Eldreomsorg/demens",0,0,0]
["c. Habilitering/rehabilitering",0,0,0]
["d. Kreftomsorg/lindrende behandling",0,0,0]
["e. Veiledning",0,0,0]
["f. Annen fagskoleutdanning ",0,0,0]
["Sum (1.2) :",{"$f":"SUM(B8:B13)","v":0},{"$f":"SUM(C8:C13)","v":0},0]
["1.3. Bachelorutdanning helse- og sosialfag"]
["a. Sykepleie",0,0,0]
["b. Vernepleie",0,0,0]
["c. Fysioterapi",0,0,0]
["d. Ergoterapi",0,0,0]
["e. Sosialt arbeid (sosionom)",0,0,0]
["f. Barnevernspedagogikk",0,0,0]
["g. Annen bachelorutdanning",0,0,0]
["Sum (1.3) :",{"$f":"SUM(B16:B22)","v":0},{"$f":"SUM(C16:C22)","v":0},0]
["1.4. Videreutdanning og mastergradutdanning (påbygg bachelorutdanning)"]
["a. Psykisk helsearbeid og rusarbeid",0,0,0]
["b. Tverrfaglig videreutdanning i psykososialt arbeid med barn og unge",0,0,0]
["c. Eldreomsorg/demens",0,0,0]
["d. Kreftomsorg/lindrende pleie",0,0,0]
["e. Habilitering/rehabilitering",0,0,0]
["f. Veiledning",0,0,0]
["g. Lederutdanning",0,0,0]
["h. Annen videreutdanning og/eller masterutdanning ",0,0,0]
["Sum (1.4) :",{"$f":"SUM(B25:B32)","v":0},{"$f":"SUM(C25:C32)","v":0},0]
["1.5. ABC-opplæring"]
["a. Demensomsorgens ABC",0,0,0]
["b. Eldreomsorgens ABC",0,0,0]
["c. Mitt livs ABC",0,0,{"$f":"B37+C37","v":0}]
["d. Velferdsteknologien ABC",0,0,0]
["e. ABC musikkbasert miljøbehandling",0,0,0]
["Sum (1.5) :",{"$f":"SUM(B35:B39)","v":0},{"$f":"SUM(C35:C39)","v":0},0]
["1.6. Annen internopplæring / korte etterutdanninger mv. "]
["a.  Innen psykisk helsearbeid og rusfeltet",0,0,0]
["b. Innen eldreomsorg og demens",null,null,0]
["c. Annet høyt prioritert internopplæring/etterutdanning",0,0,0]
["Sum (1.6) :",{"$f":"SUM(B42:B44)","v":0},{"$f":"SUM(C42:C44)","v":0},0]
[" 1.7. Andre kompetansehevende tiltak med midler direkte fra fylkesmannen  (utdyp i skriftlig del av rapporteringsskjema)"]
["a. Fylkeskoordinator til prosjekt Menn i helse  (ikke for kommuner)",0,0,0]
["b. Desentralisert utdanning fra høgskoler/universiteter (ikke for kommuner)",0,0,0]
["c. Annet  (ikke forkommuner)",0,0,0]
["Sum (1.7) :",{"$f":"SUM(B47:B49)","v":0},{"$f":"SUM(C47:C49)","v":0},{"$f":"B50+C50","v":0}]
["Kompetansetiltak (måloppnåelse) Totalt :",{"$f":"B6+B14+B23+B33+B40+B45+B50","v":0},{"$f":"C6+C14+C23+C33+C40+C45+C50","v":0},{"$f":"B51+C51","v":0}]
["2. Tilskudd til Kompetansetiltak"]
["2.1. Totalt søkt beløp (Kompetansetiltak totalt)",null,null,0]
["2.2. Utbetalt beløp (Kompetansetiltak totalt)",null,null,{"$f":"SUM(D55:D61)","v":0}]
["a. Videregående skole, fag- og yrkesopplæring innen helse (fagbrev)",null,null,0]
["b. Fagskoleutdanning",null,null,0]
["c. Bachelorutdanning helse- og sosialfag",null,null,0]
["d.  Videreutdanning og mastergradutdanning (påbygg bachelorutdanning)",null,null,0]
["e. ABC-opplæring",null,null,0]
["f. Annen internopplæring / korte etterutdanninger /kurs mv. ",null,null,0]
["g. Andre Kompetansehevende tiltak. Fylkesmannen rapporterer her, ikke kommuner",null,null,0]
["2.3. Ubenyttet beløp (Kompetansetiltak totalt)",null,null,0]
["3. Opplæringstilskudd BPA (brukerstyrt personlig assistanse)"]
["3.1. Opplæringstype",null,null,"Antall personer innvilget"]
["a. Arbeidsledere som har fått tilskudd til opplæring",null,null,0]
["b. Saksbehandlere som har fått tilskudd til opplæring",null,null,0]
["c. Assistenter som har fått tilskudd til opplæring",null,null,0]
["d. Uspesifisert ",null,null,0]
["SUM (3.1) :",null,null,{"$f":"SUM(D65:D68)","v":0}]
["4. Tilskudd til BPA"]
["4.1. Totalt søkt beløp ",null,null,0]
["4.2. Utbetalt beløp  ",null,null,0]
["4.3. Ubenyttet beløp ",null,null,0]
["5. Innovasjonsprosjekter"]
["5.1. Prosjekttype",null,null,"Antall prosjekter innvilget"]
["a. Forebygging,  tidlig innsats og egenmestring",null,null,0]
["b. Habilitering og rehabilitering, herunder hverdagsrehabilitering",null,null,0]
["c. Velferdsteknologiske løsninger\n(Dette punktet gjelder ikke for øremerkede midler til \"Nasjonalt velferdsteknologiprogram- innføring av velferdsteknologiskeløsninger (Omsorg 2020)\"\nRapporteringen for velferdsteknologiprogram skal gjøres under punkt 7) ",null,null,0]
["d. Samspill med pårørende og frivillige i omsorgssektoren generelt og demensomsorgen spesielt",null,null,0]
["e. Legemiddelhåndtering",null,null,0]
["f. Ernæring",null,null,0]
["g. Fritidsaktivitet med assistanse",null,null,0]
["h. Kulturopplevelser",null,null,0]
["i. Annet",null,null,0]
["SUM (5.1) :",null,null,{"$f":"SUM(D76:D84)","v":0}]
["6. Tilskudd til Innovasjonsprosjekter"]
["6.1. Totalt søkt beløp  ",null,null,0]
["6.2. Utbetalt beløp  ",null,null,0]
["6.3. Ubenyttet beløp ",null,null,0]
["7. Nasjonalt velferdsteknologiprogram - innføring av velferdsteknologiske løsninger"]
["7.1. Totalt søkt beløp",null,null,0]
["7.2. Utbetalt beløp",null,null,0]
["7.3. Ubenyttet beløp",null,null,0]

{"sheet":"Vefsn","index":34,"n_rows":93,"n_cols":4,"rows_kept":93,"cut":false,"hidden":false,"merged":[]}
["1. Måloppnåelse (antall ansatte) til Kompetansetiltak (grunn-, videre- og etterutdanning)"]
["1.1. Videregående skole, fag- og yrkesopplæring innen helse (fagbrev)"]
["Utdanningstype","Fullført utdanning ","Under utdanning, men ikke fullført","Samlet antall fullførte og under utdanning "]
["a. Helsefagarbeider",0,0,{"$f":"B4+C4","v":0}]
["b. Annen utdanning på videregående skolenivå ",0,0,{"$f":"B5+C5","v":0}]
["Sum (1.1) :",{"$f":"SUM(B4:B5)","v":0},{"$f":"SUM(C4:C5)","v":0},0]
["1.2. Fagskoleutdanning"]
["a. Psykisk helsearbeid og rusarbeid",0,0,0]
["b. Eldreomsorg/demens",0,0,0]
["c. Habilitering/rehabilitering",0,0,0]
["d. Kreftomsorg/lindrende behandling",0,0,0]
["e. Veiledning",0,0,0]
["f. Annen fagskoleutdanning ",0,0,0]
["Sum (1.2) :",{"$f":"SUM(B8:B13)","v":0},{"$f":"SUM(C8:C13)","v":0},0]
["1.3. Bachelorutdanning helse- og sosialfag"]
["a. Sykepleie",0,0,0]
["b. Vernepleie",0,0,0]
["c. Fysioterapi",0,0,0]
["d. Ergoterapi",0,0,0]
["e. Sosialt arbeid (sosionom)",0,0,0]
["f. Barnevernspedagogikk",0,0,0]
["g. Annen bachelorutdanning",0,0,0]
["Sum (1.3) :",{"$f":"SUM(B16:B22)","v":0},{"$f":"SUM(C16:C22)","v":0},0]
["1.4. Videreutdanning og mastergradutdanning (påbygg bachelorutdanning)"]
["a. Psykisk helsearbeid og rusarbeid",0,0,0]
["b. Tverrfaglig videreutdanning i psykososialt arbeid med barn og unge",0,0,0]
["c. Eldreomsorg/demens",0,0,0]
["d. Kreftomsorg/lindrende pleie",0,0,0]
["e. Habilitering/rehabilitering",0,0,0]
["f. Veiledning",0,0,0]
["g. Lederutdanning",0,0,0]
["h. Annen videreutdanning og/eller masterutdanning ",0,0,0]
["Sum (1.4) :",{"$f":"SUM(B25:B32)","v":0},{"$f":"SUM(C25:C32)","v":0},0]
["1.5. ABC-opplæring"]
["a. Demensomsorgens ABC",0,0,0]
["b. Eldreomsorgens ABC",0,0,0]
["c. Mitt livs ABC",0,0,{"$f":"B37+C37","v":0}]
["d. Velferdsteknologien ABC",0,0,0]
["e. ABC musikkbasert miljøbehandling",0,0,0]
["Sum (1.5) :",{"$f":"SUM(B35:B39)","v":0},{"$f":"SUM(C35:C39)","v":0},0]
["1.6. Annen internopplæring / korte etterutdanninger mv. "]
["a.  Innen psykisk helsearbeid og rusfeltet",0,0,0]
["b. Innen eldreomsorg og demens",null,null,0]
["c. Annet høyt prioritert internopplæring/etterutdanning",0,0,0]
["Sum (1.6) :",{"$f":"SUM(B42:B44)","v":0},{"$f":"SUM(C42:C44)","v":0},0]
[" 1.7. Andre kompetansehevende tiltak med midler direkte fra fylkesmannen  (utdyp i skriftlig del av rapporteringsskjema)"]
["a. Fylkeskoordinator til prosjekt Menn i helse  (ikke for kommuner)",0,0,0]
["b. Desentralisert utdanning fra høgskoler/universiteter (ikke for kommuner)",0,0,0]
["c. Annet  (ikke forkommuner)",0,0,0]
["Sum (1.7) :",{"$f":"SUM(B47:B49)","v":0},{"$f":"SUM(C47:C49)","v":0},{"$f":"B50+C50","v":0}]
["Kompetansetiltak (måloppnåelse) Totalt :",{"$f":"B6+B14+B23+B33+B40+B45+B50","v":0},{"$f":"C6+C14+C23+C33+C40+C45+C50","v":0},{"$f":"B51+C51","v":0}]
["2. Tilskudd til Kompetansetiltak"]
["2.1. Totalt søkt beløp (Kompetansetiltak totalt)",null,null,0]
["2.2. Utbetalt beløp (Kompetansetiltak totalt)",null,null,{"$f":"SUM(D55:D61)","v":0}]
["a. Videregående skole, fag- og yrkesopplæring innen helse (fagbrev)",null,null,0]
["b. Fagskoleutdanning",null,null,0]
["c. Bachelorutdanning helse- og sosialfag",null,null,0]
["d.  Videreutdanning og mastergradutdanning (påbygg bachelorutdanning)",null,null,0]
["e. ABC-opplæring",null,null,0]
["f. Annen internopplæring / korte etterutdanninger /kurs mv. ",null,null,0]
["g. Andre Kompetansehevende tiltak. Fylkesmannen rapporterer her, ikke kommuner",null,null,0]
["2.3. Ubenyttet beløp (Kompetansetiltak totalt)",null,null,0]
["3. Opplæringstilskudd BPA (brukerstyrt personlig assistanse)"]
["3.1. Opplæringstype",null,null,"Antall personer innvilget"]
["a. Arbeidsledere som har fått tilskudd til opplæring",null,null,0]
["b. Saksbehandlere som har fått tilskudd til opplæring",null,null,0]
["c. Assistenter som har fått tilskudd til opplæring",null,null,0]
["d. Uspesifisert ",null,null,0]
["SUM (3.1) :",null,null,{"$f":"SUM(D65:D68)","v":0}]
["4. Tilskudd til BPA"]
["4.1. Totalt søkt beløp ",null,null,0]
["4.2. Utbetalt beløp  ",null,null,0]
["4.3. Ubenyttet beløp ",null,null,0]
["5. Innovasjonsprosjekter"]
["5.1. Prosjekttype",null,null,"Antall prosjekter innvilget"]
["a. Forebygging,  tidlig innsats og egenmestring",null,null,0]
["b. Habilitering og rehabilitering, herunder hverdagsrehabilitering",null,null,0]
["c. Velferdsteknologiske løsninger\n(Dette punktet gjelder ikke for øremerkede midler til \"Nasjonalt velferdsteknologiprogram- innføring av velferdsteknologiskeløsninger (Omsorg 2020)\"\nRapporteringen for velferdsteknologiprogram skal gjøres under punkt 7) ",null,null,0]
["d. Samspill med pårørende og frivillige i omsorgssektoren generelt og demensomsorgen spesielt",null,null,0]
["e. Legemiddelhåndtering",null,null,0]
["f. Ernæring",null,null,0]
["g. Fritidsaktivitet med assistanse",null,null,0]
["h. Kulturopplevelser",null,null,0]
["i. Annet",null,null,0]
["SUM (5.1) :",null,null,{"$f":"SUM(D76:D84)","v":0}]
["6. Tilskudd til Innovasjonsprosjekter"]
["6.1. Totalt søkt beløp  ",null,null,0]
["6.2. Utbetalt beløp  ",null,null,0]
["6.3. Ubenyttet beløp ",null,null,0]
["7. Nasjonalt velferdsteknologiprogram - innføring av velferdsteknologiske løsninger"]
["7.1. Totalt søkt beløp",null,null,0]
["7.2. Utbetalt beløp",null,null,0]
["7.3. Ubenyttet beløp",null,null,0]

{"sheet":"Leirfjord","index":35,"n_rows":93,"n_cols":4,"rows_kept":93,"cut":false,"hidden":false,"merged":[]}
["1. Måloppnåelse (antall ansatte) til Kompetansetiltak (grunn-, videre- og etterutdanning)"]
["1.1. Videregående skole, fag- og yrkesopplæring innen helse (fagbrev)"]
["Utdanningstype","Fullført utdanning ","Under utdanning, men ikke fullført","Samlet antall fullførte og under utdanning "]
["a. Helsefagarbeider",0,0,{"$f":"B4+C4","v":0}]
["b. Annen utdanning på videregående skolenivå ",0,0,{"$f":"B5+C5","v":0}]
["Sum (1.1) :",{"$f":"SUM(B4:B5)","v":0},{"$f":"SUM(C4:C5)","v":0},0]
["1.2. Fagskoleutdanning"]
["a. Psykisk helsearbeid og rusarbeid",0,0,0]
["b. Eldreomsorg/demens",0,0,0]
["c. Habilitering/rehabilitering",0,0,0]
["d. Kreftomsorg/lindrende behandling",0,0,0]
["e. Veiledning",0,0,0]
["f. Annen fagskoleutdanning ",0,0,0]
["Sum (1.2) :",{"$f":"SUM(B8:B13)","v":0},{"$f":"SUM(C8:C13)","v":0},0]
["1.3. Bachelorutdanning helse- og sosialfag"]
["a. Sykepleie",0,0,0]
["b. Vernepleie",0,0,0]
["c. Fysioterapi",0,0,0]
["d. Ergoterapi",0,0,0]
["e. Sosialt arbeid (sosionom)",0,0,0]
["f. Barnevernspedagogikk",0,0,0]
["g. Annen bachelorutdanning",0,0,0]
["Sum (1.3) :",{"$f":"SUM(B16:B22)","v":0},{"$f":"SUM(C16:C22)","v":0},0]
["1.4. Videreutdanning og mastergradutdanning (påbygg bachelorutdanning)"]
["a. Psykisk helsearbeid og rusarbeid",0,0,0]
["b. Tverrfaglig videreutdanning i psykososialt arbeid med barn og unge",0,0,0]
["c. Eldreomsorg/demens",0,0,0]
["d. Kreftomsorg/lindrende pleie",0,0,0]
["e. Habilitering/rehabilitering",0,0,0]
["f. Veiledning",0,0,0]
["g. Lederutdanning",0,0,0]
["h. Annen videreutdanning og/eller masterutdanning ",0,0,0]
["Sum (1.4) :",{"$f":"SUM(B25:B32)","v":0},{"$f":"SUM(C25:C32)","v":0},0]
["1.5. ABC-opplæring"]
["a. Demensomsorgens ABC",0,0,0]
["b. Eldreomsorgens ABC",0,0,0]
["c. Mitt livs ABC",0,0,{"$f":"B37+C37","v":0}]
["d. Velferdsteknologien ABC",0,0,0]
["e. ABC musikkbasert miljøbehandling",0,0,0]
["Sum (1.5) :",{"$f":"SUM(B35:B39)","v":0},{"$f":"SUM(C35:C39)","v":0},0]
["1.6. Annen internopplæring / korte etterutdanninger mv. "]
["a.  Innen psykisk helsearbeid og rusfeltet",0,0,0]
["b. Innen eldreomsorg og demens",null,null,0]
["c. Annet høyt prioritert internopplæring/etterutdanning",0,0,0]
["Sum (1.6) :",{"$f":"SUM(B42:B44)","v":0},{"$f":"SUM(C42:C44)","v":0},0]
[" 1.7. Andre kompetansehevende tiltak med midler direkte fra fylkesmannen  (utdyp i skriftlig del av rapporteringsskjema)"]
["a. Fylkeskoordinator til prosjekt Menn i helse  (ikke for kommuner)",0,0,0]
["b. Desentralisert utdanning fra høgskoler/universiteter (ikke for kommuner)",0,0,0]
["c. Annet  (ikke forkommuner)",0,0,0]
["Sum (1.7) :",{"$f":"SUM(B47:B49)","v":0},{"$f":"SUM(C47:C49)","v":0},{"$f":"B50+C50","v":0}]
["Kompetansetiltak (måloppnåelse) Totalt :",{"$f":"B6+B14+B23+B33+B40+B45+B50","v":0},{"$f":"C6+C14+C23+C33+C40+C45+C50","v":0},{"$f":"B51+C51","v":0}]
["2. Tilskudd til Kompetansetiltak"]
["2.1. Totalt søkt beløp (Kompetansetiltak totalt)",null,null,0]
["2.2. Utbetalt beløp (Kompetansetiltak totalt)",null,null,{"$f":"SUM(D55:D61)","v":0}]
["a. Videregående skole, fag- og yrkesopplæring innen helse (fagbrev)",null,null,0]
["b. Fagskoleutdanning",null,null,0]
["c. Bachelorutdanning helse- og sosialfag",null,null,0]
["d.  Videreutdanning og mastergradutdanning (påbygg bachelorutdanning)",null,null,0]
["e. ABC-opplæring",null,null,0]
["f. Annen internopplæring / korte etterutdanninger /kurs mv. ",null,null,0]
["g. Andre Kompetansehevende tiltak. Fylkesmannen rapporterer her, ikke kommuner",null,null,0]
["2.3. Ubenyttet beløp (Kompetansetiltak totalt)",null,null,0]
["3. Opplæringstilskudd BPA (brukerstyrt personlig assistanse)"]
["3.1. Opplæringstype",null,null,"Antall personer innvilget"]
["a. Arbeidsledere som har fått tilskudd til opplæring",null,null,0]
["b. Saksbehandlere som har fått tilskudd til opplæring",null,null,0]
["c. Assistenter som har fått tilskudd til opplæring",null,null,0]
["d. Uspesifisert ",null,null,0]
["SUM (3.1) :",null,null,{"$f":"SUM(D65:D68)","v":0}]
["4. Tilskudd til BPA"]
["4.1. Totalt søkt beløp ",null,null,0]
["4.2. Utbetalt beløp  ",null,null,0]
["4.3. Ubenyttet beløp ",null,null,0]
["5. Innovasjonsprosjekter"]
["5.1. Prosjekttype",null,null,"Antall prosjekter innvilget"]
["a. Forebygging,  tidlig innsats og egenmestring",null,null,0]
["b. Habilitering og rehabilitering, herunder hverdagsrehabilitering",null,null,0]
["c. Velferdsteknologiske løsninger\n(Dette punktet gjelder ikke for øremerkede midler til \"Nasjonalt velferdsteknologiprogram- innføring av velferdsteknologiskeløsninger (Omsorg 2020)\"\nRapporteringen for velferdsteknologiprogram skal gjøres under punkt 7) ",null,null,0]
["d. Samspill med pårørende og frivillige i omsorgssektoren generelt og demensomsorgen spesielt",null,null,0]
["e. Legemiddelhåndtering",null,null,0]
["f. Ernæring",null,null,0]
["g. Fritidsaktivitet med assistanse",null,null,0]
["h. Kulturopplevelser",null,null,0]
["i. Annet",null,null,0]
["SUM (5.1) :",null,null,{"$f":"SUM(D76:D84)","v":0}]
["6. Tilskudd til Innovasjonsprosjekter"]
["6.1. Totalt søkt beløp  ",null,null,0]
["6.2. Utbetalt beløp  ",null,null,0]
["6.3. Ubenyttet beløp ",null,null,0]
["7. Nasjonalt velferdsteknologiprogram - innføring av velferdsteknologiske løsninger"]
["7.1. Totalt søkt beløp",null,null,0]
["7.2. Utbetalt beløp",null,null,0]
["7.3. Ubenyttet beløp",null,null,0]

{"sheet":"Alstahaug","index":36,"n_rows":93,"n_cols":4,"rows_kept":93,"cut":false,"hidden":false,"merged":[]}
["1. Måloppnåelse (antall ansatte) til Kompetansetiltak (grunn-, videre- og etterutdanning)"]
["1.1. Videregående skole, fag- og yrkesopplæring innen helse (fagbrev)"]
["Utdanningstype","Fullført utdanning ","Under utdanning, men ikke fullført","Samlet antall fullførte og under utdanning "]
["a. Helsefagarbeider",0,0,{"$f":"B4+C4","v":0}]
["b. Annen utdanning på videregående skolenivå ",0,0,{"$f":"B5+C5","v":0}]
["Sum (1.1) :",{"$f":"SUM(B4:B5)","v":0},{"$f":"SUM(C4:C5)","v":0},0]
["1.2. Fagskoleutdanning"]
["a. Psykisk helsearbeid og rusarbeid",0,0,0]
["b. Eldreomsorg/demens",0,0,0]
["c. Habilitering/rehabilitering",0,0,0]
["d. Kreftomsorg/lindrende behandling",0,0,0]
["e. Veiledning",0,0,0]
["f. Annen fagskoleutdanning ",0,0,0]
["Sum (1.2) :",{"$f":"SUM(B8:B13)","v":0},{"$f":"SUM(C8:C13)","v":0},0]
["1.3. Bachelorutdanning helse- og sosialfag"]
["a. Sykepleie",0,0,0]
["b. Vernepleie",0,0,0]
["c. Fysioterapi",0,0,0]
["d. Ergoterapi",0,0,0]
["e. Sosialt arbeid (sosionom)",0,0,0]
["f. Barnevernspedagogikk",0,0,0]
["g. Annen bachelorutdanning",0,0,0]
["Sum (1.3) :",{"$f":"SUM(B16:B22)","v":0},{"$f":"SUM(C16:C22)","v":0},0]
["1.4. Videreutdanning og mastergradutdanning (påbygg bachelorutdanning)"]
["a. Psykisk helsearbeid og rusarbeid",0,0,0]
["b. Tverrfaglig videreutdanning i psykososialt arbeid med barn og unge",0,0,0]
["c. Eldreomsorg/demens",0,0,0]
["d. Kreftomsorg/lindrende pleie",0,0,0]
["e. Habilitering/rehabilitering",0,0,0]
["f. Veiledning",0,0,0]
["g. Lederutdanning",0,0,0]
["h. Annen videreutdanning og/eller masterutdanning ",0,0,0]
["Sum (1.4) :",{"$f":"SUM(B25:B32)","v":0},{"$f":"SUM(C25:C32)","v":0},0]
["1.5. ABC-opplæring"]
["a. Demensomsorgens ABC",0,0,0]
["b. Eldreomsorgens ABC",0,0,0]
["c. Mitt livs ABC",0,0,{"$f":"B37+C37","v":0}]
["d. Velferdsteknologien ABC",0,0,0]
["e. ABC musikkbasert miljøbehandling",0,0,0]
["Sum (1.5) :",{"$f":"SUM(B35:B39)","v":0},{"$f":"SUM(C35:C39)","v":0},0]
["1.6. Annen internopplæring / korte etterutdanninger mv. "]
["a.  Innen psykisk helsearbeid og rusfeltet",0,0,0]
["b. Innen eldreomsorg og demens",null,null,0]
["c. Annet høyt prioritert internopplæring/etterutdanning",0,0,0]
["Sum (1.6) :",{"$f":"SUM(B42:B44)","v":0},{"$f":"SUM(C42:C44)","v":0},0]
[" 1.7. Andre kompetansehevende tiltak med midler direkte fra fylkesmannen  (utdyp i skriftlig del av rapporteringsskjema)"]
["a. Fylkeskoordinator til prosjekt Menn i helse  (ikke for kommuner)",0,0,0]
["b. Desentralisert utdanning fra høgskoler/universiteter (ikke for kommuner)",0,0,0]
["c. Annet  (ikke forkommuner)",0,0,0]
["Sum (1.7) :",{"$f":"SUM(B47:B49)","v":0},{"$f":"SUM(C47:C49)","v":0},{"$f":"B50+C50","v":0}]
["Kompetansetiltak (måloppnåelse) Totalt :",{"$f":"B6+B14+B23+B33+B40+B45+B50","v":0},{"$f":"C6+C14+C23+C33+C40+C45+C50","v":0},{"$f":"B51+C51","v":0}]
["2. Tilskudd til Kompetansetiltak"]
["2.1. Totalt søkt beløp (Kompetansetiltak totalt)",null,null,0]
["2.2. Utbetalt beløp (Kompetansetiltak totalt)",null,null,{"$f":"SUM(D55:D61)","v":0}]
["a. Videregående skole, fag- og yrkesopplæring innen helse (fagbrev)",null,null,0]
["b. Fagskoleutdanning",null,null,0]
["c. Bachelorutdanning helse- og sosialfag",null,null,0]
["d.  Videreutdanning og mastergradutdanning (påbygg bachelorutdanning)",null,null,0]
["e. ABC-opplæring",null,null,0]
["f. Annen internopplæring / korte etterutdanninger /kurs mv. ",null,null,0]
["g. Andre Kompetansehevende tiltak. Fylkesmannen rapporterer her, ikke kommuner",null,null,0]
["2.3. Ubenyttet beløp (Kompetansetiltak totalt)",null,null,0]
["3. Opplæringstilskudd BPA (brukerstyrt personlig assistanse)"]
["3.1. Opplæringstype",null,null,"Antall personer innvilget"]
["a. Arbeidsledere som har fått tilskudd til opplæring",null,null,0]
["b. Saksbehandlere som har fått tilskudd til opplæring",null,null,0]
["c. Assistenter som har fått tilskudd til opplæring",null,null,0]
["d. Uspesifisert ",null,null,0]
["SUM (3.1) :",null,null,{"$f":"SUM(D65:D68)","v":0}]
["4. Tilskudd til BPA"]
["4.1. Totalt søkt beløp ",null,null,0]
["4.2. Utbetalt beløp  ",null,null,0]
["4.3. Ubenyttet beløp ",null,null,0]
["5. Innovasjonsprosjekter"]
["5.1. Prosjekttype",null,null,"Antall prosjekter innvilget"]
["a. Forebygging,  tidlig innsats og egenmestring",null,null,0]
["b. Habilitering og rehabilitering, herunder hverdagsrehabilitering",null,null,0]
["c. Velferdsteknologiske løsninger\n(Dette punktet gjelder ikke for øremerkede midler til \"Nasjonalt velferdsteknologiprogram- innføring av velferdsteknologiskeløsninger (Omsorg 2020)\"\nRapporteringen for velferdsteknologiprogram skal gjøres under punkt 7) ",null,null,0]
["d. Samspill med pårørende og frivillige i omsorgssektoren generelt og demensomsorgen spesielt",null,null,0]
["e. Legemiddelhåndtering",null,null,0]
["f. Ernæring",null,null,0]
["g. Fritidsaktivitet med assistanse",null,null,0]
["h. Kulturopplevelser",null,null,0]
["i. Annet",null,null,0]
["SUM (5.1) :",null,null,{"$f":"SUM(D76:D84)","v":0}]
["6. Tilskudd til Innovasjonsprosjekter"]
["6.1. Totalt søkt beløp  ",null,null,0]
["6.2. Utbetalt beløp  ",null,null,0]
["6.3. Ubenyttet beløp ",null,null,0]
["7. Nasjonalt velferdsteknologiprogram - innføring av velferdsteknologiske løsninger"]
["7.1. Totalt søkt beløp",null,null,0]
["7.2. Utbetalt beløp",null,null,0]
["7.3. Ubenyttet beløp",null,null,0]

{"sheet":"Herøy","index":37,"n_rows":93,"n_cols":4,"rows_kept":93,"cut":false,"hidden":false,"merged":[]}
["1. Måloppnåelse (antall ansatte) til Kompetansetiltak (grunn-, videre- og etterutdanning)"]
["1.1. Videregående skole, fag- og yrkesopplæring innen helse (fagbrev)"]
["Utdanningstype","Fullført utdanning ","Under utdanning, men ikke fullført","Samlet antall fullførte og under utdanning "]
["a. Helsefagarbeider",0,0,{"$f":"B4+C4","v":0}]
["b. Annen utdanning på videregående skolenivå ",0,0,{"$f":"B5+C5","v":0}]
["Sum (1.1) :",{"$f":"SUM(B4:B5)","v":0},{"$f":"SUM(C4:C5)","v":0},0]
["1.2. Fagskoleutdanning"]
["a. Psykisk helsearbeid og rusarbeid",0,0,0]
["b. Eldreomsorg/demens",0,0,0]
["c. Habilitering/rehabilitering",0,0,0]
["d. Kreftomsorg/lindrende behandling",0,0,0]
["e. Veiledning",0,0,0]
["f. Annen fagskoleutdanning ",0,0,0]
["Sum (1.2) :",{"$f":"SUM(B8:B13)","v":0},{"$f":"SUM(C8:C13)","v":0},0]
["1.3. Bachelorutdanning helse- og sosialfag"]
["a. Sykepleie",0,0,0]
["b. Vernepleie",0,0,0]
["c. Fysioterapi",0,0,0]
["d. Ergoterapi",0,0,0]
["e. Sosialt arbeid (sosionom)",0,0,0]
["f. Barnevernspedagogikk",0,0,0]
["g. Annen bachelorutdanning",0,0,0]
["Sum (1.3) :",{"$f":"SUM(B16:B22)","v":0},{"$f":"SUM(C16:C22)","v":0},0]
["1.4. Videreutdanning og mastergradutdanning (påbygg bachelorutdanning)"]
["a. Psykisk helsearbeid og rusarbeid",0,0,0]
["b. Tverrfaglig videreutdanning i psykososialt arbeid med barn og unge",0,0,0]
["c. Eldreomsorg/demens",0,0,0]
["d. Kreftomsorg/lindrende pleie",0,0,0]
["e. Habilitering/rehabilitering",0,0,0]
["f. Veiledning",0,0,0]
["g. Lederutdanning",0,0,0]
["h. Annen videreutdanning og/eller masterutdanning ",0,0,0]
["Sum (1.4) :",{"$f":"SUM(B25:B32)","v":0},{"$f":"SUM(C25:C32)","v":0},0]
["1.5. ABC-opplæring"]
["a. Demensomsorgens ABC",0,0,0]
["b. Eldreomsorgens ABC",0,0,0]
["c. Mitt livs ABC",0,0,{"$f":"B37+C37","v":0}]
["d. Velferdsteknologien ABC",0,0,0]
["e. ABC musikkbasert miljøbehandling",0,0,0]
["Sum (1.5) :",{"$f":"SUM(B35:B39)","v":0},{"$f":"SUM(C35:C39)","v":0},0]
["1.6. Annen internopplæring / korte etterutdanninger mv. "]
["a.  Innen psykisk helsearbeid og rusfeltet",0,0,0]
["b. Innen eldreomsorg og demens",null,null,0]
["c. Annet høyt prioritert internopplæring/etterutdanning",0,0,0]
["Sum (1.6) :",{"$f":"SUM(B42:B44)","v":0},{"$f":"SUM(C42:C44)","v":0},0]
[" 1.7. Andre kompetansehevende tiltak med midler direkte fra fylkesmannen  (utdyp i skriftlig del av rapporteringsskjema)"]
["a. Fylkeskoordinator til prosjekt Menn i helse  (ikke for kommuner)",0,0,0]
["b. Desentralisert utdanning fra høgskoler/universiteter (ikke for kommuner)",0,0,0]
["c. Annet  (ikke forkommuner)",0,0,0]
["Sum (1.7) :",{"$f":"SUM(B47:B49)","v":0},{"$f":"SUM(C47:C49)","v":0},{"$f":"B50+C50","v":0}]
["Kompetansetiltak (måloppnåelse) Totalt :",{"$f":"B6+B14+B23+B33+B40+B45+B50","v":0},{"$f":"C6+C14+C23+C33+C40+C45+C50","v":0},{"$f":"B51+C51","v":0}]
["2. Tilskudd til Kompetansetiltak"]
["2.1. Totalt søkt beløp (Kompetansetiltak totalt)",null,null,0]
["2.2. Utbetalt beløp (Kompetansetiltak totalt)",null,null,{"$f":"SUM(D55:D61)","v":0}]
["a. Videregående skole, fag- og yrkesopplæring innen helse (fagbrev)",null,null,0]
["b. Fagskoleutdanning",null,null,0]
["c. Bachelorutdanning helse- og sosialfag",null,null,0]
["d.  Videreutdanning og mastergradutdanning (påbygg bachelorutdanning)",null,null,0]
["e. ABC-opplæring",null,null,0]
["f. Annen internopplæring / korte etterutdanninger /kurs mv. ",null,null,0]
["g. Andre Kompetansehevende tiltak. Fylkesmannen rapporterer her, ikke kommuner",null,null,0]
["2.3. Ubenyttet beløp (Kompetansetiltak totalt)",null,null,0]
["3. Opplæringstilskudd BPA (brukerstyrt personlig assistanse)"]
["3.1. Opplæringstype",null,null,"Antall personer innvilget"]
["a. Arbeidsledere som har fått tilskudd til opplæring",null,null,0]
["b. Saksbehandlere som har fått tilskudd til opplæring",null,null,0]
["c. Assistenter som har fått tilskudd til opplæring",null,null,0]
["d. Uspesifisert ",null,null,0]
["SUM (3.1) :",null,null,{"$f":"SUM(D65:D68)","v":0}]
["4. Tilskudd til BPA"]
["4.1. Totalt søkt beløp ",null,null,0]
["4.2. Utbetalt beløp  ",null,null,0]
["4.3. Ubenyttet beløp ",null,null,0]
["5. Innovasjonsprosjekter"]
["5.1. Prosjekttype",null,null,"Antall prosjekter innvilget"]
["a. Forebygging,  tidlig innsats og egenmestring",null,null,0]
["b. Habilitering og rehabilitering, herunder hverdagsrehabilitering",null,null,0]
["c. Velferdsteknologiske løsninger\n(Dette punktet gjelder ikke for øremerkede midler til \"Nasjonalt velferdsteknologiprogram- innføring av velferdsteknologiskeløsninger (Omsorg 2020)\"\nRapporteringen for velferdsteknologiprogram skal gjøres under punkt 7) ",null,null,0]
["d. Samspill med pårørende og frivillige i omsorgssektoren generelt og demensomsorgen spesielt",null,null,0]
["e. Legemiddelhåndtering",null,null,0]
["f. Ernæring",null,null,0]
["g. Fritidsaktivitet med assistanse",null,null,0]
["h. Kulturopplevelser",null,null,0]
["i. Annet",null,null,0]
["SUM (5.1) :",null,null,{"$f":"SUM(D76:D84)","v":0}]
["6. Tilskudd til Innovasjonsprosjekter"]
["6.1. Totalt søkt beløp  ",null,null,0]
["6.2. Utbetalt beløp  ",null,null,0]
["6.3. Ubenyttet beløp ",null,null,0]
["7. Nasjonalt velferdsteknologiprogram - innføring av velferdsteknologiske løsninger"]
["7.1. Totalt søkt beløp",null,null,0]
["7.2. Utbetalt beløp",null,null,0]
["7.3. Ubenyttet beløp",null,null,0]

{"sheet":"Vevelstad","index":38,"n_rows":93,"n_cols":4,"rows_kept":93,"cut":false,"hidden":false,"merged":[]}
["1. Måloppnåelse (antall ansatte) til Kompetansetiltak (grunn-, videre- og etterutdanning)"]
["1.1. Videregående skole, fag- og yrkesopplæring innen helse (fagbrev)"]
["Utdanningstype","Fullført utdanning ","Under utdanning, men ikke fullført","Samlet antall fullførte og under utdanning "]
["a. Helsefagarbeider",0,0,{"$f":"B4+C4","v":0}]
["b. Annen utdanning på videregående skolenivå ",0,0,{"$f":"B5+C5","v":0}]
["Sum (1.1) :",{"$f":"SUM(B4:B5)","v":0},{"$f":"SUM(C4:C5)","v":0},0]
["1.2. Fagskoleutdanning"]
["a. Psykisk helsearbeid og rusarbeid",0,0,0]
["b. Eldreomsorg/demens",0,0,0]
["c. Habilitering/rehabilitering",0,0,0]
["d. Kreftomsorg/lindrende behandling",0,0,0]
["e. Veiledning",0,0,0]
["f. Annen fagskoleutdanning ",0,0,0]
["Sum (1.2) :",{"$f":"SUM(B8:B13)","v":0},{"$f":"SUM(C8:C13)","v":0},0]
["1.3. Bachelorutdanning helse- og sosialfag"]
["a. Sykepleie",0,0,0]
["b. Vernepleie",0,0,0]
["c. Fysioterapi",0,0,0]
["d. Ergoterapi",0,0,0]
["e. Sosialt arbeid (sosionom)",0,0,0]
["f. Barnevernspedagogikk",0,0,0]
["g. Annen bachelorutdanning",0,0,0]
["Sum (1.3) :",{"$f":"SUM(B16:B22)","v":0},{"$f":"SUM(C16:C22)","v":0},0]
["1.4. Videreutdanning og mastergradutdanning (påbygg bachelorutdanning)"]
["a. Psykisk helsearbeid og rusarbeid",0,0,0]
["b. Tverrfaglig videreutdanning i psykososialt arbeid med barn og unge",0,0,0]
["c. Eldreomsorg/demens",0,0,0]
["d. Kreftomsorg/lindrende pleie",0,0,0]
["e. Habilitering/rehabilitering",0,0,0]
["f. Veiledning",0,0,0]
["g. Lederutdanning",0,0,0]
["h. Annen videreutdanning og/eller masterutdanning ",0,0,0]
["Sum (1.4) :",{"$f":"SUM(B25:B32)","v":0},{"$f":"SUM(C25:C32)","v":0},0]
["1.5. ABC-opplæring"]
["a. Demensomsorgens ABC",0,0,0]
["b. Eldreomsorgens ABC",0,0,0]
["c. Mitt livs ABC",0,0,{"$f":"B37+C37","v":0}]
["d. Velferdsteknologien ABC",0,0,0]
["e. ABC musikkbasert miljøbehandling",0,0,0]
["Sum (1.5) :",{"$f":"SUM(B35:B39)","v":0},{"$f":"SUM(C35:C39)","v":0},0]
["1.6. Annen internopplæring / korte etterutdanninger mv. "]
["a.  Innen psykisk helsearbeid og rusfeltet",0,0,0]
["b. Innen eldreomsorg og demens",null,null,0]
["c. Annet høyt prioritert internopplæring/etterutdanning",0,0,0]
["Sum (1.6) :",{"$f":"SUM(B42:B44)","v":0},{"$f":"SUM(C42:C44)","v":0},0]
[" 1.7. Andre kompetansehevende tiltak med midler direkte fra fylkesmannen  (utdyp i skriftlig del av rapporteringsskjema)"]
["a. Fylkeskoordinator til prosjekt Menn i helse  (ikke for kommuner)",0,0,0]
["b. Desentralisert utdanning fra høgskoler/universiteter (ikke for kommuner)",0,0,0]
["c. Annet  (ikke forkommuner)",0,0,0]
["Sum (1.7) :",{"$f":"SUM(B47:B49)","v":0},{"$f":"SUM(C47:C49)","v":0},{"$f":"B50+C50","v":0}]
["Kompetansetiltak (måloppnåelse) Totalt :",{"$f":"B6+B14+B23+B33+B40+B45+B50","v":0},{"$f":"C6+C14+C23+C33+C40+C45+C50","v":0},{"$f":"B51+C51","v":0}]
["2. Tilskudd til Kompetansetiltak"]
["2.1. Totalt søkt beløp (Kompetansetiltak totalt)",null,null,0]
["2.2. Utbetalt beløp (Kompetansetiltak totalt)",null,null,{"$f":"SUM(D55:D61)","v":0}]
["a. Videregående skole, fag- og yrkesopplæring innen helse (fagbrev)",null,null,0]
["b. Fagskoleutdanning",null,null,0]
["c. Bachelorutdanning helse- og sosialfag",null,null,0]
["d.  Videreutdanning og mastergradutdanning (påbygg bachelorutdanning)",null,null,0]
["e. ABC-opplæring",null,null,0]
["f. Annen internopplæring / korte etterutdanninger /kurs mv. ",null,null,0]
["g. Andre Kompetansehevende tiltak. Fylkesmannen rapporterer her, ikke kommuner",null,null,0]
["2.3. Ubenyttet beløp (Kompetansetiltak totalt)",null,null,0]
["3. Opplæringstilskudd BPA (brukerstyrt personlig assistanse)"]
["3.1. Opplæringstype",null,null,"Antall personer innvilget"]
["a. Arbeidsledere som har fått tilskudd til opplæring",null,null,0]
["b. Saksbehandlere som har fått tilskudd til opplæring",null,null,0]
["c. Assistenter som har fått tilskudd til opplæring",null,null,0]
["d. Uspesifisert ",null,null,0]
["SUM (3.1) :",null,null,{"$f":"SUM(D65:D68)","v":0}]
["4. Tilskudd til BPA"]
["4.1. Totalt søkt beløp ",null,null,0]
["4.2. Utbetalt beløp  ",null,null,0]
["4.3. Ubenyttet beløp ",null,null,0]
["5. Innovasjonsprosjekter"]
["5.1. Prosjekttype",null,null,"Antall prosjekter innvilget"]
["a. Forebygging,  tidlig innsats og egenmestring",null,null,0]
["b. Habilitering og rehabilitering, herunder hverdagsrehabilitering",null,null,0]
["c. Velferdsteknologiske løsninger\n(Dette punktet gjelder ikke for øremerkede midler til \"Nasjonalt velferdsteknologiprogram- innføring av velferdsteknologiskeløsninger (Omsorg 2020)\"\nRapporteringen for velferdsteknologiprogram skal gjøres under punkt 7) ",null,null,0]
["d. Samspill med pårørende og frivillige i omsorgssektoren generelt og demensomsorgen spesielt",null,null,0]
["e. Legemiddelhåndtering",null,null,0]
["f. Ernæring",null,null,0]
["g. Fritidsaktivitet med assistanse",null,null,0]
["h. Kulturopplevelser",null,null,0]
["i. Annet",null,null,0]
["SUM (5.1) :",null,null,{"$f":"SUM(D76:D84)","v":0}]
["6. Tilskudd til Innovasjonsprosjekter"]
["6.1. Totalt søkt beløp  ",null,null,0]
["6.2. Utbetalt beløp  ",null,null,0]
["6.3. Ubenyttet beløp ",null,null,0]
["7. Nasjonalt velferdsteknologiprogram - innføring av velferdsteknologiske løsninger"]
["7.1. Totalt søkt beløp",null,null,0]
["7.2. Utbetalt beløp",null,null,0]
["7.3. Ubenyttet beløp",null,null,0]

{"sheet":"Vega","index":39,"n_rows":93,"n_cols":4,"rows_kept":93,"cut":false,"hidden":false,"merged":[]}
["1. Måloppnåelse (antall ansatte) til Kompetansetiltak (grunn-, videre- og etterutdanning)"]
["1.1. Videregående skole, fag- og yrkesopplæring innen helse (fagbrev)"]
["Utdanningstype","Fullført utdanning ","Under utdanning, men ikke fullført","Samlet antall fullførte og under utdanning "]
["a. Helsefagarbeider",0,0,{"$f":"B4+C4","v":0}]
["b. Annen utdanning på videregående skolenivå ",0,0,{"$f":"B5+C5","v":0}]
["Sum (1.1) :",{"$f":"SUM(B4:B5)","v":0},{"$f":"SUM(C4:C5)","v":0},0]
["1.2. Fagskoleutdanning"]
["a. Psykisk helsearbeid og rusarbeid",0,0,0]
["b. Eldreomsorg/demens",0,0,0]
["c. Habilitering/rehabilitering",0,0,0]
["d. Kreftomsorg/lindrende behandling",0,0,0]
["e. Veiledning",0,0,0]
["f. Annen fagskoleutdanning ",0,0,0]
["Sum (1.2) :",{"$f":"SUM(B8:B13)","v":0},{"$f":"SUM(C8:C13)","v":0},0]
["1.3. Bachelorutdanning helse- og sosialfag"]
["a. Sykepleie",0,0,0]
["b. Vernepleie",0,0,0]
["c. Fysioterapi",0,0,0]
["d. Ergoterapi",0,0,0]
["e. Sosialt arbeid (sosionom)",0,0,0]
["f. Barnevernspedagogikk",0,0,0]
["g. Annen bachelorutdanning",0,0,0]
["Sum (1.3) :",{"$f":"SUM(B16:B22)","v":0},{"$f":"SUM(C16:C22)","v":0},0]
["1.4. Videreutdanning og mastergradutdanning (påbygg bachelorutdanning)"]
["a. Psykisk helsearbeid og rusarbeid",0,0,0]
["b. Tverrfaglig videreutdanning i psykososialt arbeid med barn og unge",0,0,0]
["c. Eldreomsorg/demens",0,0,0]
["d. Kreftomsorg/lindrende pleie",0,0,0]
["e. Habilitering/rehabilitering",0,0,0]
["f. Veiledning",0,0,0]
["g. Lederutdanning",0,0,0]
["h. Annen videreutdanning og/eller masterutdanning ",0,0,0]
["Sum (1.4) :",{"$f":"SUM(B25:B32)","v":0},{"$f":"SUM(C25:C32)","v":0},0]
["1.5. ABC-opplæring"]
["a. Demensomsorgens ABC",0,0,0]
["b. Eldreomsorgens ABC",0,0,0]
["c. Mitt livs ABC",0,0,{"$f":"B37+C37","v":0}]
["d. Velferdsteknologien ABC",0,0,0]
["e. ABC musikkbasert miljøbehandling",0,0,0]
["Sum (1.5) :",{"$f":"SUM(B35:B39)","v":0},{"$f":"SUM(C35:C39)","v":0},0]
["1.6. Annen internopplæring / korte etterutdanninger mv. "]
["a.  Innen psykisk helsearbeid og rusfeltet",0,0,0]
["b. Innen eldreomsorg og demens",null,null,0]
["c. Annet høyt prioritert internopplæring/etterutdanning",0,0,0]
["Sum (1.6) :",{"$f":"SUM(B42:B44)","v":0},{"$f":"SUM(C42:C44)","v":0},0]
[" 1.7. Andre kompetansehevende tiltak med midler direkte fra fylkesmannen  (utdyp i skriftlig del av rapporteringsskjema)"]
["a. Fylkeskoordinator til prosjekt Menn i helse  (ikke for kommuner)",0,0,0]
["b. Desentralisert utdanning fra høgskoler/universiteter (ikke for kommuner)",0,0,0]
["c. Annet  (ikke forkommuner)",0,0,0]
["Sum (1.7) :",{"$f":"SUM(B47:B49)","v":0},{"$f":"SUM(C47:C49)","v":0},{"$f":"B50+C50","v":0}]
["Kompetansetiltak (måloppnåelse) Totalt :",{"$f":"B6+B14+B23+B33+B40+B45+B50","v":0},{"$f":"C6+C14+C23+C33+C40+C45+C50","v":0},{"$f":"B51+C51","v":0}]
["2. Tilskudd til Kompetansetiltak"]
["2.1. Totalt søkt beløp (Kompetansetiltak totalt)",null,null,0]
["2.2. Utbetalt beløp (Kompetansetiltak totalt)",null,null,{"$f":"SUM(D55:D61)","v":0}]
["a. Videregående skole, fag- og yrkesopplæring innen helse (fagbrev)",null,null,0]
["b. Fagskoleutdanning",null,null,0]
["c. Bachelorutdanning helse- og sosialfag",null,null,0]
["d.  Videreutdanning og mastergradutdanning (påbygg bachelorutdanning)",null,null,0]
["e. ABC-opplæring",null,null,0]
["f. Annen internopplæring / korte etterutdanninger /kurs mv. ",null,null,0]
["g. Andre Kompetansehevende tiltak. Fylkesmannen rapporterer her, ikke kommuner",null,null,0]
["2.3. Ubenyttet beløp (Kompetansetiltak totalt)",null,null,0]
["3. Opplæringstilskudd BPA (brukerstyrt personlig assistanse)"]
["3.1. Opplæringstype",null,null,"Antall personer innvilget"]
["a. Arbeidsledere som har fått tilskudd til opplæring",null,null,0]
["b. Saksbehandlere som har fått tilskudd til opplæring",null,null,0]
["c. Assistenter som har fått tilskudd til opplæring",null,null,0]
["d. Uspesifisert ",null,null,0]
["SUM (3.1) :",null,null,{"$f":"SUM(D65:D68)","v":0}]
["4. Tilskudd til BPA"]
["4.1. Totalt søkt beløp ",null,null,0]
["4.2. Utbetalt beløp  ",null,null,0]
["4.3. Ubenyttet beløp ",null,null,0]
["5. Innovasjonsprosjekter"]
["5.1. Prosjekttype",null,null,"Antall prosjekter innvilget"]
["a. Forebygging,  tidlig innsats og egenmestring",null,null,0]
["b. Habilitering og rehabilitering, herunder hverdagsrehabilitering",null,null,0]
["c. Velferdsteknologiske løsninger\n(Dette punktet gjelder ikke for øremerkede midler til \"Nasjonalt velferdsteknologiprogram- innføring av velferdsteknologiskeløsninger (Omsorg 2020)\"\nRapporteringen for velferdsteknologiprogram skal gjøres under punkt 7) ",null,null,0]
["d. Samspill med pårørende og frivillige i omsorgssektoren generelt og demensomsorgen spesielt",null,null,0]
["e. Legemiddelhåndtering",null,null,0]
["f. Ernæring",null,null,0]
["g. Fritidsaktivitet med assistanse",null,null,0]
["h. Kulturopplevelser",null,null,0]
["i. Annet",null,null,0]
["SUM (5.1) :",null,null,{"$f":"SUM(D76:D84)","v":0}]
["6. Tilskudd til Innovasjonsprosjekter"]
["6.1. Totalt søkt beløp  ",null,null,0]
["6.2. Utbetalt beløp  ",null,null,0]
["6.3. Ubenyttet beløp ",null,null,0]
["7. Nasjonalt velferdsteknologiprogram - innføring av velferdsteknologiske løsninger"]
["7.1. Totalt søkt beløp",null,null,0]
["7.2. Utbetalt beløp",null,null,0]
["7.3. Ubenyttet beløp",null,null,0]

{"sheet":"Brønnøy","index":40,"n_rows":93,"n_cols":4,"rows_kept":93,"cut":false,"hidden":false,"merged":[]}
["1. Måloppnåelse (antall ansatte) til Kompetansetiltak (grunn-, videre- og etterutdanning)"]
["1.1. Videregående skole, fag- og yrkesopplæring innen helse (fagbrev)"]
["Utdanningstype","Fullført utdanning ","Under utdanning, men ikke fullført","Samlet antall fullførte og under utdanning "]
["a. Helsefagarbeider",0,0,{"$f":"B4+C4","v":0}]
["b. Annen utdanning på videregående skolenivå ",0,0,{"$f":"B5+C5","v":0}]
["Sum (1.1) :",{"$f":"SUM(B4:B5)","v":0},{"$f":"SUM(C4:C5)","v":0},0]
["1.2. Fagskoleutdanning"]
["a. Psykisk helsearbeid og rusarbeid",0,0,0]
["b. Eldreomsorg/demens",0,0,0]
["c. Habilitering/rehabilitering",0,0,0]
["d. Kreftomsorg/lindrende behandling",0,0,0]
["e. Veiledning",0,0,0]
["f. Annen fagskoleutdanning ",0,0,0]
["Sum (1.2) :",{"$f":"SUM(B8:B13)","v":0},{"$f":"SUM(C8:C13)","v":0},0]
["1.3. Bachelorutdanning helse- og sosialfag"]
["a. Sykepleie",0,0,0]
["b. Vernepleie",0,0,0]
["c. Fysioterapi",0,0,0]
["d. Ergoterapi",0,0,0]
["e. Sosialt arbeid (sosionom)",0,0,0]
["f. Barnevernspedagogikk",0,0,0]
["g. Annen bachelorutdanning",0,0,0]
["Sum (1.3) :",{"$f":"SUM(B16:B22)","v":0},{"$f":"SUM(C16:C22)","v":0},0]
["1.4. Videreutdanning og mastergradutdanning (påbygg bachelorutdanning)"]
["a. Psykisk helsearbeid og rusarbeid",0,0,0]
["b. Tverrfaglig videreutdanning i psykososialt arbeid med barn og unge",0,0,0]
["c. Eldreomsorg/demens",0,0,0]
["d. Kreftomsorg/lindrende pleie",0,0,0]
["e. Habilitering/rehabilitering",0,0,0]
["f. Veiledning",0,0,0]
["g. Lederutdanning",0,0,0]
["h. Annen videreutdanning og/eller masterutdanning ",0,0,0]
["Sum (1.4) :",{"$f":"SUM(B25:B32)","v":0},{"$f":"SUM(C25:C32)","v":0},0]
["1.5. ABC-opplæring"]
["a. Demensomsorgens ABC",0,0,0]
["b. Eldreomsorgens ABC",0,0,0]
["c. Mitt livs ABC",0,0,{"$f":"B37+C37","v":0}]
["d. Velferdsteknologien ABC",0,0,0]
["e. ABC musikkbasert miljøbehandling",0,0,0]
["Sum (1.5) :",{"$f":"SUM(B35:B39)","v":0},{"$f":"SUM(C35:C39)","v":0},0]
["1.6. Annen internopplæring / korte etterutdanninger mv. "]
["a.  Innen psykisk helsearbeid og rusfeltet",0,0,0]
["b. Innen eldreomsorg og demens",null,null,0]
["c. Annet høyt prioritert internopplæring/etterutdanning",0,0,0]
["Sum (1.6) :",{"$f":"SUM(B42:B44)","v":0},{"$f":"SUM(C42:C44)","v":0},0]
[" 1.7. Andre kompetansehevende tiltak med midler direkte fra fylkesmannen  (utdyp i skriftlig del av rapporteringsskjema)"]
["a. Fylkeskoordinator til prosjekt Menn i helse  (ikke for kommuner)",0,0,0]
["b. Desentralisert utdanning fra høgskoler/universiteter (ikke for kommuner)",0,0,0]
["c. Annet  (ikke forkommuner)",0,0,0]
["Sum (1.7) :",{"$f":"SUM(B47:B49)","v":0},{"$f":"SUM(C47:C49)","v":0},{"$f":"B50+C50","v":0}]
["Kompetansetiltak (måloppnåelse) Totalt :",{"$f":"B6+B14+B23+B33+B40+B45+B50","v":0},{"$f":"C6+C14+C23+C33+C40+C45+C50","v":0},{"$f":"B51+C51","v":0}]
["2. Tilskudd til Kompetansetiltak"]
["2.1. Totalt søkt beløp (Kompetansetiltak totalt)",null,null,0]
["2.2. Utbetalt beløp (Kompetansetiltak totalt)",null,null,{"$f":"SUM(D55:D61)","v":0}]
["a. Videregående skole, fag- og yrkesopplæring innen helse (fagbrev)",null,null,0]
["b. Fagskoleutdanning",null,null,0]
["c. Bachelorutdanning helse- og sosialfag",null,null,0]
["d.  Videreutdanning og mastergradutdanning (påbygg bachelorutdanning)",null,null,0]
["e. ABC-opplæring",null,null,0]
["f. Annen internopplæring / korte etterutdanninger /kurs mv. ",null,null,0]
["g. Andre Kompetansehevende tiltak. Fylkesmannen rapporterer her, ikke kommuner",null,null,0]
["2.3. Ubenyttet beløp (Kompetansetiltak totalt)",null,null,0]
["3. Opplæringstilskudd BPA (brukerstyrt personlig assistanse)"]
["3.1. Opplæringstype",null,null,"Antall personer innvilget"]
["a. Arbeidsledere som har fått tilskudd til opplæring",null,null,0]
["b. Saksbehandlere som har fått tilskudd til opplæring",null,null,0]
["c. Assistenter som har fått tilskudd til opplæring",null,null,0]
["d. Uspesifisert ",null,null,0]
["SUM (3.1) :",null,null,{"$f":"SUM(D65:D68)","v":0}]
["4. Tilskudd til BPA"]
["4.1. Totalt søkt beløp ",null,null,0]
["4.2. Utbetalt beløp  ",null,null,0]
["4.3. Ubenyttet beløp ",null,null,0]
["5. Innovasjonsprosjekter"]
["5.1. Prosjekttype",null,null,"Antall prosjekter innvilget"]
["a. Forebygging,  tidlig innsats og egenmestring",null,null,0]
["b. Habilitering og rehabilitering, herunder hverdagsrehabilitering",null,null,0]
["c. Velferdsteknologiske løsninger\n(Dette punktet gjelder ikke for øremerkede midler til \"Nasjonalt velferdsteknologiprogram- innføring av velferdsteknologiskeløsninger (Omsorg 2020)\"\nRapporteringen for velferdsteknologiprogram skal gjøres under punkt 7) ",null,null,0]
["d. Samspill med pårørende og frivillige i omsorgssektoren generelt og demensomsorgen spesielt",null,null,0]
["e. Legemiddelhåndtering",null,null,0]
["f. Ernæring",null,null,0]
["g. Fritidsaktivitet med assistanse",null,null,0]
["h. Kulturopplevelser",null,null,0]
["i. Annet",null,null,0]
["SUM (5.1) :",null,null,{"$f":"SUM(D76:D84)","v":0}]
["6. Tilskudd til Innovasjonsprosjekter"]
["6.1. Totalt søkt beløp  ",null,null,0]
["6.2. Utbetalt beløp  ",null,null,0]
["6.3. Ubenyttet beløp ",null,null,0]
["7. Nasjonalt velferdsteknologiprogram - innføring av velferdsteknologiske løsninger"]
["7.1. Totalt søkt beløp",null,null,0]
["7.2. Utbetalt beløp",null,null,0]
["7.3. Ubenyttet beløp",null,null,0]

{"sheet":"Sømna","index":41,"n_rows":93,"n_cols":4,"rows_kept":93,"cut":false,"hidden":false,"merged":[]}
["1. Måloppnåelse (antall ansatte) til Kompetansetiltak (grunn-, videre- og etterutdanning)"]
["1.1. Videregående skole, fag- og yrkesopplæring innen helse (fagbrev)"]
["Utdanningstype","Fullført utdanning ","Under utdanning, men ikke fullført","Samlet antall fullførte og under utdanning "]
["a. Helsefagarbeider",0,0,{"$f":"B4+C4","v":0}]
["b. Annen utdanning på videregående skolenivå ",0,0,{"$f":"B5+C5","v":0}]
["Sum (1.1) :",{"$f":"SUM(B4:B5)","v":0},{"$f":"SUM(C4:C5)","v":0},0]
["1.2. Fagskoleutdanning"]
["a. Psykisk helsearbeid og rusarbeid",0,0,0]
["b. Eldreomsorg/demens",0,0,0]
["c. Habilitering/rehabilitering",0,0,0]
["d. Kreftomsorg/lindrende behandling",0,0,0]
["e. Veiledning",0,0,0]
["f. Annen fagskoleutdanning ",0,0,0]
["Sum (1.2) :",{"$f":"SUM(B8:B13)","v":0},{"$f":"SUM(C8:C13)","v":0},0]
["1.3. Bachelorutdanning helse- og sosialfag"]
["a. Sykepleie",0,0,0]
["b. Vernepleie",0,0,0]
["c. Fysioterapi",0,0,0]
["d. Ergoterapi",0,0,0]
["e. Sosialt arbeid (sosionom)",0,0,0]
["f. Barnevernspedagogikk",0,0,0]
["g. Annen bachelorutdanning",0,0,0]
["Sum (1.3) :",{"$f":"SUM(B16:B22)","v":0},{"$f":"SUM(C16:C22)","v":0},0]
["1.4. Videreutdanning og mastergradutdanning (påbygg bachelorutdanning)"]
["a. Psykisk helsearbeid og rusarbeid",0,0,0]
["b. Tverrfaglig videreutdanning i psykososialt arbeid med barn og unge",0,0,0]
["c. Eldreomsorg/demens",0,0,0]
["d. Kreftomsorg/lindrende pleie",0,0,0]
["e. Habilitering/rehabilitering",0,0,0]
["f. Veiledning",0,0,0]
["g. Lederutdanning",0,0,0]
["h. Annen videreutdanning og/eller masterutdanning ",0,0,0]
["Sum (1.4) :",{"$f":"SUM(B25:B32)","v":0},{"$f":"SUM(C25:C32)","v":0},0]
["1.5. ABC-opplæring"]
["a. Demensomsorgens ABC",0,0,0]
["b. Eldreomsorgens ABC",0,0,0]
["c. Mitt livs ABC",0,0,{"$f":"B37+C37","v":0}]
["d. Velferdsteknologien ABC",0,0,0]
["e. ABC musikkbasert miljøbehandling",0,0,0]
["Sum (1.5) :",{"$f":"SUM(B35:B39)","v":0},{"$f":"SUM(C35:C39)","v":0},0]
["1.6. Annen internopplæring / korte etterutdanninger mv. "]
["a.  Innen psykisk helsearbeid og rusfeltet",0,0,0]
["b. Innen eldreomsorg og demens",null,null,0]
["c. Annet høyt prioritert internopplæring/etterutdanning",0,0,0]
["Sum (1.6) :",{"$f":"SUM(B42:B44)","v":0},{"$f":"SUM(C42:C44)","v":0},0]
[" 1.7. Andre kompetansehevende tiltak med midler direkte fra fylkesmannen  (utdyp i skriftlig del av rapporteringsskjema)"]
["a. Fylkeskoordinator til prosjekt Menn i helse  (ikke for kommuner)",0,0,0]
["b. Desentralisert utdanning fra høgskoler/universiteter (ikke for kommuner)",0,0,0]
["c. Annet  (ikke forkommuner)",0,0,0]
["Sum (1.7) :",{"$f":"SUM(B47:B49)","v":0},{"$f":"SUM(C47:C49)","v":0},{"$f":"B50+C50","v":0}]
["Kompetansetiltak (måloppnåelse) Totalt :",{"$f":"B6+B14+B23+B33+B40+B45+B50","v":0},{"$f":"C6+C14+C23+C33+C40+C45+C50","v":0},{"$f":"B51+C51","v":0}]
["2. Tilskudd til Kompetansetiltak"]
["2.1. Totalt søkt beløp (Kompetansetiltak totalt)",null,null,0]
["2.2. Utbetalt beløp (Kompetansetiltak totalt)",null,null,{"$f":"SUM(D55:D61)","v":0}]
["a. Videregående skole, fag- og yrkesopplæring innen helse (fagbrev)",null,null,0]
["b. Fagskoleutdanning",null,null,0]
["c. Bachelorutdanning helse- og sosialfag",null,null,0]
["d.  Videreutdanning og mastergradutdanning (påbygg bachelorutdanning)",null,null,0]
["e. ABC-opplæring",null,null,0]
["f. Annen internopplæring / korte etterutdanninger /kurs mv. ",null,null,0]
["g. Andre Kompetansehevende tiltak. Fylkesmannen rapporterer her, ikke kommuner",null,null,0]
["2.3. Ubenyttet beløp (Kompetansetiltak totalt)",null,null,0]
["3. Opplæringstilskudd BPA (brukerstyrt personlig assistanse)"]
["3.1. Opplæringstype",null,null,"Antall personer innvilget"]
["a. Arbeidsledere som har fått tilskudd til opplæring",null,null,0]
["b. Saksbehandlere som har fått tilskudd til opplæring",null,null,0]
["c. Assistenter som har fått tilskudd til opplæring",null,null,0]
["d. Uspesifisert ",null,null,0]
["SUM (3.1) :",null,null,{"$f":"SUM(D65:D68)","v":0}]
["4. Tilskudd til BPA"]
["4.1. Totalt søkt beløp ",null,null,0]
["4.2. Utbetalt beløp  ",null,null,0]
["4.3. Ubenyttet beløp ",null,null,0]
["5. Innovasjonsprosjekter"]
["5.1. Prosjekttype",null,null,"Antall prosjekter innvilget"]
["a. Forebygging,  tidlig innsats og egenmestring",null,null,0]
["b. Habilitering og rehabilitering, herunder hverdagsrehabilitering",null,null,0]
["c. Velferdsteknologiske løsninger\n(Dette punktet gjelder ikke for øremerkede midler til \"Nasjonalt velferdsteknologiprogram- innføring av velferdsteknologiskeløsninger (Omsorg 2020)\"\nRapporteringen for velferdsteknologiprogram skal gjøres under punkt 7) ",null,null,0]
["d. Samspill med pårørende og frivillige i omsorgssektoren generelt og demensomsorgen spesielt",null,null,0]
["e. Legemiddelhåndtering",null,null,0]
["f. Ernæring",null,null,0]
["g. Fritidsaktivitet med assistanse",null,null,0]
["h. Kulturopplevelser",null,null,0]
["i. Annet",null,null,0]
["SUM (5.1) :",null,null,{"$f":"SUM(D76:D84)","v":0}]
["6. Tilskudd til Innovasjonsprosjekter"]
["6.1. Totalt søkt beløp  ",null,null,0]
["6.2. Utbetalt beløp  ",null,null,0]
["6.3. Ubenyttet beløp ",null,null,0]
["7. Nasjonalt velferdsteknologiprogram - innføring av velferdsteknologiske løsninger"]
["7.1. Totalt søkt beløp",null,null,0]
["7.2. Utbetalt beløp",null,null,0]
["7.3. Ubenyttet beløp",null,null,0]

{"sheet":"Bindal","index":42,"n_rows":93,"n_cols":4,"rows_kept":93,"cut":false,"hidden":false,"merged":[]}
["1. Måloppnåelse (antall ansatte) til Kompetansetiltak (grunn-, videre- og etterutdanning)"]
["1.1. Videregående skole, fag- og yrkesopplæring innen helse (fagbrev)"]
["Utdanningstype","Fullført utdanning ","Under utdanning, men ikke fullført","Samlet antall fullførte og under utdanning "]
["a. Helsefagarbeider",0,0,{"$f":"B4+C4","v":0}]
["b. Annen utdanning på videregående skolenivå ",0,0,{"$f":"B5+C5","v":0}]
["Sum (1.1) :",{"$f":"SUM(B4:B5)","v":0},{"$f":"SUM(C4:C5)","v":0},0]
["1.2. Fagskoleutdanning"]
["a. Psykisk helsearbeid og rusarbeid",0,0,0]
["b. Eldreomsorg/demens",0,0,0]
["c. Habilitering/rehabilitering",0,0,0]
["d. Kreftomsorg/lindrende behandling",0,0,0]
["e. Veiledning",0,0,0]
["f. Annen fagskoleutdanning ",0,0,0]
["Sum (1.2) :",{"$f":"SUM(B8:B13)","v":0},{"$f":"SUM(C8:C13)","v":0},0]
["1.3. Bachelorutdanning helse- og sosialfag"]
["a. Sykepleie",0,0,0]
["b. Vernepleie",0,0,0]
["c. Fysioterapi",0,0,0]
["d. Ergoterapi",0,0,0]
["e. Sosialt arbeid (sosionom)",0,0,0]
["f. Barnevernspedagogikk",0,0,0]
["g. Annen bachelorutdanning",0,0,0]
["Sum (1.3) :",{"$f":"SUM(B16:B22)","v":0},{"$f":"SUM(C16:C22)","v":0},0]
["1.4. Videreutdanning og mastergradutdanning (påbygg bachelorutdanning)"]
["a. Psykisk helsearbeid og rusarbeid",0,0,0]
["b. Tverrfaglig videreutdanning i psykososialt arbeid med barn og unge",0,0,0]
["c. Eldreomsorg/demens",0,0,0]
["d. Kreftomsorg/lindrende pleie",0,0,0]
["e. Habilitering/rehabilitering",0,0,0]
["f. Veiledning",0,0,0]
["g. Lederutdanning",0,0,0]
["h. Annen videreutdanning og/eller masterutdanning ",0,0,0]
["Sum (1.4) :",{"$f":"SUM(B25:B32)","v":0},{"$f":"SUM(C25:C32)","v":0},0]
["1.5. ABC-opplæring"]
["a. Demensomsorgens ABC",0,0,0]
["b. Eldreomsorgens ABC",0,0,0]
["c. Mitt livs ABC",0,0,{"$f":"B37+C37","v":0}]
["d. Velferdsteknologien ABC",0,0,0]
["e. ABC musikkbasert miljøbehandling",0,0,0]
["Sum (1.5) :",{"$f":"SUM(B35:B39)","v":0},{"$f":"SUM(C35:C39)","v":0},0]
["1.6. Annen internopplæring / korte etterutdanninger mv. "]
["a.  Innen psykisk helsearbeid og rusfeltet",0,0,0]
["b. Innen eldreomsorg og demens",null,null,0]
["c. Annet høyt prioritert internopplæring/etterutdanning",0,0,0]
["Sum (1.6) :",{"$f":"SUM(B42:B44)","v":0},{"$f":"SUM(C42:C44)","v":0},0]
[" 1.7. Andre kompetansehevende tiltak med midler direkte fra fylkesmannen  (utdyp i skriftlig del av rapporteringsskjema)"]
["a. Fylkeskoordinator til prosjekt Menn i helse  (ikke for kommuner)",0,0,0]
["b. Desentralisert utdanning fra høgskoler/universiteter (ikke for kommuner)",0,0,0]
["c. Annet  (ikke forkommuner)",0,0,0]
["Sum (1.7) :",{"$f":"SUM(B47:B49)","v":0},{"$f":"SUM(C47:C49)","v":0},{"$f":"B50+C50","v":0}]
["Kompetansetiltak (måloppnåelse) Totalt :",{"$f":"B6+B14+B23+B33+B40+B45+B50","v":0},{"$f":"C6+C14+C23+C33+C40+C45+C50","v":0},{"$f":"B51+C51","v":0}]
["2. Tilskudd til Kompetansetiltak"]
["2.1. Totalt søkt beløp (Kompetansetiltak totalt)",null,null,0]
["2.2. Utbetalt beløp (Kompetansetiltak totalt)",null,null,{"$f":"SUM(D55:D61)","v":0}]
["a. Videregående skole, fag- og yrkesopplæring innen helse (fagbrev)",null,null,0]
["b. Fagskoleutdanning",null,null,0]
["c. Bachelorutdanning helse- og sosialfag",null,null,0]
["d.  Videreutdanning og mastergradutdanning (påbygg bachelorutdanning)",null,null,0]
["e. ABC-opplæring",null,null,0]
["f. Annen internopplæring / korte etterutdanninger /kurs mv. ",null,null,0]
["g. Andre Kompetansehevende tiltak. Fylkesmannen rapporterer her, ikke kommuner",null,null,0]
["2.3. Ubenyttet beløp (Kompetansetiltak totalt)",null,null,0]
["3. Opplæringstilskudd BPA (brukerstyrt personlig assistanse)"]
["3.1. Opplæringstype",null,null,"Antall personer innvilget"]
["a. Arbeidsledere som har fått tilskudd til opplæring",null,null,0]
["b. Saksbehandlere som har fått tilskudd til opplæring",null,null,0]
["c. Assistenter som har fått tilskudd til opplæring",null,null,0]
["d. Uspesifisert ",null,null,0]
["SUM (3.1) :",null,null,{"$f":"SUM(D65:D68)","v":0}]
["4. Tilskudd til BPA"]
["4.1. Totalt søkt beløp ",null,null,0]
["4.2. Utbetalt beløp  ",null,null,0]
["4.3. Ubenyttet beløp ",null,null,0]
["5. Innovasjonsprosjekter"]
["5.1. Prosjekttype",null,null,"Antall prosjekter innvilget"]
["a. Forebygging,  tidlig innsats og egenmestring",null,null,0]
["b. Habilitering og rehabilitering, herunder hverdagsrehabilitering",null,null,0]
["c. Velferdsteknologiske løsninger\n(Dette punktet gjelder ikke for øremerkede midler til \"Nasjonalt velferdsteknologiprogram- innføring av velferdsteknologiskeløsninger (Omsorg 2020)\"\nRapporteringen for velferdsteknologiprogram skal gjøres under punkt 7) ",null,null,0]
["d. Samspill med pårørende og frivillige i omsorgssektoren generelt og demensomsorgen spesielt",null,null,0]
["e. Legemiddelhåndtering",null,null,0]
["f. Ernæring",null,null,0]
["g. Fritidsaktivitet med assistanse",null,null,0]
["h. Kulturopplevelser",null,null,0]
["i. Annet",null,null,0]
["SUM (5.1) :",null,null,{"$f":"SUM(D76:D84)","v":0}]
["6. Tilskudd til Innovasjonsprosjekter"]
["6.1. Totalt søkt beløp  ",null,null,0]
["6.2. Utbetalt beløp  ",null,null,0]
["6.3. Ubenyttet beløp ",null,null,0]
["7. Nasjonalt velferdsteknologiprogram - innføring av velferdsteknologiske løsninger"]
["7.1. Totalt søkt beløp",null,null,0]
["7.2. Utbetalt beløp",null,null,0]
["7.3. Ubenyttet beløp",null,null,0]

{"sheet":"Narvik","index":43,"n_rows":93,"n_cols":4,"rows_kept":93,"cut":false,"hidden":false,"merged":[]}
["1. Måloppnåelse (antall ansatte) til Kompetansetiltak (grunn-, videre- og etterutdanning)"]
["1.1. Videregående skole, fag- og yrkesopplæring innen helse (fagbrev)"]
["Utdanningstype","Fullført utdanning ","Under utdanning, men ikke fullført","Samlet antall fullførte og under utdanning "]
["a. Helsefagarbeider",0,0,{"$f":"B4+C4","v":0}]
["b. Annen utdanning på videregående skolenivå ",0,0,{"$f":"B5+C5","v":0}]
["Sum (1.1) :",{"$f":"SUM(B4:B5)","v":0},{"$f":"SUM(C4:C5)","v":0},0]
["1.2. Fagskoleutdanning"]
["a. Psykisk helsearbeid og rusarbeid",0,0,0]
["b. Eldreomsorg/demens",0,0,0]
["c. Habilitering/rehabilitering",0,0,0]
["d. Kreftomsorg/lindrende behandling",0,0,0]
["e. Veiledning",0,0,0]
["f. Annen fagskoleutdanning ",0,0,0]
["Sum (1.2) :",{"$f":"SUM(B8:B13)","v":0},{"$f":"SUM(C8:C13)","v":0},0]
["1.3. Bachelorutdanning helse- og sosialfag"]
["a. Sykepleie",0,0,0]
["b. Vernepleie",0,0,0]
["c. Fysioterapi",0,0,0]
["d. Ergoterapi",0,0,0]
["e. Sosialt arbeid (sosionom)",0,0,0]
["f. Barnevernspedagogikk",0,0,0]
["g. Annen bachelorutdanning",0,0,0]
["Sum (1.3) :",{"$f":"SUM(B16:B22)","v":0},{"$f":"SUM(C16:C22)","v":0},0]
["1.4. Videreutdanning og mastergradutdanning (påbygg bachelorutdanning)"]
["a. Psykisk helsearbeid og rusarbeid",0,0,0]
["b. Tverrfaglig videreutdanning i psykososialt arbeid med barn og unge",0,0,0]
["c. Eldreomsorg/demens",0,0,0]
["d. Kreftomsorg/lindrende pleie",0,0,0]
["e. Habilitering/rehabilitering",0,0,0]
["f. Veiledning",0,0,0]
["g. Lederutdanning",0,0,0]
["h. Annen videreutdanning og/eller masterutdanning ",0,0,0]
["Sum (1.4) :",{"$f":"SUM(B25:B32)","v":0},{"$f":"SUM(C25:C32)","v":0},0]
["1.5. ABC-opplæring"]
["a. Demensomsorgens ABC",0,0,0]
["b. Eldreomsorgens ABC",0,0,0]
["c. Mitt livs ABC",0,0,{"$f":"B37+C37","v":0}]
["d. Velferdsteknologien ABC",0,0,0]
["e. ABC musikkbasert miljøbehandling",0,0,0]
["Sum (1.5) :",{"$f":"SUM(B35:B39)","v":0},{"$f":"SUM(C35:C39)","v":0},0]
["1.6. Annen internopplæring / korte etterutdanninger mv. "]
["a.  Innen psykisk helsearbeid og rusfeltet",0,0,0]
["b. Innen eldreomsorg og demens",null,null,0]
["c. Annet høyt prioritert internopplæring/etterutdanning",0,0,0]
["Sum (1.6) :",{"$f":"SUM(B42:B44)","v":0},{"$f":"SUM(C42:C44)","v":0},0]
[" 1.7. Andre kompetansehevende tiltak med midler direkte fra fylkesmannen  (utdyp i skriftlig del av rapporteringsskjema)"]
["a. Fylkeskoordinator til prosjekt Menn i helse  (ikke for kommuner)",0,0,0]
["b. Desentralisert utdanning fra høgskoler/universiteter (ikke for kommuner)",0,0,0]
["c. Annet  (ikke forkommuner)",0,0,0]
["Sum (1.7) :",{"$f":"SUM(B47:B49)","v":0},{"$f":"SUM(C47:C49)","v":0},{"$f":"B50+C50","v":0}]
["Kompetansetiltak (måloppnåelse) Totalt :",{"$f":"B6+B14+B23+B33+B40+B45+B50","v":0},{"$f":"C6+C14+C23+C33+C40+C45+C50","v":0},{"$f":"B51+C51","v":0}]
["2. Tilskudd til Kompetansetiltak"]
["2.1. Totalt søkt beløp (Kompetansetiltak totalt)",null,null,0]
["2.2. Utbetalt beløp (Kompetansetiltak totalt)",null,null,{"$f":"SUM(D55:D61)","v":0}]
["a. Videregående skole, fag- og yrkesopplæring innen helse (fagbrev)",null,null,0]
["b. Fagskoleutdanning",null,null,0]
["c. Bachelorutdanning helse- og sosialfag",null,null,0]
["d.  Videreutdanning og mastergradutdanning (påbygg bachelorutdanning)",null,null,0]
["e. ABC-opplæring",null,null,0]
["f. Annen internopplæring / korte etterutdanninger /kurs mv. ",null,null,0]
["g. Andre Kompetansehevende tiltak. Fylkesmannen rapporterer her, ikke kommuner",null,null,0]
["2.3. Ubenyttet beløp (Kompetansetiltak totalt)",null,null,0]
["3. Opplæringstilskudd BPA (brukerstyrt personlig assistanse)"]
["3.1. Opplæringstype",null,null,"Antall personer innvilget"]
["a. Arbeidsledere som har fått tilskudd til opplæring",null,null,0]
["b. Saksbehandlere som har fått tilskudd til opplæring",null,null,0]
["c. Assistenter som har fått tilskudd til opplæring",null,null,0]
["d. Uspesifisert ",null,null,0]
["SUM (3.1) :",null,null,{"$f":"SUM(D65:D68)","v":0}]
["4. Tilskudd til BPA"]
["4.1. Totalt søkt beløp ",null,null,0]
["4.2. Utbetalt beløp  ",null,null,0]
["4.3. Ubenyttet beløp ",null,null,0]
["5. Innovasjonsprosjekter"]
["5.1. Prosjekttype",null,null,"Antall prosjekter innvilget"]
["a. Forebygging,  tidlig innsats og egenmestring",null,null,0]
["b. Habilitering og rehabilitering, herunder hverdagsrehabilitering",null,null,0]
["c. Velferdsteknologiske løsninger\n(Dette punktet gjelder ikke for øremerkede midler til \"Nasjonalt velferdsteknologiprogram- innføring av velferdsteknologiskeløsninger (Omsorg 2020)\"\nRapporteringen for velferdsteknologiprogram skal gjøres under punkt 7) ",null,null,0]
["d. Samspill med pårørende og frivillige i omsorgssektoren generelt og demensomsorgen spesielt",null,null,0]
["e. Legemiddelhåndtering",null,null,0]
["f. Ernæring",null,null,0]
["g. Fritidsaktivitet med assistanse",null,null,0]
["h. Kulturopplevelser",null,null,0]
["i. Annet",null,null,0]
["SUM (5.1) :",null,null,{"$f":"SUM(D76:D84)","v":0}]
["6. Tilskudd til Innovasjonsprosjekter"]
["6.1. Totalt søkt beløp  ",null,null,0]
["6.2. Utbetalt beløp  ",null,null,0]
["6.3. Ubenyttet beløp ",null,null,0]
["7. Nasjonalt velferdsteknologiprogram - innføring av velferdsteknologiske løsninger"]
["7.1. Totalt søkt beløp",null,null,0]
["7.2. Utbetalt beløp",null,null,0]
["7.3. Ubenyttet beløp",null,null,0]

{"sheet":"Bodø","index":44,"n_rows":93,"n_cols":4,"rows_kept":93,"cut":false,"hidden":false,"merged":[]}
["1. Måloppnåelse (antall ansatte) til Kompetansetiltak (grunn-, videre- og etterutdanning)"]
["1.1. Videregående skole, fag- og yrkesopplæring innen helse (fagbrev)"]
["Utdanningstype","Fullført utdanning ","Under utdanning, men ikke fullført","Samlet antall fullførte og under utdanning "]
["a. Helsefagarbeider",0,0,{"$f":"B4+C4","v":0}]
["b. Annen utdanning på videregående skolenivå ",0,0,{"$f":"B5+C5","v":0}]
["Sum (1.1) :",{"$f":"SUM(B4:B5)","v":0},{"$f":"SUM(C4:C5)","v":0},0]
["1.2. Fagskoleutdanning"]
["a. Psykisk helsearbeid og rusarbeid",0,0,0]
["b. Eldreomsorg/demens",0,0,0]
["c. Habilitering/rehabilitering",0,0,0]
["d. Kreftomsorg/lindrende behandling",0,0,0]
["e. Veiledning",0,0,0]
["f. Annen fagskoleutdanning ",0,0,0]
["Sum (1.2) :",{"$f":"SUM(B8:B13)","v":0},{"$f":"SUM(C8:C13)","v":0},0]
["1.3. Bachelorutdanning helse- og sosialfag"]
["a. Sykepleie",0,0,0]
["b. Vernepleie",0,0,0]
["c. Fysioterapi",0,0,0]
["d. Ergoterapi",0,0,0]
["e. Sosialt arbeid (sosionom)",0,0,0]
["f. Barnevernspedagogikk",0,0,0]
["g. Annen bachelorutdanning",0,0,0]
["Sum (1.3) :",{"$f":"SUM(B16:B22)","v":0},{"$f":"SUM(C16:C22)","v":0},0]
["1.4. Videreutdanning og mastergradutdanning (påbygg bachelorutdanning)"]
["a. Psykisk helsearbeid og rusarbeid",0,0,0]
["b. Tverrfaglig videreutdanning i psykososialt arbeid med barn og unge",0,0,0]
["c. Eldreomsorg/demens",0,0,0]
["d. Kreftomsorg/lindrende pleie",0,0,0]
["e. Habilitering/rehabilitering",0,0,0]
["f. Veiledning",0,0,0]
["g. Lederutdanning",0,0,0]
["h. Annen videreutdanning og/eller masterutdanning ",0,0,0]
["Sum (1.4) :",{"$f":"SUM(B25:B32)","v":0},{"$f":"SUM(C25:C32)","v":0},0]
["1.5. ABC-opplæring"]
["a. Demensomsorgens ABC",0,0,0]
["b. Eldreomsorgens ABC",0,0,0]
["c. Mitt livs ABC",0,0,{"$f":"B37+C37","v":0}]
["d. Velferdsteknologien ABC",0,0,0]
["e. ABC musikkbasert miljøbehandling",0,0,0]
["Sum (1.5) :",{"$f":"SUM(B35:B39)","v":0},{"$f":"SUM(C35:C39)","v":0},0]
["1.6. Annen internopplæring / korte etterutdanninger mv. "]
["a.  Innen psykisk helsearbeid og rusfeltet",0,0,0]
["b. Innen eldreomsorg og demens",null,null,0]
["c. Annet høyt prioritert internopplæring/etterutdanning",0,0,0]
["Sum (1.6) :",{"$f":"SUM(B42:B44)","v":0},{"$f":"SUM(C42:C44)","v":0},0]
[" 1.7. Andre kompetansehevende tiltak med midler direkte fra fylkesmannen  (utdyp i skriftlig del av rapporteringsskjema)"]
["a. Fylkeskoordinator til prosjekt Menn i helse  (ikke for kommuner)",0,0,0]
["b. Desentralisert utdanning fra høgskoler/universiteter (ikke for kommuner)",0,0,0]
["c. Annet  (ikke forkommuner)",0,0,0]
["Sum (1.7) :",{"$f":"SUM(B47:B49)","v":0},{"$f":"SUM(C47:C49)","v":0},{"$f":"B50+C50","v":0}]
["Kompetansetiltak (måloppnåelse) Totalt :",{"$f":"B6+B14+B23+B33+B40+B45+B50","v":0},{"$f":"C6+C14+C23+C33+C40+C45+C50","v":0},{"$f":"B51+C51","v":0}]
["2. Tilskudd til Kompetansetiltak"]
["2.1. Totalt søkt beløp (Kompetansetiltak totalt)",null,null,0]
["2.2. Utbetalt beløp (Kompetansetiltak totalt)",null,null,{"$f":"SUM(D55:D61)","v":0}]
["a. Videregående skole, fag- og yrkesopplæring innen helse (fagbrev)",null,null,0]
["b. Fagskoleutdanning",null,null,0]
["c. Bachelorutdanning helse- og sosialfag",null,null,0]
["d.  Videreutdanning og mastergradutdanning (påbygg bachelorutdanning)",null,null,0]
["e. ABC-opplæring",null,null,0]
["f. Annen internopplæring / korte etterutdanninger /kurs mv. ",null,null,0]
["g. Andre Kompetansehevende tiltak. Fylkesmannen rapporterer her, ikke kommuner",null,null,0]
["2.3. Ubenyttet beløp (Kompetansetiltak totalt)",null,null,0]
["3. Opplæringstilskudd BPA (brukerstyrt personlig assistanse)"]
["3.1. Opplæringstype",null,null,"Antall personer innvilget"]
["a. Arbeidsledere som har fått tilskudd til opplæring",null,null,0]
["b. Saksbehandlere som har fått tilskudd til opplæring",null,null,0]
["c. Assistenter som har fått tilskudd til opplæring",null,null,0]
["d. Uspesifisert ",null,null,0]
["SUM (3.1) :",null,null,{"$f":"SUM(D65:D68)","v":0}]
["4. Tilskudd til BPA"]
["4.1. Totalt søkt beløp ",null,null,0]
["4.2. Utbetalt beløp  ",null,null,0]
["4.3. Ubenyttet beløp ",null,null,0]
["5. Innovasjonsprosjekter"]
["5.1. Prosjekttype",null,null,"Antall prosjekter innvilget"]
["a. Forebygging,  tidlig innsats og egenmestring",null,null,0]
["b. Habilitering og rehabilitering, herunder hverdagsrehabilitering",null,null,0]
["c. Velferdsteknologiske løsninger\n(Dette punktet gjelder ikke for øremerkede midler til \"Nasjonalt velferdsteknologiprogram- innføring av velferdsteknologiskeløsninger (Omsorg 2020)\"\nRapporteringen for velferdsteknologiprogram skal gjøres under punkt 7) ",null,null,0]
["d. Samspill med pårørende og frivillige i omsorgssektoren generelt og demensomsorgen spesielt",null,null,0]
["e. Legemiddelhåndtering",null,null,0]
["f. Ernæring",null,null,0]
["g. Fritidsaktivitet med assistanse",null,null,0]
["h. Kulturopplevelser",null,null,0]
["i. Annet",null,null,0]
["SUM (5.1) :",null,null,{"$f":"SUM(D76:D84)","v":0}]
["6. Tilskudd til Innovasjonsprosjekter"]
["6.1. Totalt søkt beløp  ",null,null,0]
["6.2. Utbetalt beløp  ",null,null,0]
["6.3. Ubenyttet beløp ",null,null,0]
["7. Nasjonalt velferdsteknologiprogram - innføring av velferdsteknologiske løsninger"]
["7.1. Totalt søkt beløp",null,null,0]
["7.2. Utbetalt beløp",null,null,0]
["7.3. Ubenyttet beløp",null,null,0]

{"sheet":"Ark1","index":45,"n_rows":0,"n_cols":0,"rows_kept":0,"cut":false,"hidden":false,"merged":[]}